Workbook

Sheet Read me
B7: COVID-19 Economic Impact Assessment Template
B8: UPDATE: As of June 1, 2020
B9: This template presents estimated economy-wide and sector-specific impacts of the COVID-19 outbreak. It updates the estimtes released on March 28, 2020. In this version, we use country-specific information on outbreak severity, stringency of containment measures, and declines in mobility outside the home to calibrate the size of domestic demand declines resulting from a significant domestic outbreak (defined as > 1,000 COVID-19 cases). The estimated impact is relative no a 'no-COVID baseline' scenario. The 'Scenario assumptions' tab provides the underlying assumptions. Selecting an economy in cell C1 of the 'Main' tab provides details on how that economy—and sectors within the economy—will be affected. It also decomposes the channels (tourism, other external demand, and domestic demand) through which the economy will be affected. For economies that have not yet had significant outbreaks (< 1,000 COVID-19 cases as of May 31, 2020), choose the option in 'Main' cell C2 to display either the global spillovers from outbreaks elsewhere, or the total impact IF a domestic outbreak occurs in the future.
B15: Table 1. List of developing economies included in the ADB MRIOT
B16: Bangladesh
B17: Bhutan
B18: Brunei Darussalam
B19: Cambodia
B20: Fiji
B21: Hong Kong, China
B22: India
B23: Indonesia
B24: Kazakhstan
B25: Kyrgyz Republic
B26: Lao PDR
B27: Malaysia
B28: Maldives
B29: Mongolia
B30: Nepal
B31: Pakistan
B32: Philippines
B33: Republic of Korea
B34: Singapore
B35: Sri Lanka
B36: Taipei,China
B37: Thailand
B38: Viet Nam
B40: Citation: Abiad, Abdul, Mia Arao, Editha Lavina, Reizle Platitas, Jesson Pagaduan, and Christian Jabagat, 2020. “The Impact of COVID-19 on Developing Asian Economies: The Role of Outbreak Severity, Containment Stringency, and Mobility Declines,” in COVID in Emerging and Developing Countries, Simeon Djankov and Ugo Panizza (eds.). London: Centre for Economic Policy Research. Disclaimer: The views expressed are those of the authors and do not necessarily reflect the views and policies of the Asian Development Bank, its Board of Governors, or the governments they represent. ADB does not guarantee the accuracy of the data included in this worksheet and accepts no responsibility for any consequence of their use. The mention of specific companies or products of manufacturers does not imply that they are endorsed or recommended by ADB in preference ot others of a similar nature that are not mentioned. By making any designation of or reference to a particualr territory or geographic area, or by using the term "country" in this coument, ADB does not intend to make any judgments as to the legal or other status of any territory or area. Please contact pubsmarketing@adb.org if you have questions or comments with respect to content, or if you wish to obtain copyright permission for your intended use that does not fall within these terms, or for permission to use the ADB logo. Notes: In this publication, "$" refers to United States dollars. Corrigenda to ADB publications may be found at http://www.adb.org/publications/corrigenda

Sheet Main
B1: Select economy here → | C1: Bangladesh | D1: =$D$49 -> Bangladesh has more than 1,000 COVID-19 cases as of 31 May 2020. | J1: Impact on GDP*
B2: Display → | C2: Total impact from COVID-19 | J2: *relative to a no-COVID baseline
J3: =C2 -> Total impact from COVID-19
J4: Sector | K4: Shorter-containment scenario | M4: Longer-containment scenario | P4: Channel | Q4: Shorter-containment scenario | S4: Longer-containment scenario
K5: as % of sector GDP | L5: in $ millions | M5: as % of sector GDP | N5: in $ millions | Q5: as % of GDP | R5: in $ millions | S5: as % of GDP | T5: in $ millions
J6: Agriculture, Mining and Quarrying | K6: =IF(ISERROR(MATCH($C$2,$L$43:$L$45,0)),"…",IF($C$2=$L$44,K35,K35+Q35)) -> -7.031667174 | L6: =IF(ISERROR(MATCH($C$2,$L$43:$L$45,0)),"…",IF($C$2=$L$44,L35,L35+R35)) -> -3015.848203 | M6: =IF(ISERROR(MATCH($C$2,$L$43:$L$45,0)),"…",IF($C$2=$L$44,M35,M35+S35)) -> -10.54510896 | N6: =IF(ISERROR(MATCH($C$2,$L$43:$L$45,0)),"…",IF($C$2=$L$44,N35,N35+T35)) -> -4522.746473 | P6: Global Spillovers (excluding tourism) | Q6: =IF(ISERROR(MATCH($C$2,$L$43:$L$45,0)),"…",C68) -> -0.6468449205 | R6: =IF(ISERROR(MATCH($C$2,$L$43:$L$45,0)),"…",-D68) -> -1772.516528 | S6: =IF(ISERROR(MATCH($C$2,$L$43:$L$45,0)),"…",E68) -> -0.9679965256 | T6: =IF(ISERROR(MATCH($C$2,$L$43:$L$45,0)),"…",-F68) -> -2652.552082
J7: Business, Trade, Personal, and Public Services | K7: =IF(ISERROR(MATCH($C$2,$L$43:$L$45,0)),"…",IF($C$2=$L$44,K36,K36+Q36)) -> -7.115616314 | L7: =IF(ISERROR(MATCH($C$2,$L$43:$L$45,0)),"…",IF($C$2=$L$44,L36,L36+R36)) -> -7135.124103 | M7: =IF(ISERROR(MATCH($C$2,$L$43:$L$45,0)),"…",IF($C$2=$L$44,M36,M36+S36)) -> -10.6689867 | N7: =IF(ISERROR(MATCH($C$2,$L$43:$L$45,0)),"…",IF($C$2=$L$44,N36,N36+T36)) -> -10698.23621
J8: Light/Heavy Manufacturing, Utilities, and Construction | K8: -8.748260341 | L8: -6795.67897 | M8: -13.11873944 | N8: -10190.68229 | P8: International tourism demand decline | Q8: =IF(ISERROR(MATCH($C$2,$L$43:$L$45,0)),"…",C69) -> -0.06957108461 | R8: =IF(ISERROR(MATCH($C$2,$L$43:$L$45,0)),"…",-D69) -> -190.6421361 | S8: =IF(ISERROR(MATCH($C$2,$L$43:$L$45,0)),"…",E69) -> -0.100694657 | T8: =IF(ISERROR(MATCH($C$2,$L$43:$L$45,0)),"…",-F69) -> -275.9284926
J9: Hotel and restaurants and Other Personal Services | K9: -7.109883855 | L9: -2134.122961 | M9: -10.64973698 | N9: -3196.655344 | P9: Domestic demand decline | Q9: =IF(ISERROR(MATCH($C$2,$L$43:$L$45,0)),"…",IF($C$2=$L$44,0,C70)) -> -6.882396848 | R9: =IF(ISERROR(MATCH($C$2,$L$43:$L$45,0)),"…",IF($C$2=$L$44,0,-D70)) -> -18859.48514 | S9: =IF(ISERROR(MATCH($C$2,$L$43:$L$45,0)),"…",IF($C$2=$L$44,0,E70)) -> -10.32359524 | T9: =IF(ISERROR(MATCH($C$2,$L$43:$L$45,0)),"…",IF($C$2=$L$44,0,-F70)) -> -28289.22762
J10: Transport services | K10: -7.519514547 | L10: -1741.869567 | M10: -11.26452318 | N10: -2609.387879
J11: TOTAL (Economy-wide) | K11: =IF(ISERROR(MATCH($C$2,$L$43:$L$45,0)),"…",$K$40) -> -7.598812854 | L11: =IF(ISERROR(MATCH($C$2,$L$43:$L$45,0)),"…",SUM(L6:L10)) -> -20822.6438 | M11: =IF(ISERROR(MATCH($C$2,$L$43:$L$45,0)),"…",$M$40) -> -11.39228642 | N11: =IF(ISERROR(MATCH($C$2,$L$43:$L$45,0)),"…",SUM(N6:N10)) -> -31217.7082 | Q11: =IF(ISERROR(MATCH($C$2,$L$43:$L$45,0)),"…",SUM(Q6:Q9)) -> -7.598812854 | R11: =IF(ISERROR(MATCH($C$2,$L$43:$L$45,0)),"…",SUM(R6:R9)) -> -20822.6438 | S11: -11.39228642 | T11: -31217.7082
J15: Note: Economies with 1000 or more COVID-19 cases by 31 May are considered outbreak-affected.
C33: Shorter-containment | D33: Longer-containment | F33: Shorter-containment | G33: Longer-containment | J33: Sector | K33: Shorter-containment scenario | M33: Longer-containment scenario | Q33: Shorter-containment scenario | S33: Longer-containment scenario
B34: Agriculture, Mining and Quarrying | C34: =IF($C$2=Sheet4!$J$12,Main!$C51,IF(OR($C$2=$L$43,$C$2=$L$45),Main!$F51,NA())) -> -3015.848203 | D34: =IF($C$2=Sheet4!$J$12,Main!$D51,IF(OR($C$2=$L$43,$C$2=$L$45),Main!$G51,NA())) -> -4522.746473 | F34: =NA() ->  | G34: =NA() ->  | K34: as % of sector GDP | L34: in $ millions | M34: as % of sector GDP | N34: in $ millions | Q34: as % of sector GDP | R34: in $ millions | S34: as % of sector GDP | T34: in $ millions
B35: Business, Trade, Personal, and Public Services | C35: =IF($C$2=Sheet4!$J$12,Main!$C52,IF(OR($C$2=$L$43,$C$2=$L$45),Main!$F52,NA())) -> -7135.124103 | D35: =IF($C$2=Sheet4!$J$12,Main!$D52,IF(OR($C$2=$L$43,$C$2=$L$45),Main!$G52,NA())) -> -10698.23621 | F35: =NA() ->  | G35: =NA() ->  | J35: Agriculture, Mining and Quarrying | K35: =IFERROR(VLOOKUP($B$49&$J35,datasheet!$C$5:$AR$319,K$50,FALSE),"…") -> -7.031667174 | L35: =IFERROR(VLOOKUP($B$49&$J35,datasheet!$C$5:$AR$319,L$50,FALSE),"…") -> -3015.848203 | M35: =IFERROR(VLOOKUP($B$49&$J35,datasheet!$C$5:$AR$319,M$50,FALSE),"…") -> -10.54510896 | N35: =IFERROR(VLOOKUP($B$49&$J35,datasheet!$C$5:$AR$319,N$50,FALSE),"…") -> -4522.746473 | Q35: =IFERROR(VLOOKUP($B$49&$J35,datasheet!$C$5:$AR$319,Q$50,FALSE),"…") -> 0 | R35: =IFERROR(VLOOKUP($B$49&$J35,datasheet!$C$5:$AR$319,R$50,FALSE),"…") -> 0 | S35: =IFERROR(VLOOKUP($B$49&$J35,datasheet!$C$5:$AR$319,S$50,FALSE),"…") -> 0 | T35: =IFERROR(VLOOKUP($B$49&$J35,datasheet!$C$5:$AR$319,T$50,FALSE),"…") -> 0
B36: Light/Heavy Manufacturing, Utilities, and Construction | C36: =IF($C$2=Sheet4!$J$12,Main!$C53,IF(OR($C$2=$L$43,$C$2=$L$45),Main!$F53,NA())) -> -6795.67897 | D36: =IF($C$2=Sheet4!$J$12,Main!$D53,IF(OR($C$2=$L$43,$C$2=$L$45),Main!$G53,NA())) -> -10190.68229 | F36: =NA() ->  | G36: =NA() ->  | J36: Business, Trade, Personal, and Public Services | K36: =IFERROR(VLOOKUP($B$49&$J36,datasheet!$C$5:$AR$319,K$50,FALSE),"…") -> -7.115616314 | L36: =IFERROR(VLOOKUP($B$49&$J36,datasheet!$C$5:$AR$319,L$50,FALSE),"…") -> -7135.124103 | M36: =IFERROR(VLOOKUP($B$49&$J36,datasheet!$C$5:$AR$319,M$50,FALSE),"…") -> -10.6689867 | N36: =IFERROR(VLOOKUP($B$49&$J36,datasheet!$C$5:$AR$319,N$50,FALSE),"…") -> -10698.23621 | Q36: =IFERROR(VLOOKUP($B$49&$J36,datasheet!$C$5:$AR$319,Q$50,FALSE),"…") -> 0 | R36: =IFERROR(VLOOKUP($B$49&$J36,datasheet!$C$5:$AR$319,R$50,FALSE),"…") -> 0 | S36: =IFERROR(VLOOKUP($B$49&$J36,datasheet!$C$5:$AR$319,S$50,FALSE),"…") -> 0 | T36: =IFERROR(VLOOKUP($B$49&$J36,datasheet!$C$5:$AR$319,T$50,FALSE),"…") -> 0
B37: Hotel and restaurants and Other Personal Services | C37: =IF($C$2=Sheet4!$J$12,Main!$C54,IF(OR($C$2=$L$43,$C$2=$L$45),Main!$F54,NA())) -> -2134.122961 | D37: =IF($C$2=Sheet4!$J$12,Main!$D54,IF(OR($C$2=$L$43,$C$2=$L$45),Main!$G54,NA())) -> -3196.655344 | F37: =NA() ->  | G37: =NA() ->  | J37: Light/Heavy Manufacturing, Utilities, and Construction | K37: =IFERROR(VLOOKUP($B$49&$J37,datasheet!$C$5:$AR$319,K$50,FALSE),"…") -> -8.748260341 | L37: =IFERROR(VLOOKUP($B$49&$J37,datasheet!$C$5:$AR$319,L$50,FALSE),"…") -> -6795.67897 | M37: =IFERROR(VLOOKUP($B$49&$J37,datasheet!$C$5:$AR$319,M$50,FALSE),"…") -> -13.11873944 | N37: =IFERROR(VLOOKUP($B$49&$J37,datasheet!$C$5:$AR$319,N$50,FALSE),"…") -> -10190.68229 | Q37: =IFERROR(VLOOKUP($B$49&$J37,datasheet!$C$5:$AR$319,Q$50,FALSE),"…") -> 0 | R37: =IFERROR(VLOOKUP($B$49&$J37,datasheet!$C$5:$AR$319,R$50,FALSE),"…") -> 0 | S37: =IFERROR(VLOOKUP($B$49&$J37,datasheet!$C$5:$AR$319,S$50,FALSE),"…") -> 0 | T37: =IFERROR(VLOOKUP($B$49&$J37,datasheet!$C$5:$AR$319,T$50,FALSE),"…") -> 0
B38: Transport services | C38: =IF($C$2=Sheet4!$J$12,Main!$C55,IF(OR($C$2=$L$43,$C$2=$L$45),Main!$F55,NA())) -> -1741.869567 | D38: =IF($C$2=Sheet4!$J$12,Main!$D55,IF(OR($C$2=$L$43,$C$2=$L$45),Main!$G55,NA())) -> -2609.387879 | F38: =NA() ->  | G38: =NA() ->  | J38: Hotel and restaurants and Other Personal Services | K38: =IFERROR(VLOOKUP($B$49&$J38,datasheet!$C$5:$AR$319,K$50,FALSE),"…") -> -7.109883855 | L38: =IFERROR(VLOOKUP($B$49&$J38,datasheet!$C$5:$AR$319,L$50,FALSE),"…") -> -2134.122961 | M38: =IFERROR(VLOOKUP($B$49&$J38,datasheet!$C$5:$AR$319,M$50,FALSE),"…") -> -10.64973698 | N38: =IFERROR(VLOOKUP($B$49&$J38,datasheet!$C$5:$AR$319,N$50,FALSE),"…") -> -3196.655344 | Q38: =IFERROR(VLOOKUP($B$49&$J38,datasheet!$C$5:$AR$319,Q$50,FALSE),"…") -> 0 | R38: =IFERROR(VLOOKUP($B$49&$J38,datasheet!$C$5:$AR$319,R$50,FALSE),"…") -> 0 | S38: =IFERROR(VLOOKUP($B$49&$J38,datasheet!$C$5:$AR$319,S$50,FALSE),"…") -> 0 | T38: =IFERROR(VLOOKUP($B$49&$J38,datasheet!$C$5:$AR$319,T$50,FALSE),"…") -> 0
B39: Global Spillovers (excluding tourism) | D39: =NA() ->  | F39: =IF(OR($C$2=$L$43,$C$2=$L$44,$C$2=$L$45),-D68,NA()) -> -1772.516528 | G39: =IF(OR($C$2=$L$43,$C$2=$L$44,$C$2=$L$45),-F68,NA()) -> -2652.552082 | J39: Transport services | K39: =IFERROR(VLOOKUP($B$49&$J39,datasheet!$C$5:$AR$319,K$50,FALSE),"…") -> -7.519514547 | L39: =IFERROR(VLOOKUP($B$49&$J39,datasheet!$C$5:$AR$319,L$50,FALSE),"…") -> -1741.869567 | M39: =IFERROR(VLOOKUP($B$49&$J39,datasheet!$C$5:$AR$319,M$50,FALSE),"…") -> -11.26452318 | N39: =IFERROR(VLOOKUP($B$49&$J39,datasheet!$C$5:$AR$319,N$50,FALSE),"…") -> -2609.387879 | Q39: =IFERROR(VLOOKUP($B$49&$J39,datasheet!$C$5:$AR$319,Q$50,FALSE),"…") -> 0 | R39: =IFERROR(VLOOKUP($B$49&$J39,datasheet!$C$5:$AR$319,R$50,FALSE),"…") -> 0 | S39: =IFERROR(VLOOKUP($B$49&$J39,datasheet!$C$5:$AR$319,S$50,FALSE),"…") -> 0 | T39: =IFERROR(VLOOKUP($B$49&$J39,datasheet!$C$5:$AR$319,T$50,FALSE),"…") -> 0
B40: International tourism demand decline | C40: =NA() ->  | D40: =NA() ->  | F40: =IF(OR($C$2=$L$43,$C$2=$L$44,$C$2=$L$45),-D69,NA()) -> -190.6421361 | G40: =IF(OR($C$2=$L$43,$C$2=$L$44,$C$2=$L$45),-F69,NA()) -> -275.9284926 | J40: TOTAL (Economy-wide) | K40: =$Q$11 -> -7.598812854 | L40: =SUM(L35:L39) -> -20822.6438 | M40: =S11 -> -11.39228642 | N40: =SUM(N35:N39) -> -31217.7082 | Q40: =IFERROR(VLOOKUP($B$49,datasheet!$BA$5:$CK$67,Q$51,FALSE),"…") -> 0 | R40: =SUM(R35:R39) -> 0 | S40: =IFERROR(VLOOKUP($B$49,datasheet!$BA$5:$CK$67,S$51,FALSE),"…") -> 0 | T40: =SUM(T35:T39) -> 0
B41: Domestic demand decline | C41: =NA() ->  | D41: =NA() ->  | F41: =-IF($C$2=$L$44,0,IF(OR($C$2=$L$43,$C$2=$L$45),$D$70,NA())) -> -18859.48514 | G41: =-IF($C$2=$L$44,0,IF(OR($C$2=$L$43,$C$2=$L$45),$F$70,NA())) -> -28289.22762
C42: =NA() ->  | D42: =NA() ->  | F42: =NA() ->  | G42: =NA() -> 
B43: total | C43: =SUM(C34:C38) -> -20822.6438 | D43: =SUM(D34:D38) -> -31217.7082 | F43: =SUM(F39:F41) -> -20822.6438 | G43: =SUM(G39:G41) -> -31217.7082 | L43: Total impact from COVID-19
L44: Impact from global spillovers only
L45: Total impact if significant outbreak occurs
B47: =C2 -> Total impact from COVID-19
B48: GDP losses (in $ Mn)
B49: =VLOOKUP($C$1,Sheet4!$A$2:$B$63,2,FALSE) -> BAN | C49: =VLOOKUP($C$1,Sheet4!$E$7:$G$30,3,FALSE) -> outbreak | D49: =VLOOKUP($B$49,datasheet2!$A$2:$P$46,16,FALSE) -> Bangladesh has more than 1,000 COVID-19 cases as of 31 May 2020.
C50: Shorter-containment | D50: Longer-containment | F50: Shorter-containment | G50: Longer-containment | K50: 19 | L50: =$K$50+12 -> 31 | M50: =$K$50+1 -> 20 | N50: =$K$50+13 -> 32 | Q50: =$K$50+2 -> 21 | R50: =$K$50+14 -> 33 | S50: =$K$50+3 -> 22 | T50: =$K$50+15 -> 34
B51: Agriculture, Mining and Quarrying | C51: =VLOOKUP($B$49&$B51,datasheet!$C$5:$AR$319,C$62,FALSE) -> -3015.848203 | D51: =VLOOKUP($B$49&$B51,datasheet!$C$5:$AR$319,D$62,FALSE) -> -4522.746473 | F51: =IFERROR(C51+VLOOKUP($B$49&$B51,datasheet!$C$5:$AR$319,F$62,FALSE),C51) -> -3015.848203 | G51: =IFERROR(D51+VLOOKUP($B$49&$B51,datasheet!$C$5:$AR$319,G$62,FALSE),D51) -> -4522.746473 | K51: 2 | M51: =$K$51+1 -> 3 | Q51: =$K$51+2 -> 4 | S51: =$K$51+3 -> 5
B52: Business, Trade, Personal, and Public Services | C52: =VLOOKUP($B$49&$B52,datasheet!$C$5:$AR$319,C$62,FALSE) -> -7135.124103 | D52: =VLOOKUP($B$49&$B52,datasheet!$C$5:$AR$319,D$62,FALSE) -> -10698.23621 | F52: =IFERROR(C52+VLOOKUP($B$49&$B52,datasheet!$C$5:$AR$319,F$62,FALSE),C52) -> -7135.124103 | G52: =IFERROR(D52+VLOOKUP($B$49&$B52,datasheet!$C$5:$AR$319,G$62,FALSE),D52) -> -10698.23621
B53: Light/Heavy Manufacturing, Utilities, and Construction | C53: =VLOOKUP($B$49&$B53,datasheet!$C$5:$AR$319,C$62,FALSE) -> -6795.67897 | D53: =VLOOKUP($B$49&$B53,datasheet!$C$5:$AR$319,D$62,FALSE) -> -10190.68229 | F53: =IFERROR(C53+VLOOKUP($B$49&$B53,datasheet!$C$5:$AR$319,F$62,FALSE),C53) -> -6795.67897 | G53: =IFERROR(D53+VLOOKUP($B$49&$B53,datasheet!$C$5:$AR$319,G$62,FALSE),D53) -> -10190.68229 | K53: =VLOOKUP($B$49,datasheet2!$A$2:$C$46,3,FALSE) -> 1
B54: Hotel and restaurants and Other Personal Services | C54: =VLOOKUP($B$49&$B54,datasheet!$C$5:$AR$319,C$62,FALSE) -> -2134.122961 | D54: =VLOOKUP($B$49&$B54,datasheet!$C$5:$AR$319,D$62,FALSE) -> -3196.655344 | F54: =IFERROR(C54+VLOOKUP($B$49&$B54,datasheet!$C$5:$AR$319,F$62,FALSE),C54) -> -2134.122961 | G54: =IFERROR(D54+VLOOKUP($B$49&$B54,datasheet!$C$5:$AR$319,G$62,FALSE),D54) -> -3196.655344
B55: Transport services | C55: =VLOOKUP($B$49&$B55,datasheet!$C$5:$AR$319,C$62,FALSE) -> -1741.869567 | D55: =VLOOKUP($B$49&$B55,datasheet!$C$5:$AR$319,D$62,FALSE) -> -2609.387879 | F55: =IFERROR(C55+VLOOKUP($B$49&$B55,datasheet!$C$5:$AR$319,F$62,FALSE),C55) -> -1741.869567 | G55: =IFERROR(D55+VLOOKUP($B$49&$B55,datasheet!$C$5:$AR$319,G$62,FALSE),D55) -> -2609.387879
B58: econ-wide GDP impact(%)
C62: =$L$50 -> 31 | D62: =$N$50 -> 32 | F62: =$R$50 -> 33 | G62: =$T$50 -> 34
B66: =VLOOKUP($C$1,datasheet2!$B$2:$K$62,10,FALSE) -> 274024.959 | C66: sc | D66: sc | E66: lc | F66: lc
B68: Global Spillovers (excluding tourism) | C68: =VLOOKUP($C$1,datasheet2!$B$2:$J$62,4,FALSE) -> -0.6468449205 | D68: =-C68*$B$66/100 -> 1772.516528 | E68: =VLOOKUP($C$1,datasheet2!$B$2:$J$62,7,FALSE) -> -0.9679965256 | F68: =-E68*$B$66/100 -> 2652.552082
B69: International tourism demand decline | C69: =VLOOKUP($C$1,datasheet2!$B$2:$J$62,5,FALSE) -> -0.06957108461 | D69: =-C69*$B$66/100 -> 190.6421361 | E69: =VLOOKUP($C$1,datasheet2!$B$2:$J$62,8,FALSE) -> -0.100694657 | F69: =-E69*$B$66/100 -> 275.9284926
B70: Domestic demand decline | C70: =VLOOKUP($C$1,datasheet2!$B$2:$J$62,6,FALSE) -> -6.882396848 | D70: 18859.48514 | E70: =VLOOKUP($C$1,datasheet2!$B$2:$J$62,9,FALSE) -> -10.32359524 | F70: 28289.22762
... 1 more rows

Sheet Scenario assumptions
A1: Economy | C1: Consumption shocks (% decline in consumption growth) | E1: Investment shocks (% decline in investment growth) | G1: Decline in tourism receipts (% of GDP) | I1: Average Stringency Index | J1: Average Mobility
C2: Shorter- containment | D2: Longer- containment | E2: Shorter- containment | F2: Longer- containment | G2: Shorter- containment | H2: Longer- containment
A3: Bangladesh | B3: BAN | C3: 7.702633858 | D3: 11.55395126 | E3: 12.10108852 | F3: 18.15163231 | G3: -0.07279371469 | H3: -0.1053636187 | I3: 92.5 | J3: -56.6
A4: Bhutan | B4: BTN | C4: 6.597817421 | D4: 9.896726608 | E4: 9.569112778 | F4: 14.35366917 | G4: -2.763291987 | H4: -3.999664252 | I4: 84.1 | J4: no data
A5: Brunei Darussalam | B5: BRN | C5: 6.424676895 | D5: 9.637015343 | E5: 8.973723412 | F5: 13.46058464 | G5: -0.7824851346 | H5: -1.13259032 | I5: 57.4 | J5: no data
A6: Cambodia | B6: CAM | C6: 4.26655674 | D6: 6.39983511 | E6: 6.263052464 | F6: 9.394578934 | G6: -10.99970842 | H6: -15.92127826 | I6: no data | J6: -33.7
A7: Fiji | B7: FIJ | C7: 4.970715046 | D7: 7.456072807 | E7: 7.332787037 | F7: 10.99918079 | G7: -13.82555023 | H7: -20.01147774 | I7: no data | J7: -33.4
A8: Hong Kong, China | B8: HKG | C8: 5.199999809 | D8: 7.799999714 | E8: 9.899999619 | F8: 14.84999943 | G8: -6.380199717 | H8: -9.234875309 | I8: 60.6 | J8: -18.8
A9: India | B9: IND | C9: 6.400000095 | D9: 9.600000381 | E9: 10.89999962 | F9: 16.34999847 | G9: -0.5989401459 | H9: -0.8669222538 | I9: 86.8 | J9: -52.9
A10: Indonesia | B10: IDN | C10: 5 | D10: 7.5 | E10: 6.5 | F10: 9.75 | G10: -0.836362807 | H10: -1.2105743 | I10: 61.4 | J10: -32.5
A11: Kazakhstan | B11: KAZ | C11: 7.464303493 | D11: 11.196455 | E11: 11.33126926 | F11: 16.99690437 | G11: -0.8259411162 | H11: -1.195489827 | I11: 82.8 | J11: -40.8
A12: Kyrgyz Republic | B12: KGZ | C12: 7.98655653 | D12: 11.97983456 | E12: 12.60508156 | F12: 18.90762329 | G12: -3.36237156 | H12: -4.86678844 | I12: 85.4 | J12: -59.3
A13: Lao People's Democratic Republic | B13: LAO | C13: 3.669406414 | D13: 5.504109383 | E13: 5.418725967 | F13: 8.128088951 | G13: -2.355902619 | H13: -3.409997984 | I13: 90.6 | J13: -42
A14: Malaysia | B14: MAL | C14: 6.699999809 | D14: 10.04999924 | E14: 8.600000381 | F14: 12.90000057 | G14: -3.39286771 | H14: -4.910929434 | I14: 64.9 | J14: -51.8
A15: Maldives | B15: MDV | C15: 7.307225704 | D15: 10.96083832 | E15: 11.06385803 | F15: 16.59578705 | G15: -32.03067129 | H15: -46.36207038 | I15: no data | J15: no data
A16: Mongolia | B16: MON | C16: 3.78200984 | D16: 5.673014641 | E16: 4.670749187 | F16: 7.006123543 | G16: -2.248508586 | H16: -3.254552814 | I16: 68 | J16: -0.5
A17: Nepal | B17: NPL | C17: 6.275713921 | D17: 9.413570404 | E17: 10.06108952 | F17: 15.09163475 | G17: -1.431488673 | H17: -2.071975741 | I17: 95.2 | J17: -62
A18: Pakistan | B18: PAK | C18: 7.257259846 | D18: 10.88589001 | E18: 11.11196995 | F18: 16.6679554 | G18: -0.1451792062 | H18: -0.2101848209 | I18: 90.1 | J18: -44.6
A19: People's Republic of China | B19: CHN | C19: 5.457272053 | D19: 8.185908318 | E19: 7.1442132 | F19: 10.71632004 | G19: -0.1395025724 | H19: -0.2019198299 | I19: 57.5 | J19: no data
A20: Philippines | B20: PHI | C20: 6.199999809 | D20: 9.299999237 | E20: 13.30000019 | F20: 19.95000076 | G20: -1.64074762 | H20: -2.37486286 | I20: 92.9 | J20: -63.2
A21: Republic of Korea | B21: KOR | C21: 4.800000191 | D21: 7.200000286 | E21: 2.299999952 | F21: 3.449999809 | G21: -0.6826953525 | H21: -0.9881518755 | I21: 63.1 | J21: -4.2
A22: Singapore | B22: SIN | C22: 7.300000191 | D22: 10.95000076 | E22: 7.699999809 | F22: 11.54999924 | G22: -3.132561074 | H22: -4.534154611 | I22: 55.6 | J22: -25.9
A23: Sri Lanka | B23: SRI | C23: 7.325242519 | D23: 10.98786354 | E23: 11.77732849 | F23: 17.66599274 | G23: -3.52468284 | H23: -5.101722034 | I23: 90.5 | J23: -66.4
A24: Taipei,China | B24: TAP | C24: 2 | D24: 3 | E24: 2.700000048 | F24: 4.050000191 | G24: -2.406300091 | H24: -3.482944247 | I24: 29.7 | J24: -6.9
A25: Thailand | B25: THA | C25: 6.599999905 | D25: 9.899999619 | E25: 8.899999619 | F25: 13.34999943 | G25: -7.218707735 | H25: -10.44855371 | I25: 71.2 | J25: -33.7
A26: Viet Nam | B26: VIE | C26: 3.568361044 | D26: 5.352541447 | E26: 5.133813858 | F26: 7.700720787 | G26: -2.296850994 | H26: -3.324524581 | I26: 75.5 | J26: -31.2

Sheet datasheet (hidden)
I2: Impact decomp | J2: Impact decomp | K2: Impact decomp | L2: Impact decomp | M2: Impact decomp | N2: Impact decomp | O2: Impact decomp | P2: Impact decomp | Q2: Impact decomp | R2: Impact decomp | S2: Impact decomp | T2: Impact decomp | U2: sectoral impact | V2: sectoral impact | W2: sectoral impact | X2: sectoral impact | Y2: sectoral impact | Z2: sectoral impact | AA2: sectoral impact | AB2: sectoral impact | AC2: sectoral impact | AD2: sectoral impact | AE2: sectoral impact | AF2: sectoral impact | AG2: losses | AH2: losses | AI2: losses | AJ2: losses | AK2: losses | AL2: losses | AM2: losses | AN2: losses | AO2: losses | AP2: losses | AQ2: losses | AR2: losses | BA2: Economy-wide
C3: 1 | D3: 2 | E3: 3 | F3: 4 | G3: 5 | H3: 6 | I3: 7 | J3: 8 | K3: 9 | L3: 10 | M3: 11 | N3: 12 | O3: 13 | P3: 14 | Q3: 15 | R3: 16 | S3: 17 | T3: 18 | U3: 19 | V3: 20 | W3: 21 | X3: 22 | Y3: 23 | Z3: 24 | AA3: 25 | AB3: 26 | AC3: 27 | AD3: 28 | AE3: 29 | AF3: 30 | AG3: 31 | AH3: 32 | AI3: 33 | AJ3: 34 | AK3: 35 | AL3: 36 | AM3: 37 | AN3: 38 | AO3: 39 | AP3: 40 | AQ3: 41 | AR3: 42 | BA3: 1 | BB3: 2 | BC3: 3 | BD3: 4 | BE3: 5 | BF3: 6 | BG3: 7 | BH3: 8 | BI3: 9 | BJ3: 10 | BK3: 11 | BL3: 12 | BM3: 13 | BN3: 14 | BO3: 15 | BP3: 16 | BQ3: 17 | BR3: 18 | BS3: 19 | BT3: 20 | BU3: 21 | BV3: 22 | BW3: 23 | BX3: 24 | BY3: 25 | BZ3: 26 | CA3: 27 | CB3: 28 | CC3: 29 | CD3: 30 | CE3: 31 | CF3: 32 | CG3: 33 | CH3: 34 | CI3: 35 | CJ3: 36 | CK3: 37
A4: mrio_code | B4: sec | C4: id | D4: f_base | E4: x_base | F4: va_base | G4: emp_base | H4: exp_base | I4: d_va_pct_sc | J4: d_va_pct_lc | K4: d_va_pct_sc_addtl | L4: d_va_pct_lc_addtl | M4: d_emp_pct_sc | N4: d_emp_pct_lc | O4: d_emp_pct_sc_addtl | P4: d_emp_pct_lc_addtl | Q4: d_exp_pct_sc | R4: d_exp_pct_lc | S4: d_exp_pct_sc_addtl | T4: d_exp_pct_lc_addtl | U4: d_va_secpct_sc | V4: d_va_secpct_lc | W4: d_va_secpct_sc_addtl | X4: d_va_secpct_lc_addtl | Y4: d_emp_secpct_sc | Z4: d_emp_secpct_lc | AA4: d_emp_secpct_sc_addtl | AB4: d_emp_secpct_lc_addtl | AC4: d_exp_secpct_sc | AD4: d_exp_secpct_lc | AE4: d_exp_secpct_sc_addtl | AF4: d_exp_secpct_lc_addtl | AG4: d_va_absolute_sc | AH4: d_va_absolute_lc | AI4: d_va_absolute_sc_addtl | AJ4: d_va_absolute_lc_addtl | AK4: d_emp_absolute_sc | AL4: d_emp_absolute_lc | AM4: d_emp_absolute_sc_addtl | AN4: d_emp_absolute_lc_addtl | AO4: d_exp_absolute_sc | AP4: d_exp_absolute_lc | AQ4: d_exp_absolute_sc_addtl | AR4: d_exp_absolute_lc_addtl | AT4: 2018 GDP (in $Mn) | AU4: 2018 Total exports Goods and services (in $Mn) | AV4: Emp base (2016) in 000 | BA4: mrio_code | BB4: d_va_pct_sc | BC4: d_va_pct_lc | BD4: d_va_pct_sc_addtl | BE4: d_va_pct_lc_addtl | BF4: d_emp_pct_sc | BG4: d_emp_pct_lc | BH4: d_emp_pct_sc_addtl | BI4: d_emp_pct_lc_addtl | BJ4: d_exp_pct_sc | BK4: d_exp_pct_lc | BL4: d_exp_pct_sc_addtl | BM4: d_exp_pct_lc_addtl | BN4: d_va_secpct_sc | BO4: d_va_secpct_lc | BP4: d_va_secpct_sc_addtl | BQ4: d_va_secpct_lc_addtl | BR4: d_emp_secpct_sc | BS4: d_emp_secpct_lc | BT4: d_emp_secpct_sc_addtl | BU4: d_emp_secpct_lc_addtl | BV4: d_exp_secpct_sc | BW4: d_exp_secpct_lc | BX4: d_exp_secpct_sc_addtl | BY4: d_exp_secpct_lc_addtl | BZ4: d_va_absolute_sc | CA4: d_va_absolute_lc | CB4: d_va_absolute_sc_addtl | CC4: d_va_absolute_lc_addtl | CD4: d_emp_absolute_sc | CE4: d_emp_absolute_lc | CF4: d_emp_absolute_sc_addtl | CG4: d_emp_absolute_lc_addtl | CH4: d_exp_absolute_sc | CI4: d_exp_absolute_lc | CJ4: d_exp_absolute_sc_addtl | CK4: d_exp_absolute_lc_addtl
A5: AUS | B5: Agriculture, Mining and Quarrying | C5: =A5&B5 -> AUSAgriculture, Mining and Quarrying | D5: 29162.90748 | E5: 315655.1478 | F5: 163229.961 | G5: 660.8151106 | H5: 204727.9434 | I5: -0.8297102161 | J5: -1.237514021 | K5: 0 | L5: 0 | M5: -0.3508817847 | N5: -0.5230076824 | O5: 0 | P5: 0 | Q5: -3.840209036 | R5: -5.730125571 | S5: 0 | T5: 0 | U5: -6.869753291 | V5: -10.24624725 | W5: 0 | X5: 0 | Y5: -7.195541879 | Z5: -10.72533214 | AA5: 0 | AB5: 0 | AC5: -6.666956317 | AD5: -9.948025357 | AE5: 0 | AF5: 0 | AG5: -11897.25087 | AH5: -17744.76736 | AI5: 0 | AJ5: 0 | AK5: 47.54922826 | AL5: 70.87461578 | AM5: 0 | AN5: 0 | AO5: 12006.71822 | AP5: 17915.6922 | AQ5: 0 | AR5: 0 | AT5: 1433904.349 | AU5: 312657.9335 | AV5: 13551.35272 | BA5: AUS | BB5: -9.051650269 | BC5: -13.47980729 | BD5: 0 | BE5: 0 | BF5: -9.97706193 | BG5: -14.82537507 | BH5: 0 | BI5: 0 | BJ5: -8.399013262 | BK5: -12.47944392 | BL5: 0 | BM5: 0 | BN5: -59.62704519 | BO5: -88.18250718 | BP5: 0 | BQ5: 0 | BR5: -63.13719815 | BS5: -93.29331674 | BT5: 0 | BU5: 0 | BV5: -65.62825989 | BW5: -96.6949595 | BX5: 0 | BY5: 0 | BZ5: 129792.0068 | CA5: 193287.5428 | CB5: 0 | CC5: 0 | CD5: 1352.026853 | CE5: 2009.038867 | CF5: 0 | CG5: 0 | CH5: 26260.1813 | CI5: 39017.97149 | CJ5: 0 | CK5: 0
A6: AUS | B6: Business, Trade, Personal, and Public Services | C6: =A6&B6 -> AUSBusiness, Trade, Personal, and Public Services | D6: 768550.1516 | E6: 1415595.725 | F6: 823557.5745 | G6: 8316.802728 | H6: 48106.08456 | I6: -4.708985423 | J6: -7.036113573 | K6: 0 | L6: 0 | M6: -4.690073818 | N6: -7.008205563 | O6: 0 | P6: 0 | Q6: -1.103695603 | R6: -1.647998976 | S6: 0 | T6: 0 | U6: -7.727659192 | V6: -11.5465823 | W6: 0 | X6: 0 | Y6: -7.6419805 | Z6: -11.41913162 | AA6: 0 | AB6: 0 | AC6: -8.154534421 | AD6: -12.17606044 | AE6: 0 | AF6: 0 | AG6: -67522.34676 | AH6: -100891.1385 | AI6: 0 | AJ6: 0 | AK6: 635.5684458 | AL6: 949.706655 | AM6: 0 | AN6: 0 | AO6: 3450.791865 | AP6: 5152.599541 | AQ6: 0 | AR6: 0 | AT6: 1433904.349 | AU6: 312657.9335 | AV6: 13551.35272 | BA6: AUT | BB6: -9.985990404 | BC6: -14.8193665 | BD6: 0 | BE6: 0 | BF6: -10.07772945 | BG6: -14.94932026 | BH6: 0 | BI6: 0 | BJ6: -8.834303263 | BK6: -13.13173132 | BL6: 0 | BM6: 0 | BN6: -68.97827638 | BO6: -101.5643386 | BP6: 0 | BQ6: 0 | BR6: -70.45855521 | BS6: -103.7031347 | BT6: 0 | BU6: 0 | BV6: -73.30014454 | BW6: -107.7942954 | BX6: 0 | BY6: 0 | BZ6: 45464.7981 | CA6: 67470.474 | CB6: 0 | CC6: 0 | CD6: 522.134804 | CE6: 774.5356178 | CF6: 0 | CG6: 0 | CH6: 22425.74637 | CI6: 33334.70305 | CJ6: 0 | CK6: 0
A7: AUS | B7: Hotel and restaurants and Other Personal Services | C7: AUSHotel and restaurants and Other Personal Services | D7: 91758.76676 | E7: 144091.3706 | F7: 70621.54419 | G7: 1552.451833 | H7: 9675.130651 | I7: -0.8979587062 | J7: -1.31744882 | K7: 0 | L7: 0 | M7: -2.114482093 | N7: -3.099968972 | O7: 0 | P7: 0 | Q7: -0.5319927175 | R7: -0.7788601528 | S7: 0 | T7: 0 | U7: -17.1843748 | V7: -25.21222206 | W7: 0 | X7: 0 | Y7: -18.45731501 | Z7: -27.05963036 | AA7: 0 | AB7: 0 | AC7: -19.54333683 | AD7: -28.61228322 | AE7: 0 | AF7: 0 | AG7: -12875.86894 | AH7: -18890.95592 | AI7: 0 | AJ7: 0 | AK7: 286.5409265 | AL7: 420.0877294 | AM7: 0 | AN7: 0 | AO7: 1663.317437 | AP7: 2435.168059 | AQ7: 0 | AR7: 0 | AT7: 1433904.349 | AU7: 312657.9335 | AV7: 13551.35272 | BA7: BAN | BB7: -7.598812854 | BC7: -11.39228642 | BD7: 0 | BE7: 0 | BF7: -7.233355291 | BG7: -10.84549254 | BH7: 0 | BI7: 0 | BJ7: -6.321183224 | BK7: -9.475277219 | BL7: 0 | BM7: 0 | BN7: -37.52494223 | BO7: -56.24709526 | BP7: 0 | BQ7: 0 | BR7: -36.65299474 | BS7: -54.9378233 | BT7: 0 | BU7: 0 | BV7: -37.35436664 | BW7: -55.81453709 | BX7: 0 | BY7: 0 | BZ7: 20822.6438 | CA7: 31217.7082 | CB7: 0 | CC7: 0 | CD7: 5077.200827 | CE7: 7612.614268 | CF7: 0 | CG7: 0 | CH7: 2563.765693 | CI7: 3843.013215 | CJ7: 0 | CK7: 0
A8: AUS | B8: Light/Heavy Manufacturing, Utilities, and Construction | C8: AUSLight/Heavy Manufacturing, Utilities, and Construction | D8: 320883.1907 | E8: 745533.4943 | F8: 231308.1625 | G8: 2373.180907 | H8: 74349.83385 | I8: -1.813845096 | J8: -2.712070157 | K8: 0 | L8: 0 | M8: -1.918260149 | N8: -2.8691446 | O8: 0 | P8: 0 | Q8: -1.719263134 | R8: -2.561182833 | S8: 0 | T8: 0 | U8: -10.5979976 | V8: -15.84617841 | W8: 0 | X8: 0 | Y8: -10.95366126 | Z8: -16.38340767 | AA8: 0 | AB8: 0 | AC8: -8.218871994 | AD8: -12.24363708 | AE8: 0 | AF8: 0 | AG8: -26008.80371 | AH8: -38888.49191 | AI8: 0 | AJ8: 0 | AK8: 259.9501988 | AL8: 388.8079047 | AM8: 0 | AN8: 0 | AO8: 5375.412585 | AP8: 8007.741319 | AQ8: 0 | AR8: 0 | AT8: 1433904.349 | AU8: 312657.9335 | AV8: 13551.35272 | BA8: BEL | BB8: -8.40532877 | BC8: -12.54310196 | BD8: 0 | BE8: 0 | BF8: -8.464187961 | BG8: -12.63007676 | BH8: 0 | BI8: 0 | BJ8: -8.851912005 | BK8: -13.17681762 | BL8: 0 | BM8: 0 | BN8: -48.21879165 | BO8: -71.57561707 | BP8: 0 | BQ8: 0 | BR8: -48.86588667 | BS8: -72.54096475 | BT8: 0 | BU8: 0 | BV8: -50.55398161 | BW8: -74.88037296 | BX8: 0 | BY8: 0 | BZ8: 45620.85423 | CA8: 68079.07721 | CB8: 0 | CC8: 0 | CD8: 438.7495469 | CE8: 654.6925095 | CF8: 0 | CG8: 0 | CH8: 39673.29459 | CI8: 59057.04517 | CJ8: 0 | CK8: 0
A9: AUS | B9: Transport services | C9: AUSTransport services | D9: 41499.45999 | E9: 131974.5907 | F9: 62778.18384 | G9: 648.1020723 | H9: 18567.55926 | I9: -0.8011508271 | J9: -1.176660715 | K9: 0 | L9: 0 | M9: -0.9033640855 | N9: -1.325048248 | O9: 0 | P9: 0 | Q9: -1.203852772 | R9: -1.761276393 | S9: 0 | T9: 0 | U9: -17.24726031 | V9: -25.33127715 | W9: 0 | X9: 0 | Y9: -18.88869951 | Z9: -27.70581494 | AA9: 0 | AB9: 0 | AC9: -23.04456033 | AD9: -33.71495339 | AE9: 0 | AF9: 0 | AG9: -11487.73655 | AH9: -16872.18916 | AI9: 0 | AJ9: 0 | AK9: 122.4180535 | AL9: 179.5619617 | AM9: 0 | AN9: 0 | AO9: 3763.941198 | AP9: 5506.770373 | AQ9: 0 | AR9: 0 | AT9: 1433904.349 | AU9: 312657.9335 | AV9: 13551.35272 | BA9: BGR | BB9: -10.02955726 | BC9: -14.85809509 | BD9: 0 | BE9: 0 | BF9: -9.505827624 | BG9: -14.1016024 | BH9: 0 | BI9: 0 | BJ9: -11.38771447 | BK9: -16.82785904 | BL9: 0 | BM9: 0 | BN9: -68.75327112 | BO9: -101.2078957 | BP9: 0 | BQ9: 0 | BR9: -68.29941891 | BS9: -100.5793724 | BT9: 0 | BU9: 0 | BV9: -82.50675493 | BW9: -121.0837313 | BX9: 0 | BY9: 0 | BZ9: 6532.546626 | CA9: 9677.515809 | CB9: 0 | CC9: 0 | CD9: 404.6050948 | CE9: 600.2191922 | CF9: 0 | CG9: 0 | CH9: 4965.050382 | CI9: 7336.956695 | CJ9: 0 | CK9: 0
A10: AUT | B10: Agriculture, Mining and Quarrying | C10: AUTAgriculture, Mining and Quarrying | D10: 2149.235055 | E10: 14437.47554 | F10: 6302.305264 | G10: 303.6041983 | H10: 2985.008502 | I10: -0.1165145627 | J10: -0.1733506817 | K10: 0 | L10: 0 | M10: -0.4174964904 | N10: -0.6217042487 | O10: 0 | P10: 0 | Q10: -0.100075083 | R10: -0.1488474351 | S10: 0 | T10: 0 | U10: -7.544452879 | V10: -11.22465741 | W10: 0 | X10: 0 | Y10: -7.124673909 | Z10: -10.60952641 | AA10: 0 | AB10: 0 | AC10: -7.697262924 | AD10: -11.44858249 | AE10: 0 | AF10: 0 | AG10: -530.4742797 | AH10: -789.2410691 | AI10: 0 | AJ10: 0 | AK10: 21.63080973 | AL10: 32.21096853 | AM10: 0 | AN10: 0 | AO10: 254.0390977 | AP10: 377.8469821 | AQ10: 0 | AR10: 0 | AT10: 455285.818 | AU10: 253848.5006 | AV10: 5181.075824 | BA10: BRA | BB10: -8.248641531 | BC10: -12.35354146 | BD10: 0 | BE10: 0 | BF10: -8.364127739 | BG10: -12.52369192 | BH10: 0 | BI10: 0 | BJ10: -7.942629641 | BK10: -11.88403282 | BL10: 0 | BM10: 0 | BN10: -41.87419238 | BO10: -62.63532941 | BP10: 0 | BQ10: 0 | BR10: -42.06318951 | BS10: -62.95552347 | BT10: 0 | BU10: 0 | BV10: -43.78450202 | BW10: -65.32009569 | BX10: 0 | BY10: 0 | BZ10: 154136.2676 | CA10: 230841.4984 | CB10: 0 | CC10: 0 | CD10: 9588.614927 | CE10: 14357.12881 | CF10: 0 | CG10: 0 | CH10: 21973.81161 | CI10: 32877.96489 | CJ10: 0 | CK10: 0
A11: AUT | B11: Business, Trade, Personal, and Public Services | C11: AUTBusiness, Trade, Personal, and Public Services | D11: 210951.0934 | E11: 373626.7698 | F11: 223166.5391 | G11: 2754.297709 | H11: 32678.15018 | I11: -4.287097278 | J11: -6.405980272 | K11: 0 | L11: 0 | M11: -4.08462546 | N11: -6.107031882 | O11: 0 | P11: 0 | Q11: -1.22110146 | R11: -1.822751392 | S11: 0 | T11: 0 | U11: -7.839371325 | V11: -11.71395347 | W11: 0 | X11: 0 | Y11: -7.68353891 | Z11: -11.48786285 | AA11: 0 | AB11: 0 | AC11: -8.579267731 | AD11: -12.80636598 | AE11: 0 | AF11: 0 | AG11: -19518.54591 | AH11: -29165.51968 | AI11: 0 | AJ11: 0 | AK11: 211.6275422 | AL11: 316.4099524 | AM11: 0 | AN11: 0 | AO11: 3099.747746 | AP11: 4627.027076 | AQ11: 0 | AR11: 0 | AT11: 455285.818 | AU11: 253848.5006 | AV11: 5181.075824 | BA11: BRN | BB11: -3.538032595 | BC11: -5.230842818 | BD11: -2.144753452 | BE11: -3.217130041 | BF11: -1.792473435 | BG11: -2.626989389 | BH11: -2.811364193 | BI11: -4.217046173 | BJ11: -5.048697047 | BK11: -7.476222033 | BL11: -1.461281374 | BM11: -2.191921968 | BN11: -38.35777762 | BO11: -56.0089155 | BP11: -9.485344493 | BQ11: -14.22801608 | BR11: -35.27753648 | BS11: -51.34647742 | BT11: -12.72127388 | BU11: -19.08191005 | BV11: -36.89842673 | BW11: -53.97825374 | BX11: -9.499096126 | BY11: -14.24864359 | BZ11: 480.0173069 | CA11: 709.6868145 | CB11: 290.9862327 | CC11: 436.4793304 | CD11: 3.624840892 | CE11: 5.312446127 | CF11: 5.685299257 | CG11: 8.527948649 | CH11: 355.7228287 | CI11: 526.762217 | CJ11: 102.9594644 | CK11: 154.4391901
A12: AUT | B12: Hotel and restaurants and Other Personal Services | C12: AUTHotel and restaurants and Other Personal Services | D12: 42088.62739 | E12: 62737.79163 | F12: 45084.57881 | G12: 649.3235988 | H12: 5023.724722 | I12: -1.932105412 | J12: -2.833821242 | K12: 0 | L12: 0 | M12: -2.19142839 | N12: -3.213982135 | O12: 0 | P12: 0 | Q12: -0.3915399362 | R12: -0.5740571933 | S12: 0 | T12: 0 | U12: -17.48838785 | V12: -25.65023869 | W12: 0 | X12: 0 | Y12: -17.48582116 | Z12: -25.64497069 | AA12: 0 | AB12: 0 | AC12: -17.89394783 | AD12: -26.23525346 | AE12: 0 | AF12: 0 | AG12: -8796.601929 | AH12: -12901.98622 | AI12: 0 | AJ12: 0 | AK12: 113.5395665 | AL12: 166.5188514 | AM12: 0 | AN12: 0 | AO12: 993.9182572 | AP12: 1457.235578 | AQ12: 0 | AR12: 0 | AT12: 455285.818 | AU12: 253848.5006 | AV12: 5181.075824 | BA12: BTN | BB12: -3.813752882 | BC12: -5.588083256 | BD12: -5.044632522 | BE12: -7.566949052 | BF12: -2.860282197 | BG12: -4.193043181 | BH12: -4.740153376 | BI12: -7.11023036 | BJ12: -7.817003681 | BK12: -11.44428001 | BL12: -3.686934743 | BM12: -5.530402391 | BN12: -58.0895233 | BO12: -84.52926514 | BP12: -21.77723574 | BQ12: -32.66585564 | BR12: -45.20656412 | BS12: -65.81440771 | BT12: -21.89125138 | BU12: -32.83687878 | BV12: -67.38788855 | BW12: -98.17309877 | BX12: -18.27206412 | BY12: -27.40809829 | BZ12: 96.67730695 | CA12: 141.6559638 | CB12: 127.879677 | CC12: 191.8195224 | CD12: 13.57993217 | CE12: 19.90756088 | CF12: 22.50510855 | CG12: 33.75766423 | CH12: 58.94020775 | CI12: 86.28987125 | CJ12: 27.79948796 | CK12: 41.69923403
A13: AUT | B13: Light/Heavy Manufacturing, Utilities, and Construction | C13: AUTLight/Heavy Manufacturing, Utilities, and Construction | D13: 180993.8531 | E13: 446251.6124 | F13: 112879.7559 | G13: 1222.710518 | H13: 178148.5038 | I13: -2.23155933 | J13: -3.335949051 | K13: 0 | L13: 0 | M13: -1.930835142 | N13: -2.887027119 | O13: 0 | P13: 0 | Q13: -5.628211201 | R13: -8.409148704 | S13: 0 | T13: 0 | U13: -8.06750703 | V13: -12.06008376 | W13: 0 | X13: 0 | Y13: -8.181661022 | Z13: -12.23339929 | AA13: 0 | AB13: 0 | AC13: -7.253441985 | AD13: -10.83741709 | AE13: 0 | AF13: 0 | AG13: -10159.97315 | AH13: -15188.10293 | AI13: 0 | AJ13: 0 | AK13: 100.0380327 | AL13: 149.5790641 | AM13: 0 | AN13: 0 | AO13: 14287.12974 | AP13: 21346.4979 | AQ13: 0 | AR13: 0 | AT13: 455285.818 | AU13: 253848.5006 | AV13: 5181.075824 | BA13: CAM | BB13: -11.05957054 | BC13: -16.09000999 | BD13: -2.731859216 | BE13: -4.09778909 | BF13: -6.440266106 | BG13: -9.373149395 | BH13: -2.947499388 | BI13: -4.421249315 | BJ13: -13.26635032 | BK13: -19.39567967 | BL13: -1.127921679 | BM13: -1.691882882 | BN13: -117.1315869 | BO13: -169.9917698 | BP13: -12.90315162 | BQ13: -19.35472943 | BR13: -117.3134458 | BS13: -170.1615794 | BT13: -13.90696419 | BU13: -20.86044796 | BV13: -120.2766738 | BW13: -174.7700766 | BX13: -9.21062506 | BY13: -13.81594025 | BZ13: 2714.292232 | CA13: 3948.886529 | CB13: 670.4658396 | CC13: 1005.698825 | CD13: 632.8350209 | CE13: 921.026724 | CF13: 289.6279138 | CG13: 434.4418936 | CH13: 2005.489493 | CI13: 2932.067288 | CJ13: 170.5092223 | CK13: 255.7638885
A14: AUT | B14: Transport services | C14: AUTTransport services | D14: 13217.49306 | E14: 37777.91009 | F14: 20648.38611 | G14: 251.1396515 | H14: 10756.18121 | I14: -1.418713822 | J14: -2.070265254 | K14: 0 | L14: 0 | M14: -1.453343965 | N14: -2.119574874 | O14: 0 | P14: 0 | Q14: -1.493375583 | R14: -2.176926594 | S14: 0 | T14: 0 | U14: -28.03855729 | V14: -40.91540522 | W14: 0 | X14: 0 | Y14: -29.98286021 | Z14: -43.72737541 | AA14: 0 | AB14: 0 | AC14: -31.87622407 | AD14: -46.46667636 | AE14: 0 | AF14: 0 | AG14: -6459.20283 | AH14: -9425.624095 | AI14: 0 | AJ14: 0 | AK14: 75.2988528 | AL14: 109.8167814 | AM14: 0 | AN14: 0 | AO14: 3790.911525 | AP14: 5526.095518 | AQ14: 0 | AR14: 0 | AT14: 455285.818 | AU14: 253848.5006 | AV14: 5181.075824 | BA14: CAN | BB14: -9.74277477 | BC14: -14.56624046 | BD14: 0 | BE14: 0 | BF14: -10.19880551 | BG14: -15.21555159 | BH14: 0 | BI14: 0 | BJ14: -9.663651292 | BK14: -14.43097286 | BL14: 0 | BM14: 0 | BN14: -54.05316443 | BO14: -80.47271614 | BP14: 0 | BQ14: 0 | BR14: -52.44503589 | BS14: -78.09555679 | BT14: 0 | BU14: 0 | BV14: -54.44733205 | BW14: -80.89905923 | BX14: 0 | BY14: 0 | BZ14: 166927.0233 | CA14: 249569.4726 | CB14: 0 | CC14: 0 | CD14: 2065.49138 | CE14: 3081.497202 | CF14: 0 | CG14: 0 | CH14: 53199.60499 | CI14: 79444.3045 | CJ14: 0 | CK14: 0
A15: BAN | B15: Agriculture, Mining and Quarrying | C15: BANAgriculture, Mining and Quarrying | D15: 28107.02427 | E15: 54772.28679 | F15: 39910.58564 | G15: 29017.41974 | H15: 320.0583875 | I15: -1.100574274 | J15: -1.650487054 | K15: 0 | L15: 0 | M15: -2.822306414 | N15: -4.232517626 | O15: 0 | P15: 0 | Q15: -0.05703647709 | R15: -0.08553560946 | S15: 0 | T15: 0 | U15: -7.031667174 | V15: -10.54510896 | W15: 0 | X15: 0 | Y15: -6.827000165 | Z15: -10.23822162 | AA15: 0 | AB15: 0 | AC15: -6.865027769 | AD15: -10.29524199 | AE15: 0 | AF15: 0 | AG15: -3015.848203 | AH15: -4522.746473 | AI15: 0 | AJ15: 0 | AK15: 1981.019303 | AL15: 2970.867754 | AM15: 0 | AN15: 0 | AO15: 23.13303665 | AP15: 34.69180583 | AQ15: 0 | AR15: 0 | AT15: 274024.959 | AU15: 40558.31957 | AV15: 70191.50342 | BA15: CHE | BB15: -6.98362844 | BC15: -10.39121426 | BD15: 0 | BE15: 0 | BF15: -7.060538792 | BG15: -10.49647185 | BH15: 0 | BI15: 0 | BJ15: -7.238873502 | BK15: -10.77132803 | BL15: 0 | BM15: 0 | BN15: -50.62500638 | BO15: -74.65903235 | BP15: 0 | BQ15: 0 | BR15: -52.12919843 | BS15: -76.83026017 | BT15: 0 | BU15: 0 | BV15: -52.72953586 | BW15: -77.68220802 | BX15: 0 | BY15: 0 | BZ15: 49244.38232 | CA15: 73272.64501 | CB15: 0 | CC15: 0 | CD15: 364.4494273 | CE15: 541.8047073 | CF15: 0 | CG15: 0 | CH15: 33755.25867 | CI15: 50227.28519 | CJ15: 0 | CK15: 0
A16: BAN | B16: Business, Trade, Personal, and Public Services | C16: BANBusiness, Trade, Personal, and Public Services | D16: 75038.73559 | E16: 118023.9888 | F16: 93309.51621 | G16: 16836.42449 | H16: 3897.612984 | I16: -2.603822706 | J16: -3.904110141 | K16: 0 | L16: 0 | M16: -1.689486662 | N16: -2.53328723 | O16: 0 | P16: 0 | Q16: -0.6680251718 | R16: -1.000667655 | S16: 0 | T16: 0 | U16: -7.115616314 | V16: -10.6689867 | W16: 0 | X16: 0 | Y16: -7.043514988 | Z16: -10.56134208 | AA16: 0 | AB16: 0 | AC16: -6.602568751 | AD16: -9.890311426 | AE16: 0 | AF16: 0 | AG16: -7135.124103 | AH16: -10698.23621 | AI16: 0 | AJ16: 0 | AK16: 1185.876088 | AL16: 1778.152393 | AM16: 0 | AN16: 0 | AO16: 270.939784 | AP16: 405.8539854 | AQ16: 0 | AR16: 0 | AT16: 274024.959 | AU16: 40558.31957 | AV16: 70191.50342 | BA16: CHN | BB16: -5.060984519 | BC16: -7.581630958 | BD16: 0 | BE16: 0 | BF16: -5.011784336 | BG16: -7.504495965 | BH16: 0 | BI16: 0 | BJ16: -5.642026914 | BK16: -8.448453614 | BL16: 0 | BM16: 0 | BN16: -25.95880409 | BO16: -38.82691385 | BP16: 0 | BQ16: 0 | BR16: -25.61373802 | BS16: -38.31639406 | BT16: 0 | BU16: 0 | BV16: -28.45133016 | BW16: -42.44776809 | BX16: 0 | BY16: 0 | BZ16: 688706.4592 | CA16: 1031719.855 | CB16: 0 | CC16: 0 | CD16: 50385.53668 | CE16: 75445.79563 | CF16: 0 | CG16: 0 | CH16: 149830.1804 | CI16: 224357.9034 | CJ16: 0 | CK16: 0
A17: BAN | B17: Hotel and restaurants and Other Personal Services | C17: BANHotel and restaurants and Other Personal Services | D17: 28761.65138 | E17: 38178.73698 | F17: 27931.47437 | G17: 3070.597406 | H17: 32.22282354 | I17: -0.7788060508 | J17: -1.166556271 | K17: 0 | L17: 0 | M17: -0.3176647852 | N17: -0.475646952 | O17: 0 | P17: 0 | Q17: -0.006057408836 | R17: -0.009069222523 | S17: 0 | T17: 0 | U17: -7.109883855 | V17: -10.64973698 | W17: 0 | X17: 0 | Y17: -7.261573499 | Z17: -10.87292474 | AA17: 0 | AB17: 0 | AC17: -7.241726384 | AD17: -10.84239645 | AE17: 0 | AF17: 0 | AG17: -2134.122961 | AH17: -3196.655344 | AI17: 0 | AJ17: 0 | AK17: 222.9736886 | AL17: 333.8637466 | AM17: 0 | AN17: 0 | AO17: 2.456783233 | AP17: 3.678324254 | AQ17: 0 | AR17: 0 | AT17: 274024.959 | AU17: 40558.31957 | AV17: 70191.50342 | BA17: CYP | BB17: -8.4698094 | BC17: -12.33237415 | BD17: 0 | BE17: 0 | BF17: -9.760863423 | BG17: -14.19493207 | BH17: 0 | BI17: 0 | BJ17: -23.2876605 | BK17: -33.87973385 | BL17: 0 | BM17: 0 | BN17: -70.3905885 | BO17: -102.3745307 | BP17: 0 | BQ17: 0 | BR17: -92.00466028 | BS17: -133.6338122 | BT17: 0 | BU17: 0 | BV17: -92.11594019 | BW17: -133.9897093 | BX17: 0 | BY17: 0 | BZ17: 2114.232862 | CA17: 3078.405836 | CB17: 0 | CC17: 0 | CD17: 35.80224973 | CE17: 52.06614217 | CF17: 0 | CG17: 0 | CH17: 4247.358791 | CI17: 6179.211752 | CJ17: 0 | CK17: 0
A18: BAN | B18: Light/Heavy Manufacturing, Utilities, and Construction | C18: BANLight/Heavy Manufacturing, Utilities, and Construction | D18: 120550.9037 | E18: 204251.4784 | F18: 72284.98316 | G18: 16603.53773 | H18: 34198.944 | I18: -2.479948905 | J18: -3.718888354 | K18: 0 | L18: 0 | M18: -1.908832199 | N18: -2.862218212 | O18: 0 | P18: 0 | Q18: -5.570129871 | R18: -8.350440869 | S18: 0 | T18: 0 | U18: -8.748260341 | V18: -13.11873944 | W18: 0 | X18: 0 | Y18: -8.069593563 | Z18: -12.10003565 | AA18: 0 | AB18: 0 | AC18: -6.274389037 | AD18: -9.406228554 | AE18: 0 | AF18: 0 | AG18: -6795.67897 | AH18: -10190.68229 | AI18: 0 | AJ18: 0 | AK18: 1339.838019 | AL18: 2009.033994 | AM18: 0 | AN18: 0 | AO18: 2259.151074 | AP18: 3386.798494 | AQ18: 0 | AR18: 0 | AT18: 274024.959 | AU18: 40558.31957 | AV18: 70191.50342 | BA18: CZE | BB18: -7.933928043 | BC18: -11.80023489 | BD18: 0 | BE18: 0 | BF18: -8.131623945 | BG18: -12.08827083 | BH18: 0 | BI18: 0 | BJ18: -8.886269705 | BK18: -13.2391716 | BL18: 0 | BM18: 0 | BN18: -52.93719667 | BO18: -78.11471238 | BP18: 0 | BQ18: 0 | BR18: -52.54766175 | BS18: -77.55175815 | BT18: 0 | BU18: 0 | BV18: -61.99756337 | BW18: -91.29708273 | BX18: 0 | BY18: 0 | BZ18: 19456.04509 | CA18: 28937.2302 | CB18: 0 | CC18: 0 | CD18: 535.4536547 | CE18: 795.9921458 | CF18: 0 | CG18: 0 | CH18: 17081.44697 | CI18: 25448.72204 | CJ18: 0 | CK18: 0
A19: BAN | B19: Transport services | C19: BANTransport services | D19: 22150.91438 | E19: 32366.08409 | F19: 21555.73104 | G19: 4663.523715 | H19: 74.04803387 | I19: -0.635660917 | J19: -0.9522446018 | K19: 0 | L19: 0 | M19: -0.4950652308 | N19: -0.7418225198 | O19: 0 | P19: 0 | Q19: -0.01993429532 | R19: -0.02956386272 | S19: 0 | T19: 0 | U19: -7.519514547 | V19: -11.26452318 | W19: 0 | X19: 0 | Y19: -7.451312526 | Z19: -11.16529922 | AA19: 0 | AB19: 0 | AC19: -10.3706547 | AD19: -15.38035867 | AE19: 0 | AF19: 0 | AG19: -1741.869567 | AH19: -2609.387879 | AI19: 0 | AJ19: 0 | AK19: 347.4937284 | AL19: 520.6963794 | AM19: 0 | AN19: 0 | AO19: 8.085015201 | AP19: 11.99060592 | AQ19: 0 | AR19: 0 | AT19: 274024.959 | AU19: 40558.31957 | AV19: 70191.50342 | BA19: DEU | BB19: -8.06850564 | BC19: -12.05274322 | BD19: 0 | BE19: 0 | BF19: -8.173602967 | BG19: -12.19917564 | BH19: 0 | BI19: 0 | BJ19: -8.516140132 | BK19: -12.71596906 | BL19: 0 | BM19: 0 | BN19: -45.23403578 | BO19: -67.22623268 | BP19: 0 | BQ19: 0 | BR19: -44.46401309 | BS19: -66.11962531 | BT19: 0 | BU19: 0 | BV19: -51.53592559 | BW19: -76.23013644 | BX19: 0 | BY19: 0 | BZ19: 318513.9555 | CA19: 475796.5214 | CB19: 0 | CC19: 0 | CD19: 4135.776875 | CE19: 6172.684029 | CF19: 0 | CG19: 0 | CH19: 159405.7695 | CI19: 238018.492 | CJ19: 0 | CK19: 0
A20: BEL | B20: Agriculture, Mining and Quarrying | C20: BELAgriculture, Mining and Quarrying | D20: 3501.877787 | E20: 13345.97926 | F20: 3669.033897 | G20: 75.18024521 | H20: 6571.532777 | I20: -0.05165016246 | J20: -0.07723632312 | K20: 0 | L20: 0 | M20: -0.0970249377 | N20: -0.1451029753 | O20: 0 | P20: 0 | Q20: -0.09326322149 | R20: -0.1394233533 | S20: 0 | T20: 0 | U20: -6.673069182 | V20: -9.978735846 | W20: 0 | X20: 0 | Y20: -6.689767348 | Z20: -10.00469745 | AA20: 0 | AB20: 0 | AC20: -6.624864496 | AD20: -9.903805683 | AE20: 0 | AF20: 0 | AG20: -280.3369858 | AH20: -419.2087109 | AI20: 0 | AJ20: 0 | AK20: 5.029383521 | AL20: 7.521556111 | AM20: 0 | AN20: 0 | AO20: 417.995486 | AP20: 624.8801122 | AQ20: 0 | AR20: 0 | AT20: 542761.0921 | AU20: 448188.9853 | AV20: 5183.598815 | BA20: DNK | BB20: -6.741715228 | BC20: -10.05787124 | BD20: 0 | BE20: 0 | BF20: -6.561363974 | BG20: -9.795979358 | BH20: 0 | BI20: 0 | BJ20: -8.750887274 | BK20: -12.97063636 | BL20: 0 | BM20: 0 | BN20: -41.4301824 | BO20: -61.42646178 | BP20: 0 | BQ20: 0 | BR20: -39.22105101 | BS20: -58.2276149 | BT20: 0 | BU20: 0 | BV20: -43.51122429 | BW20: -64.40113232 | BX20: 0 | BY20: 0 | BZ20: 23978.61782 | CA20: 35773.36662 | CB20: 0 | CC20: 0 | CD20: 216.9843387 | CE20: 323.9530852 | CF20: 0 | CG20: 0 | CH20: 17318.31617 | CI20: 25669.34922 | CJ20: 0 | CK20: 0
A21: BEL | B21: Business, Trade, Personal, and Public Services | C21: BELBusiness, Trade, Personal, and Public Services | D21: 292759.7129 | E21: 567245.8694 | F21: 310952.7799 | G21: 3551.937114 | H21: 122764.6215 | I21: -4.936828404 | J21: -7.384841037 | K21: 0 | L21: 0 | M21: -5.180125298 | N21: -7.749662271 | O21: 0 | P21: 0 | Q21: -2.12539834 | R21: -3.175244868 | S21: 0 | T21: 0 | U21: -7.525913945 | V21: -11.25776989 | W21: 0 | X21: 0 | Y21: -7.559731596 | Z21: -11.30964279 | AA21: 0 | AB21: 0 | AC21: -8.081656234 | AD21: -12.07361321 | AE21: 0 | AF21: 0 | AG21: -26795.18376 | AH21: -40082.04386 | AI21: 0 | AJ21: 0 | AK21: 268.5169136 | AL21: 401.7114017 | AM21: 0 | AN21: 0 | AO21: 9525.801252 | AP21: 14231.09775 | AQ21: 0 | AR21: 0 | AT21: 542761.0921 | AU21: 448188.9853 | AV21: 5183.598815 | BA21: ESP | BB21: -12.47444951 | BC21: -18.55034316 | BD21: 0 | BE21: 0 | BF21: -13.0199472 | BG21: -19.33900815 | BH21: 0 | BI21: 0 | BJ21: -12.61555936 | BK21: -18.70742451 | BL21: 0 | BM21: 0 | BN21: -78.6965879 | BO21: -116.2394014 | BP21: 0 | BQ21: 0 | BR21: -78.64387525 | BS21: -116.186565 | BT21: 0 | BU21: 0 | BV21: -97.29468088 | BW21: -143.0305919 | BX21: 0 | BY21: 0 | BZ21: 177017.6716 | CA21: 263237.1513 | CB21: 0 | CC21: 0 | CD21: 2579.471199 | CE21: 3831.383781 | CF21: 0 | CG21: 0 | CH21: 62865.86842 | CI21: 93222.85716 | CJ21: 0 | CK21: 0
A22: BEL | B22: Hotel and restaurants and Other Personal Services | C22: BELHotel and restaurants and Other Personal Services | D22: 36568.47973 | E22: 63572.47301 | F22: 30255.5294 | G22: 446.6289717 | H22: 9010.124144 | I22: -0.7323197959 | J22: -1.082657943 | K22: 0 | L22: 0 | M22: -0.9380618417 | N22: -1.387986874 | O22: 0 | P22: 0 | Q22: -0.2239508189 | R22: -0.3310315085 | S22: 0 | T22: 0 | U22: -11.4736521 | V22: -16.96259018 | W22: 0 | X22: 0 | Y22: -10.88719392 | Z22: -16.10904697 | AA22: 0 | AB22: 0 | AC22: -11.60259533 | AD22: -17.15030404 | AE22: 0 | AF22: 0 | AG22: -3974.746922 | AH22: -5876.246075 | AI22: 0 | AJ22: 0 | AK22: 48.62536251 | AL22: 71.94767117 | AM22: 0 | AN22: 0 | AO22: 1003.722903 | AP22: 1483.646759 | AQ22: 0 | AR22: 0 | AT22: 542761.0921 | AU22: 448188.9853 | AV22: 5183.598815 | BA22: EST | BB22: -9.9491775 | BC22: -14.73882 | BD22: 0 | BE22: 0 | BF22: -10.16066388 | BG22: -15.05077521 | BH22: 0 | BI22: 0 | BJ22: -11.15315509 | BK22: -16.49179377 | BL22: 0 | BM22: 0 | BN22: -62.75477432 | BO22: -92.50161103 | BP22: 0 | BQ22: 0 | BR22: -61.41450611 | BS22: -90.57582254 | BT22: 0 | BU22: 0 | BV22: -67.44524856 | BW22: -99.26151713 | BX22: 0 | BY22: 0 | BZ22: 3057.595609 | CA22: 4529.555463 | CB22: 0 | CC22: 0 | CD22: 94.42961446 | CE22: 139.8765787 | CF22: 0 | CG22: 0 | CH22: 2545.225705 | CI22: 3763.539292 | CJ22: 0 | CK22: 0
A23: BEL | B23: Light/Heavy Manufacturing, Utilities, and Construction | C23: BELLight/Heavy Manufacturing, Utilities, and Construction | D23: 171043.14 | E23: 446016.6083 | F23: 106497.0083 | G23: 874.6130316 | H23: 296963.3626 | I23: -2.041207301 | J23: -3.052576219 | K23: 0 | L23: 0 | M23: -1.603354375 | N23: -2.39883772 | O23: 0 | P23: 0 | Q23: -5.339910943 | R23: -7.963595213 | S23: 0 | T23: 0 | U23: -9.085636655 | V23: -13.58735018 | W23: 0 | X23: 0 | Y23: -9.502654886 | Z23: -14.21727307 | AA23: 0 | AB23: 0 | AC23: -8.393911911 | AD23: -12.51813325 | AE23: 0 | AF23: 0 | AG23: -11078.87904 | AH23: -16568.19602 | AI23: 0 | AJ23: 0 | AK23: 83.11145839 | AL23: 124.3461236 | AM23: 0 | AN23: 0 | AO23: 23932.89267 | AP23: 35691.95657 | AQ23: 0 | AR23: 0 | AT23: 542761.0921 | AU23: 448188.9853 | AV23: 5183.598815 | BA23: FIJ | BB23: -12.52710593 | BC23: -18.22874733 | BD23: -3.140247228 | BE23: -4.710371251 | BF23: -7.411511443 | BG23: -10.80897177 | BH23: -3.317467054 | BI23: -4.976200849 | BJ23: -32.70821454 | BK23: -47.52102725 | BL23: -1.752699858 | BM23: -2.629050574 | BN23: -122.806287 | BO23: -178.4674341 | BP23: -11.83255161 | BQ23: -17.74883067 | BR23: -97.65336667 | BS23: -141.9861646 | BT23: -13.40571684 | BU23: -20.10857727 | BV23: -136.2786739 | BW23: -198.0582764 | BX23: -10.16823202 | BY23: -15.25235144 | BZ23: 693.5957475 | CA23: 1009.281929 | CB23: 173.8679417 | CC23: 260.8019352 | CD23: 24.82798917 | CE23: 36.20921807 | CF23: 11.11325763 | CG23: 16.66988734 | CH23: 833.9843433 | CI23: 1211.677044 | CJ23: 44.6898206 | CK23: 67.03475097
A24: BEL | B24: Transport services | C24: BELTransport services | D24: 16324.02266 | E24: 65937.8049 | F24: 22655.46497 | G24: 235.2394275 | H24: 31492.95791 | I24: -0.6433231067 | J24: -0.9457904424 | K24: 0 | L24: 0 | M24: -0.6456215083 | N24: -0.9484869216 | O24: 0 | P24: 0 | Q24: -1.069388681 | R24: -1.567522675 | S24: 0 | T24: 0 | U24: -13.46051977 | V24: -19.78917097 | W24: 0 | X24: 0 | Y24: -14.22653891 | Z24: -20.90030447 | AA24: 0 | AB24: 0 | AC24: -15.85095364 | AD24: -23.23451677 | AE24: 0 | AF24: 0 | AG24: -3491.707519 | AH24: -5133.382534 | AI24: 0 | AJ24: 0 | AK24: 33.46642886 | AL24: 49.16575683 | AM24: 0 | AN24: 0 | AO24: 4792.882278 | AP24: 7025.46397 | AQ24: 0 | AR24: 0 | AT24: 542761.0921 | AU24: 448188.9853 | AV24: 5183.598815 | BA24: FIN | BB24: -7.716008734 | BC24: -11.51053776 | BD24: 0 | BE24: 0 | BF24: -7.704727309 | BG24: -11.49361959 | BH24: 0 | BI24: 0 | BJ24: -9.365152035 | BK24: -13.9250233 | BL24: 0 | BM24: 0 | BN24: -47.19923315 | BO24: -70.00397883 | BP24: 0 | BQ24: 0 | BR24: -45.82033843 | BS24: -68.01869243 | BT24: 0 | BU24: 0 | BV24: -56.98599194 | BW24: -84.1380904 | BX24: 0 | BY24: 0 | BZ24: 21353.52335 | CA24: 31854.62138 | CB24: 0 | CC24: 0 | CD24: 219.0560604 | CE24: 326.7795116 | CF24: 0 | CG24: 0 | CH24: 9994.077975 | CI24: 14860.17185 | CJ24: 0 | CK24: 0
A25: BGR | B25: Agriculture, Mining and Quarrying | C25: BGRAgriculture, Mining and Quarrying | D25: 2049.481 | E25: 8860.437985 | F25: 4203.9319 | G25: 717.0786997 | H25: 4417.22335 | I25: -0.5032688499 | J25: -0.7510264063 | K25: 0 | L25: 0 | M25: -1.153292089 | N25: -1.723088744 | O25: 0 | P25: 0 | Q25: -0.7095170903 | R25: -1.058689175 | S25: 0 | T25: 0 | U25: -6.755890254 | V25: -10.08179223 | W25: 0 | X25: 0 | Y25: -6.845637417 | Z25: -10.22779995 | AA25: 0 | AB25: 0 | AC25: -6.747238818 | AD25: -10.0677331 | AE25: 0 | AF25: 0 | AG25: -327.793854 | AH25: -489.1656621 | AI25: 0 | AJ25: 0 | AK25: 49.08860896 | AL25: 73.34137669 | AM25: 0 | AN25: 0 | AO25: 309.3498796 | AP25: 461.5891191 | AQ25: 0 | AR25: 0 | AT25: 65132.95112 | AU25: 43600.06035 | AV25: 4256.389983 | BA25: FRA | BB25: -10.01226474 | BC25: -14.94295601 | BD25: 0 | BE25: 0 | BF25: -10.1910921 | BG25: -15.20181328 | BH25: 0 | BI25: 0 | BJ25: -10.38254721 | BK25: -15.44381983 | BL25: 0 | BM25: 0 | BN25: -61.62801744 | BO25: -91.28153986 | BP25: 0 | BQ25: 0 | BR25: -61.93272379 | BS25: -91.74319694 | BT25: 0 | BU25: 0 | BV25: -67.01133938 | BW25: -98.89898318 | BX25: 0 | BY25: 0 | BZ25: 278094.1814 | CA25: 415045.869 | CB25: 0 | CC25: 0 | CD25: 2989.776329 | CE25: 4459.77929 | CF25: 0 | CG25: 0 | CH25: 90370.66922 | CI25: 134424.463 | CJ25: 0 | CK25: 0
A26: BGR | B26: Business, Trade, Personal, and Public Services | C26: BGRBusiness, Trade, Personal, and Public Services | D26: 24324.21834 | E26: 50548.70666 | F26: 31418.90394 | G26: 1980.687817 | H26: 9715.714645 | I26: -4.660527724 | J26: -6.930005013 | K26: 0 | L26: 0 | M26: -3.810962202 | N26: -5.6674507 | O26: 0 | P26: 0 | Q26: -1.902431854 | R26: -2.824641544 | S26: 0 | T26: 0 | U26: -8.371095053 | V26: -12.44745963 | W26: 0 | X26: 0 | Y26: -8.189549514 | Z26: -12.17904184 | AA26: 0 | AB26: 0 | AC26: -8.225208936 | AD26: -12.21240426 | AE26: 0 | AF26: 0 | AG26: -3035.539244 | AH26: -4513.716778 | AI26: 0 | AJ26: 0 | AK26: 162.2094134 | AL26: 241.2288039 | AM26: 0 | AN26: 0 | AO26: 829.4614363 | AP26: 1231.545418 | AQ26: 0 | AR26: 0 | AT26: 65132.95112 | AU26: 43600.06035 | AV26: 4256.389983 | BA26: GBR | BB26: -9.309705571 | BC26: -13.90178768 | BD26: 0 | BE26: 0 | BF26: -9.254210053 | BG26: -13.82259086 | BH26: 0 | BI26: 0 | BJ26: -9.090730908 | BK26: -13.56021199 | BL26: 0 | BM26: 0 | BN26: -50.45155381 | BO26: -75.10077725 | BP26: 0 | BQ26: 0 | BR26: -49.94583157 | BS26: -74.41623718 | BT26: 0 | BU26: 0 | BV26: -50.97567319 | BW26: -75.71050666 | BX26: 0 | BY26: 0 | BZ26: 265819.7189 | CA26: 396937.2893 | CB26: 0 | CC26: 0 | CD26: 3480.063534 | CE26: 5198.011945 | CF26: 0 | CG26: 0 | CH26: 77887.98201 | CI26: 116181.8074 | CJ26: 0 | CK26: 0
A27: BGR | B27: Hotel and restaurants and Other Personal Services | C27: BGRHotel and restaurants and Other Personal Services | D27: 4930.209031 | E27: 7558.242621 | F27: 3431.785786 | G27: 343.2748367 | H27: 989.4321651 | I27: -0.9263017467 | J27: -1.361883676 | K27: 0 | L27: 0 | M27: -1.109041145 | N27: -1.633327007 | O27: 0 | P27: 0 | Q27: -0.417873145 | R27: -0.613001603 | S27: 0 | T27: 0 | U27: -15.23247661 | V27: -22.39536015 | W27: 0 | X27: 0 | Y27: -13.75140559 | Z27: -20.25221717 | AA27: 0 | AB27: 0 | AC27: -17.74071086 | AD27: -26.02484587 | AE27: 0 | AF27: 0 | AG27: -603.3276639 | AH27: -887.0350288 | AI27: 0 | AJ27: 0 | AK27: 47.20511623 | AL27: 69.52076711 | AM27: 0 | AN27: 0 | AO27: 182.1929434 | AP27: 267.2690688 | AQ27: 0 | AR27: 0 | AT27: 65132.95112 | AU27: 43600.06035 | AV27: 4256.389983 | BA27: GRC | BB27: -10.61435921 | BC27: -15.66855149 | BD27: 0 | BE27: 0 | BF27: -8.802761647 | BG27: -13.05694175 | BH27: 0 | BI27: 0 | BJ27: -16.8289169 | BK27: -24.61170937 | BL27: 0 | BM27: 0 | BN27: -77.93673506 | BO27: -114.2771731 | BP27: 0 | BQ27: 0 | BR27: -55.57870242 | BS27: -82.02948687 | BT27: 0 | BU27: 0 | BV27: -93.80155172 | BW27: -137.0896605 | BX27: 0 | BY27: 0 | BZ27: 23142.68318 | CA27: 34162.43184 | CB27: 0 | CC27: 0 | CD27: 457.1575797 | CE27: 678.0917316 | CF27: 0 | CG27: 0 | CH27: 13256.68128 | CI27: 19387.43824 | CJ27: 0 | CK27: 0
A28: BGR | B28: Light/Heavy Manufacturing, Utilities, and Construction | C28: BGRLight/Heavy Manufacturing, Utilities, and Construction | D28: 22325.23918 | E28: 52701.97071 | F28: 13818.12074 | G28: 1024.387488 | H28: 23278.6487 | I28: -2.043432432 | J28: -3.049641901 | K28: 0 | L28: 0 | M28: -2.040114426 | N28: -3.047212508 | O28: 0 | P28: 0 | Q28: -4.83290228 | R28: -7.200546721 | S28: 0 | T28: 0 | U28: -8.345445141 | V28: -12.45483765 | W28: 0 | X28: 0 | Y28: -8.476794674 | Z28: -12.66134606 | AA28: 0 | AB28: 0 | AC28: -8.720930553 | AD28: -12.99332456 | AE28: 0 | AF28: 0 | AG28: -1330.947847 | AH28: -1986.321769 | AI28: 0 | AJ28: 0 | AK28: 86.8352261 | AL28: 129.7012479 | AM28: 0 | AN28: 0 | AO28: 2107.148311 | AP28: 3139.442716 | AQ28: 0 | AR28: 0 | AT28: 65132.95112 | AU28: 43600.06035 | AV28: 4256.389983 | BA28: HKG | BB28: -9.242252674 | BC28: -13.58429948 | BD28: 0 | BE28: 0 | BF28: -10.26500546 | BG28: -15.08025494 | BH28: 0 | BI28: 0 | BJ28: -13.24162636 | BK28: -19.30448592 | BL28: 0 | BM28: 0 | BN28: -81.1858598 | BO28: -118.6819501 | BP28: 0 | BQ28: 0 | BR28: -76.87986463 | BS28: -112.4348958 | BT28: 0 | BU28: 0 | BV28: -92.44145188 | BW28: -134.70515 | BX28: 0 | BY28: 0 | BZ28: 33519.98853 | CA28: 49267.81151 | CB28: 0 | CC28: 0 | CD28: 436.1024824 | CE28: 640.675413 | CF28: 0 | CG28: 0 | CH28: 90422.51122 | CI28: 131823.6935 | CJ28: 0 | CK28: 0
A29: BGR | B29: Transport services | C29: BGRTransport services | D29: 3513.927101 | E29: 10372.6727 | F29: 3560.916415 | G29: 190.9610392 | H29: 3605.102288 | I29: -1.896026506 | J29: -2.765538089 | K29: 0 | L29: 0 | M29: -1.392417761 | N29: -2.030523447 | O29: 0 | P29: 0 | Q29: -3.524990103 | R29: -5.130979993 | S29: 0 | T29: 0 | U29: -30.04836407 | V29: -43.82844602 | W29: 0 | X29: 0 | Y29: -31.03603171 | Z29: -45.25896742 | AA29: 0 | AB29: 0 | AC29: -41.07266577 | AD29: -59.78542355 | AE29: 0 | AF29: 0 | AG29: -1234.938017 | AH29: -1801.276572 | AI29: 0 | AJ29: 0 | AK29: 59.26673012 | AL29: 86.42699661 | AM29: 0 | AN29: 0 | AO29: 1536.897812 | AP29: 2237.110374 | AQ29: 0 | AR29: 0 | AT29: 65132.95112 | AU29: 43600.06035 | AV29: 4256.389983 | BA29: HRV | BB29: -15.91241421 | BC29: -23.3536225 | BD29: 0 | BE29: 0 | BF29: -12.30137319 | BG29: -18.13267943 | BH29: 0 | BI29: 0 | BJ29: -23.10265107 | BK29: -33.73990897 | BL29: 0 | BM29: 0 | BN29: -146.3743342 | BO29: -213.3755627 | BP29: 0 | BQ29: 0 | BR29: -141.4562582 | BS29: -206.2600537 | BT29: 0 | BU29: 0 | BV29: -188.4203849 | BW29: -274.0891874 | BX29: 0 | BY29: 0 | BZ29: 9702.069346 | CA29: 14239.10049 | CB29: 0 | CC29: 0 | CD29: 221.2468028 | CE29: 326.1259771 | CF29: 0 | CG29: 0 | CH29: 7115.815214 | CI29: 10392.18213 | CJ29: 0 | CK29: 0
A30: BRA | B30: Agriculture, Mining and Quarrying | C30: BRAAgriculture, Mining and Quarrying | D30: 58379.30221 | E30: 276019.803 | F30: 131625.1779 | G30: 14567.95675 | H30: 93286.83709 | I30: -0.6001015426 | J30: -0.8976444548 | K30: 0 | L30: 0 | M30: -0.8947054617 | N30: -1.338864239 | O30: 0 | P30: 0 | Q30: -2.50989281 | R30: -3.7533466 | S30: 0 | T30: 0 | U30: -7.278444277 | V30: -10.88724938 | W30: 0 | X30: 0 | Y30: -7.040713326 | Z30: -10.53593578 | AA30: 0 | AB30: 0 | AC30: -7.443423154 | AD30: -11.13105184 | AE30: 0 | AF30: 0 | AG30: -11213.65398 | AH30: -16773.61846 | AI30: 0 | AJ30: 0 | AK30: 1025.688083 | AL30: 1534.870584 | AM30: 0 | AN30: 0 | AO30: 6943.784901 | AP30: 10383.88227 | AQ30: 0 | AR30: 0 | AT30: 1868626.088 | AU30: 276656.6315 | AV30: 114639.7476 | BA30: HUN | BB30: -9.464303291 | BC30: -14.03692384 | BD30: 0 | BE30: 0 | BF30: -9.123538557 | BG30: -13.53818263 | BH30: 0 | BI30: 0 | BJ30: -10.29078988 | BK30: -15.27342841 | BL30: 0 | BM30: 0 | BN30: -70.08894874 | BO30: -103.0725585 | BP30: 0 | BQ30: 0 | BR30: -68.76283137 | BS30: -101.1360432 | BT30: 0 | BU30: 0 | BV30: -75.89955279 | BW30: -111.5267775 | BX30: 0 | BY30: 0 | BZ30: 14942.51771 | CA30: 22161.90422 | CB30: 0 | CC30: 0 | CD30: 522.6201721 | CE30: 775.5025411 | CF30: 0 | CG30: 0 | CH30: 13800.36415 | CI30: 20482.28333 | CJ30: 0 | CK30: 0
A31: BRA | B31: Business, Trade, Personal, and Public Services | C31: BRABusiness, Trade, Personal, and Public Services | D31: 885065.2224 | E31: 1423814.278 | F31: 967842.7022 | G31: 52583.99766 | H31: 26704.46104 | I31: -4.803739649 | J31: -7.198621037 | K31: 0 | L31: 0 | M31: -3.716638238 | N31: -5.569019355 | O31: 0 | P31: 0 | Q31: -0.8032669933 | R31: -1.203342138 | S31: 0 | T31: 0 | U31: -7.923689913 | V31: -11.87400756 | W31: 0 | X31: 0 | Y31: -8.102740072 | Z31: -12.14116452 | AA31: 0 | AB31: 0 | AC31: -8.321737413 | AD31: -12.4664618 | AE31: 0 | AF31: 0 | AG31: -89763.93227 | AH31: -134515.3107 | AI31: 0 | AJ31: 0 | AK31: 4260.744694 | AL31: 6384.309731 | AM31: 0 | AN31: 0 | AO31: 2222.291405 | AP31: 3329.125823 | AQ31: 0 | AR31: 0 | AT31: 1868626.088 | AU31: 276656.6315 | AV31: 114639.7476 | BA31: IDN | BB31: -5.770044611 | BC31: -8.605297078 | BD31: 0 | BE31: 0 | BF31: -6.257183246 | BG31: -9.312983084 | BH31: 0 | BI31: 0 | BJ31: -5.422330328 | BK31: -8.088888954 | BL31: 0 | BM31: 0 | BN31: -34.70586684 | BO31: -51.48486424 | BP31: 0 | BQ31: 0 | BR31: -34.68286669 | BS31: -51.48107887 | BT31: 0 | BU31: 0 | BV31: -34.87989756 | BW31: -51.69834828 | BX31: 0 | BY31: 0 | BZ31: 60133.86437 | CA31: 89682.10859 | CB31: 0 | CC31: 0 | CD31: 7840.494195 | CE31: 11669.53035 | CF31: 0 | CG31: 0 | CH31: 11847.73028 | CI31: 17674.13064 | CJ31: 0 | CK31: 0
A32: BRA | B32: Hotel and restaurants and Other Personal Services | C32: BRAHotel and restaurants and Other Personal Services | D32: 173773.2168 | E32: 216545.2325 | F32: 122916.9001 | G32: 23475.38183 | H32: 5100.694126 | I32: -0.6518078023 | J32: -0.9732770224 | K32: 0 | L32: 0 | M32: -1.703014074 | N32: -2.545087985 | O32: 0 | P32: 0 | Q32: -0.1687849667 | R32: -0.2513723805 | S32: 0 | T32: 0 | U32: -8.465658496 | V32: -12.64089025 | W32: 0 | X32: 0 | Y32: -8.31650377 | Z32: -12.4286899 | AA32: 0 | AB32: 0 | AC32: -9.154663482 | AD32: -13.63409074 | AE32: 0 | AF32: 0 | AG32: -12179.85064 | AH32: -18186.90835 | AI32: 0 | AJ32: 0 | AK32: 1952.331036 | AL32: 2917.682441 | AM32: 0 | AN32: 0 | AO32: 466.9548034 | AP32: 695.4383603 | AQ32: 0 | AR32: 0 | AT32: 1868626.088 | AU32: 276656.6315 | AV32: 114639.7476 | BA32: IND | BB32: -6.783021032 | BC32: -10.13988013 | BD32: 0 | BE32: 0 | BF32: -6.534827194 | BG32: -9.777565103 | BH32: 0 | BI32: 0 | BJ32: -7.464524945 | BK32: -11.11615348 | BL32: 0 | BM32: 0 | BN32: -40.27100635 | BO32: -59.88621267 | BP32: 0 | BQ32: 0 | BR32: -38.31094743 | BS32: -57.06431418 | BT32: 0 | BU32: 0 | BV32: -59.47095655 | BW32: -87.5446809 | BX32: 0 | BY32: 0 | BZ32: 184412.1791 | CA32: 275676.1893 | CB32: 0 | CC32: 0 | CD32: 37452.09877 | CE32: 56036.728 | CF32: 0 | CG32: 0 | CH32: 40056.42305 | CI32: 59651.93363 | CJ32: 0 | CK32: 0
A33: BRA | B33: Light/Heavy Manufacturing, Utilities, and Construction | C33: BRALight/Heavy Manufacturing, Utilities, and Construction | D33: 564195.2868 | E33: 1068645.285 | F33: 302630.8489 | G33: 18448.41054 | H33: 146558.7162 | I33: -1.804266558 | J33: -2.703689135 | K33: 0 | L33: 0 | M33: -1.642132021 | N33: -2.461394478 | O33: 0 | P33: 0 | Q33: -4.265097966 | R33: -6.385964101 | S33: 0 | T33: 0 | U33: -9.517881492 | V33: -14.26252272 | W33: 0 | X33: 0 | Y33: -10.20432617 | Z33: -15.29528184 | AA33: 0 | AB33: 0 | AC33: -8.051100759 | AD33: -12.05459777 | AE33: 0 | AF33: 0 | AG33: -33714.99561 | AH33: -50521.84051 | AI33: 0 | AJ33: 0 | AK33: 1882.536004 | AL33: 2821.736416 | AM33: 0 | AN33: 0 | AO33: 11799.67636 | AP33: 17667.19317 | AQ33: 0 | AR33: 0 | AT33: 1868626.088 | AU33: 276656.6315 | AV33: 114639.7476 | BA33: IRL | BB33: -8.620798351 | BC33: -12.83777472 | BD33: 0 | BE33: 0 | BF33: -10.1494421 | BG33: -15.12865186 | BH33: 0 | BI33: 0 | BJ33: -8.573473307 | BK33: -12.73509895 | BL33: 0 | BM33: 0 | BN33: -70.89442334 | BO33: -104.6615544 | BP33: 0 | BQ33: 0 | BR33: -68.89353251 | BS33: -102.0308132 | BT33: 0 | BU33: 0 | BV33: -78.88552956 | BW33: -115.8145553 | BX33: 0 | BY33: 0 | BZ33: 32973.47528 | CA33: 49102.88235 | CB33: 0 | CC33: 0 | CD33: 273.9996817 | CE33: 408.4210495 | CF33: 0 | CG33: 0 | CH33: 40113.73611 | CI33: 59585.2323 | CJ33: 0 | CK33: 0
A34: BRA | B34: Transport services | C34: BRATransport services | D34: 52884.04162 | E34: 155158.9728 | F34: 71425.06439 | G34: 5563.999606 | H34: 5003.896193 | I34: -0.3887259795 | J34: -0.5803098067 | K34: 0 | L34: 0 | M34: -0.4076379449 | N34: -0.6093258666 | O34: 0 | P34: 0 | Q34: -0.1955869049 | R34: -0.2900076032 | S34: 0 | T34: 0 | U34: -8.688518206 | V34: -12.9706595 | W34: 0 | X34: 0 | Y34: -8.398906169 | Z34: -12.55445143 | AA34: 0 | AB34: 0 | AC34: -10.81357722 | AD34: -16.03389353 | AE34: 0 | AF34: 0 | AG34: -7263.835064 | AH34: -10843.82044 | AI34: 0 | AJ34: 0 | AK34: 467.315111 | AL34: 698.5296354 | AM34: 0 | AN34: 0 | AO34: 541.1041428 | AP34: 802.3252659 | AQ34: 0 | AR34: 0 | AT34: 1868626.088 | AU34: 276656.6315 | AV34: 114639.7476 | BA34: ITA | BB34: -9.420354069 | BC34: -14.05742416 | BD34: 0 | BE34: 0 | BF34: -9.580076034 | BG34: -14.29229941 | BH34: 0 | BI34: 0 | BJ34: -8.947738751 | BK34: -13.36080105 | BL34: 0 | BM34: 0 | BN34: -54.35842755 | BO34: -80.72631363 | BP34: 0 | BQ34: 0 | BR34: -53.85925904 | BS34: -80.01308047 | BT34: 0 | BU34: 0 | BV34: -60.59671185 | BW34: -89.71140579 | BX34: 0 | BY34: 0 | BZ34: 196307.3916 | CA34: 292937.638 | CB34: 0 | CC34: 0 | CD34: 2330.527668 | CE34: 3476.861677 | CF34: 0 | CG34: 0 | CH34: 58647.67831 | CI34: 87572.95933 | CJ34: 0 | CK34: 0
A35: BRN | B35: Agriculture, Mining and Quarrying | C35: BRNAgriculture, Mining and Quarrying | D35: 1840.225966 | E35: 8320.558962 | F35: 6337.492638 | G35: 104.6207425 | H35: 3476.430252 | I35: -2.014463664 | J35: -2.990536722 | K35: -0.863089425 | L35: -1.294634077 | M35: -0.3719828561 | N35: -0.5485830012 | O35: -1.260902959 | P35: -1.891354425 | Q35: -2.191721938 | R35: -3.253739758 | S35: -0.9216618475 | T35: -1.382492705 | U35: -4.38143969 | V35: -6.504389491 | W35: -1.877211453 | X35: -2.815817047 | Y35: -0.7190206719 | Z35: -1.060378218 | AA35: -2.437250206 | AB35: -3.655875284 | AC35: -4.441998265 | AD35: -6.59440694 | AE35: -1.867946958 | AF35: -2.801920303 | AG35: -273.3093596 | AH35: -405.7366191 | AI35: -117.0983732 | AJ35: -175.6475516 | AK35: 0.7522447147 | AL35: 1.10937549 | AM35: 2.549869089 | AN35: 3.824803608 | AO35: 154.4250963 | AP35: 229.2531122 | AQ35: 64.93876667 | AR35: 97.40814534 | AT35: 13567.35118 | AU35: 7045.834309 | AV35: 202.2256409 | BA35: JPN | BB35: -5.901042471 | BC35: -8.822583563 | BD35: 0 | BE35: 0 | BF35: -6.044162459 | BG35: -9.034789622 | BH35: 0 | BI35: 0 | BJ35: -6.82662996 | BK35: -10.19812679 | BL35: 0 | BM35: 0 | BN35: -33.67944357 | BO35: -50.11714564 | BP35: 0 | BQ35: 0 | BR35: -32.84762172 | BS35: -48.95061585 | BT35: 0 | BU35: 0 | BV35: -37.48767194 | BW35: -55.62875155 | BX35: 0 | BY35: 0 | BZ35: 293359.8863 | CA35: 438599.1329 | CB35: 0 | CC35: 0 | CD35: 3529.130129 | CE35: 5275.329456 | CF35: 0 | CG35: 0 | CH35: 62608.69394 | CI35: 93529.51641 | CJ35: 0 | CK35: 0
A36: BRN | B36: Business, Trade, Personal, and Public Services | C36: BRNBusiness, Trade, Personal, and Public Services | D36: 5597.020176 | E36: 7297.849161 | F36: 4565.107072 | G36: 53.16049123 | H36: 194.0720591 | I36: -0.2125549486 | J36: -0.3132936395 | K36: -0.9169000145 | L36: -1.375349975 | M36: -0.2607397545 | N36: -0.3844822135 | O36: -0.7958736799 | P36: -1.193810469 | Q36: -0.03738477682 | R36: -0.05511741572 | S36: -0.09571431421 | T36: -0.1435714646 | U36: -0.6417932129 | V36: -0.9459658914 | W36: -2.768508614 | X36: -4.152762779 | Y36: -0.9918694563 | Z36: -1.462593093 | AA36: -3.027550577 | AB36: -4.541325674 | AC36: -1.357244933 | AD36: -2.001023934 | AE36: -3.474884137 | AF36: -5.212325963 | AG36: -28.83807632 | AH36: -42.50564828 | AI36: -124.3990449 | AJ36: -186.598561 | AK36: 0.5272826395 | AL36: 0.7775216203 | AM36: 1.60946065 | AN36: 2.414190873 | AO36: 2.634069432 | AP36: 3.883481787 | AQ36: 6.743871989 | AR36: 10.11580751 | AT36: 13567.35118 | AU36: 7045.834309 | AV36: 202.2256409 | BA36: KAZ | BB36: -8.244918302 | BC36: -12.30177842 | BD36: 0 | BE36: 0 | BF36: -7.400586287 | BG36: -11.08499837 | BH36: 0 | BI36: 0 | BJ36: -8.046364636 | BK36: -11.9853935 | BL36: 0 | BM36: 0 | BN36: -45.54695295 | BO36: -67.73443732 | BP36: 0 | BQ36: 0 | BR36: -41.58470795 | BS36: -62.06380201 | BT36: 0 | BU36: 0 | BV36: -46.97978504 | BW36: -69.7440237 | BX36: 0 | BY36: 0 | BZ36: 14786.43606 | CA36: 22062.00878 | CB36: 0 | CC36: 0 | CD36: 808.2603383 | CE36: 1210.656046 | CF36: 0 | CG36: 0 | CH36: 5415.269894 | CI36: 8066.268871 | CJ36: 0 | CK36: 0
A37: BRN | B37: Hotel and restaurants and Other Personal Services | C37: BRNHotel and restaurants and Other Personal Services | D37: 251.8310743 | E37: 441.0285897 | F37: 273.2583241 | G37: 5.202971786 | H37: 75.9443816 | I37: -0.3939691547 | J37: -0.5714305313 | K37: -0.04660472893 | L37: -0.06990708999 | M37: -0.5595628214 | N37: -0.8114132557 | O37: -0.05976099432 | P37: -0.08964148611 | Q37: -0.182302146 | R37: -0.2645526044 | S37: -0.02581861862 | T37: -0.0387279267 | U37: -19.87301168 | V37: -28.82470744 | W37: -2.350885371 | X37: -3.526327885 | Y37: -21.74871641 | Z37: -31.53747196 | AA37: -2.322750669 | AB37: -3.484125794 | AC37: -16.91307526 | AD37: -24.54385867 | AE37: -2.395321445 | AF37: -3.592982053 | AG37: -53.45117874 | AH37: -77.5279869 | AI37: -6.323027239 | AJ37: -9.484540396 | AK37: 1.131579502 | AL37: 1.640885657 | AM37: 0.1208520538 | AN37: 0.1812780698 | AO37: 12.84470715 | AP37: 18.63993816 | AQ37: 1.819137089 | AR37: 2.728705547 | AT37: 13567.35118 | AU37: 7045.834309 | AV37: 202.2256409 | BA37: KGZ | BB37: -10.10400559 | BC37: -15.00824269 | BD37: 0 | BE37: 0 | BF37: -8.23565005 | BG37: -12.26966661 | BH37: 0 | BI37: 0 | BJ37: -9.471562936 | BK37: -14.0029572 | BL37: 0 | BM37: 0 | BN37: -79.51428733 | BO37: -116.9952121 | BP37: 0 | BQ37: 0 | BR37: -61.79001081 | BS37: -91.31200225 | BT37: 0 | BU37: 0 | BV37: -74.20792312 | BW37: -109.0531061 | BX37: 0 | BY37: 0 | BZ37: 817.700663 | CA37: 1214.592559 | CB37: 0 | CC37: 0 | CD37: 223.198364 | CE37: 332.5262119 | CF37: 0 | CG37: 0 | CH37: 250.9058921 | CI37: 370.9445306 | CJ37: 0 | CK37: 0
A38: BRN | B38: Light/Heavy Manufacturing, Utilities, and Construction | C38: BRNLight/Heavy Manufacturing, Utilities, and Construction | D38: 2465.449569 | E38: 6687.062393 | F38: 2380.939266 | G38: 33.5752931 | H38: 3064.251471 | I38: -0.7685000288 | J38: -1.139009833 | K38: -0.3063737449 | L38: -0.4595605926 | M38: -0.3236870147 | N38: -0.4790118064 | O38: -0.6695882 | P38: -1.004382254 | Q38: -2.343833425 | R38: -3.474121658 | S38: -0.3891959022 | T38: -0.5837938369 | U38: -4.449082288 | V38: -6.594077141 | W38: -1.773691543 | X38: -2.660537171 | Y38: -1.949582934 | Z38: -2.885111853 | AA38: -4.032962918 | AB38: -6.049444098 | AC38: -5.389255708 | AD38: -7.988165787 | AE38: -0.8948913413 | AF38: -1.342336974 | AG38: -104.2650977 | AH38: -154.5334639 | AI38: -41.56680187 | AJ38: -62.35019946 | AK38: 0.6545781399 | AL38: 0.9686846954 | AM38: 1.354079029 | AN38: 2.031118449 | AO38: 165.1426196 | AP38: 244.7808557 | AQ38: 27.42209841 | AR38: 41.13314646 | AT38: 13567.35118 | AU38: 7045.834309 | AV38: 202.2256409 | BA38: KOR | BB38: -4.537331575 | BC38: -6.76823164 | BD38: 0 | BE38: 0 | BF38: -4.890632777 | BG38: -7.272941161 | BH38: 0 | BI38: 0 | BJ38: -5.504075046 | BK38: -8.198634945 | BL38: 0 | BM38: 0 | BN38: -27.9203523 | BO38: -41.38954448 | BP38: 0 | BQ38: 0 | BR38: -30.63872164 | BS38: -45.29812996 | BT38: 0 | BU38: 0 | BV38: -41.52951106 | BW38: -61.08121503 | BX38: 0 | BY38: 0 | BZ38: 73478.62292 | CA38: 109606.3473 | CB38: 0 | CC38: 0 | CD38: 1461.935422 | CE38: 2174.068426 | CF38: 0 | CG38: 0 | CH38: 39228.14148 | CI38: 58432.56294 | CJ38: 0 | CK38: 0
A39: BRN | B39: Transport services | C39: BRNTransport services | D39: 482.5306035 | E39: 820.5077715 | F39: 227.1901055 | G39: 5.666155979 | H39: 235.0391983 | I39: -0.1485447987 | J39: -0.2165720922 | K39: -0.01178553889 | L39: -0.01767830719 | M39: -0.2765009885 | N39: -0.4034991118 | O39: -0.02523836003 | P39: -0.03785753817 | Q39: -0.293454761 | R39: -0.4286905969 | S39: -0.02889069161 | T39: -0.04333603501 | U39: -9.012450742 | V39: -13.13977554 | W39: -0.7150475115 | X39: -1.072571198 | Y39: -9.868347008 | Z39: -14.4009223 | AA39: -0.9007595092 | AB39: -1.351139197 | AC39: -8.796852562 | AD39: -12.85079841 | AE39: -0.8660522449 | AF39: -1.299078295 | AG39: -20.1535945 | AH39: -29.38309629 | AI39: -1.598985449 | AJ39: -2.398478019 | AK39: 0.5591558961 | AL39: 0.8159786647 | AM39: 0.05103843532 | AN39: 0.0765576492 | AO39: 20.67633623 | AP39: 30.20482916 | AQ39: 2.035590262 | AR39: 3.053385223 | AT39: 13567.35118 | AU39: 7045.834309 | AV39: 202.2256409 | BA39: LAO | BB39: -3.346720039 | BC39: -4.896338882 | BD39: -2.589768885 | BE39: -3.884653234 | BF39: -2.885546523 | BG39: -4.225541334 | BH39: -2.901633167 | BI39: -4.352449607 | BJ39: -4.109673211 | BK39: -6.047289999 | BL39: -1.418779045 | BM39: -2.128168516 | BN39: -57.60095219 | BO39: -83.61645862 | BP39: -13.24682158 | BQ39: -19.87023282 | BR39: -43.74315756 | BS39: -63.54388927 | BT39: -14.69023964 | BU39: -22.03535918 | BV39: -55.64078671 | BW39: -80.89713339 | BX39: -10.70293723 | BY39: -16.05440631 | BZ39: 600.8629678 | CA39: 879.0782252 | CB39: 464.9615743 | CC39: 697.4423446 | CD39: 114.9385447 | CE39: 168.313894 | CF39: 115.579316 | CG39: 173.3689683 | CH39: 253.7802015 | CI39: 373.4317538 | CJ39: 87.61232667 | CK39: 131.4184868
A40: BTN | B40: Agriculture, Mining and Quarrying | C40: BTNAgriculture, Mining and Quarrying | D40: 392.4294876 | E40: 655.8644121 | F40: 556.9509693 | G40: 264.5270591 | H40: 114.0748523 | I40: -0.4831863783 | J40: -0.7170587772 | K40: -1.020665582 | L40: -1.530998436 | M40: -0.8926840183 | N40: -1.318355005 | O40: -2.58936268 | P40: -3.884044196 | Q40: -0.5066247199 | R40: -0.7559290079 | S40: -0.621262918 | T40: -0.9318944052 | U40: -2.123698461 | V40: -3.151613311 | W40: -4.486024487 | X40: -6.729037008 | Y40: -1.602198419 | Z40: -2.366197065 | AA40: -4.647414658 | AB40: -6.971122303 | AC40: -3.349049579 | AD40: -4.997078955 | AE40: -4.106866943 | AF40: -6.1603006 | AG40: -12.24860636 | AH40: -18.1771902 | AI40: -25.87351693 | AJ40: -38.81027699 | AK40: 4.238249089 | AL40: 6.259232589 | AM40: 12.29367144 | AN40: 18.440508 | AO40: 3.819950388 | AP40: 5.699704719 | AQ40: 4.684322402 | AR40: 7.026483815 | AT40: 2534.965163 | AU40: 754 | AV40: 474.7759569 | BA40: LTU | BB40: -8.602529177 | BC40: -12.79212381 | BD40: 0 | BE40: 0 | BF40: -8.651911889 | BG40: -12.89087375 | BH40: 0 | BI40: 0 | BJ40: -9.181219352 | BK40: -13.59589805 | BL40: 0 | BM40: 0 | BN40: -51.2758969 | BO40: -75.9578348 | BP40: 0 | BQ40: 0 | BR40: -52.58665561 | BS40: -77.9027952 | BT40: 0 | BU40: 0 | BV40: -50.71898492 | BW40: -75.00015281 | BX40: 0 | BY40: 0 | BZ40: 4596.251028 | CA40: 6834.712326 | CB40: 0 | CC40: 0 | CD40: 154.8665278 | CE40: 230.7426247 | CF40: 0 | CG40: 0 | CH40: 3709.537803 | CI40: 5493.224358 | CJ40: 0 | CK40: 0
A41: BTN | B41: Business, Trade, Personal, and Public Services | C41: BTNBusiness, Trade, Personal, and Public Services | D41: 666.52767 | E41: 983.7444681 | F41: 704.6785514 | G41: 122.4635444 | H41: 97.08116168 | I41: -0.6097071289 | J41: -0.8938666243 | K41: -1.392189003 | L41: -2.088283563 | M41: -0.6732733487 | N41: -0.9862280398 | O41: -1.207467199 | P41: -1.811200858 | Q41: -0.2952196841 | R41: -0.433694675 | S41: -0.6120438802 | T41: -0.9180658428 | U41: -2.117997065 | V41: -3.105108662 | W41: -4.836178032 | X41: -7.254267249 | Y41: -2.610196731 | Z41: -3.823483003 | AA41: -4.681199606 | AB41: -7.021799639 | AC41: -2.293165832 | AD41: -3.368792339 | AE41: -4.754148146 | AF41: -7.131222393 | AG41: -15.45586331 | AH41: -22.65920753 | AI41: -35.29150623 | AJ41: -52.93726081 | AK41: 3.196539984 | AL41: 4.682373613 | AM41: 5.732763947 | AN41: 8.599146202 | AO41: 2.225956418 | AP41: 3.270057849 | AQ41: 4.614810857 | AR41: 6.922216455 | AT41: 2534.965163 | AU41: 754 | AV41: 474.7759569 | BA41: LUX | BB41: -9.010223448 | BC41: -13.33785989 | BD41: 0 | BE41: 0 | BF41: -11.55570226 | BG41: -17.0552416 | BH41: 0 | BI41: 0 | BJ41: -6.99043647 | BK41: -10.35357966 | BL41: 0 | BM41: 0 | BN41: -90.43128803 | BO41: -132.6415057 | BP41: 0 | BQ41: 0 | BR41: -97.9625879 | BS41: -143.5710071 | BT41: 0 | BU41: 0 | BV41: -110.044609 | BW41: -160.8927679 | BX41: 0 | BY41: 0 | BZ41: 6386.926254 | CA41: 9454.585447 | CB41: 0 | CC41: 0 | CD41: 57.7904881 | CE41: 85.29388475 | CF41: 0 | CG41: 0 | CH41: 10483.16059 | CI41: 15526.67545 | CJ41: 0 | CK41: 0
A42: BTN | B42: Hotel and restaurants and Other Personal Services | C42: BTNHotel and restaurants and Other Personal Services | D42: 33.24150655 | E42: 90.35919094 | F42: 64.73419676 | G42: 12.01405063 | H42: 54.71089574 | I42: -1.068458664 | J42: -1.551312468 | K42: -0.04663766844 | L42: -0.06995652266 | M42: -0.7217225019 | N42: -1.047306624 | O42: -0.06655813489 | P42: -0.0998372193 | Q42: -3.065472993 | R42: -4.451066015 | S42: -0.1181685593 | T42: -0.1772528949 | U42: -40.40351002 | V42: -58.66251163 | W42: -1.763592328 | X42: -2.645389249 | Y42: -28.52130748 | Z42: -41.38786609 | AA42: -2.63026998 | AB42: -3.94540564 | AC42: -42.25214725 | AD42: -61.35010718 | AE42: -1.628745509 | AF42: -2.443119033 | AG42: -27.08505492 | AH42: -39.32523062 | AI42: -1.182248648 | AJ42: -1.773373479 | AK42: 3.426564914 | AL42: 4.972360047 | AM42: 0.3160020218 | AN42: 0.4740031132 | AO42: 23.11366637 | AP42: 33.56103775 | AQ42: 0.8909909374 | AR42: 1.336486827 | AT42: 2534.965163 | AU42: 754 | AV42: 474.7759569 | BA42: LVA | BB42: -6.969946363 | BC42: -10.36285895 | BD42: 0 | BE42: 0 | BF42: -6.609781717 | BG42: -9.848290231 | BH42: 0 | BI42: 0 | BJ42: -8.973298825 | BK42: -13.28421446 | BL42: 0 | BM42: 0 | BN42: -42.20574452 | BO42: -62.49929233 | BP42: 0 | BQ42: 0 | BR42: -42.12429306 | BS42: -62.39710763 | BT42: 0 | BU42: 0 | BV42: -43.98002252 | BW42: -65.05865806 | BX42: 0 | BY42: 0 | BZ42: 2398.304818 | CA42: 3565.779886 | CB42: 0 | CC42: 0 | CD42: 77.69716148 | CE42: 115.765426 | CF42: 0 | CG42: 0 | CH42: 1892.84944 | CI42: 2802.20445 | CJ42: 0 | CK42: 0
A43: BTN | B43: Light/Heavy Manufacturing, Utilities, and Construction | C43: BTNLight/Heavy Manufacturing, Utilities, and Construction | D43: 1186.77156 | E43: 1999.84854 | F43: 937.4729826 | G43: 61.09519361 | H43: 394.4330426 | I43: -0.7981686338 | J43: -1.183673002 | K43: -2.216374828 | L43: -3.324562328 | M43: -0.2461852301 | N43: -0.3651366076 | O43: -0.7498722713 | P43: -1.124808443 | Q43: -2.000900351 | R43: -2.970480477 | S43: -1.794137182 | T43: -2.691205837 | U43: -2.084159875 | V43: -3.090780157 | W43: -5.787347797 | X43: -8.68102192 | Y43: -1.913126075 | Z43: -2.837507209 | AA43: -5.827320327 | AB43: -8.740980773 | AC43: -3.825403811 | AD43: -5.679087082 | AE43: -3.430105458 | AF43: -5.145158309 | AG43: -20.23329681 | AH43: -30.00569824 | AI43: -56.18432976 | AJ43: -84.27649682 | AK43: 1.168828282 | AL43: 1.733580823 | AM43: 3.560213251 | AN43: 5.34032005 | AO43: 15.08678865 | AP43: 22.39742279 | AQ43: 13.52779435 | AR43: 20.29169201 | AT43: 2534.965163 | AU43: 754 | AV43: 474.7759569 | BA43: MAL | BB43: -7.618499384 | BC43: -11.26517048 | BD43: 0 | BE43: 0 | BF43: -8.169992416 | BG43: -12.07033798 | BH43: 0 | BI43: 0 | BJ43: -6.005410561 | BK43: -8.90638944 | BL43: 0 | BM43: 0 | BN43: -61.68647015 | BO43: -90.4664595 | BP43: 0 | BQ43: 0 | BR43: -62.60517003 | BS43: -91.82478933 | BT43: 0 | BU43: 0 | BV43: -88.1894517 | BW43: -128.7865263 | BX43: 0 | BY43: 0 | BZ43: 27318.56315 | CA43: 40394.86725 | CB43: 0 | CC43: 0 | CD43: 1458.736443 | CE43: 2155.135647 | CF43: 0 | CG43: 0 | CH43: 14806.43045 | CI43: 21958.8377 | CJ43: 0 | CK43: 0
A44: BTN | B44: Transport services | C44: BTNTransport services | D44: 150.2668707 | E44: 387.3045513 | F44: 184.0715384 | G44: 14.67602714 | H44: 93.79340554 | I44: -0.8542320764 | J44: -1.242172385 | K44: -0.368765441 | L44: -0.5531482037 | M44: -0.3264170985 | N44: -0.4760169047 | O44: -0.126893091 | P44: -0.1903396433 | Q44: -1.948785932 | R44: -2.833109832 | S44: -0.5413222034 | T44: -0.8119834115 | U44: -11.36015788 | V44: -16.51925138 | W44: -4.904093098 | X44: -7.356140209 | Y44: -10.55973541 | Z44: -15.39935435 | AA44: -4.105046804 | AB44: -6.157570425 | AC44: -15.66812207 | AD44: -22.77803321 | AE44: -4.352198065 | AF44: -6.528297953 | AG44: -21.65448555 | AH44: -31.48863723 | AI44: -9.348075461 | AJ44: -14.02211426 | AK44: 1.549749903 | AL44: 2.260013814 | AM44: 0.6024578871 | AN44: 0.9036868628 | AO44: 14.69384593 | AP44: 21.36164813 | AQ44: 4.081569413 | AR44: 6.122354923 | AT44: 2534.965163 | AU44: 754 | AV44: 474.7759569 | BA44: MDV | BB44: -30.62133546 | BC44: -44.65567739 | BD44: 0 | BE44: 0 | BF44: -27.42581231 | BG44: -40.0069989 | BH44: 0 | BI44: 0 | BJ44: -52.2827792 | BK44: -75.91704088 | BL44: 0 | BM44: 0 | BN44: -200.9372339 | BO44: -292.3881157 | BP44: 0 | BQ44: 0 | BR44: -208.8932418 | BS44: -303.842518 | BT44: 0 | BU44: 0 | BV44: -221.0460141 | BW44: -321.4122261 | BX44: 0 | BY44: 0 | BZ44: 1631.338525 | CA44: 2379.012078 | CB44: 0 | CC44: 0 | CD44: 47.23759771 | CE44: 68.90714844 | CF44: 0 | CG44: 0 | CH44: 1924.306533 | CI44: 2794.183094 | CJ44: 0 | CK44: 0
A45: CAM | B45: Agriculture, Mining and Quarrying | C45: CAMAgriculture, Mining and Quarrying | D45: 4556.709833 | E45: 7885.734798 | F45: 5797.201935 | G45: 5285.834906 | H45: 1080.820235 | I45: -1.414341851 | J45: -2.059364067 | K45: -0.7431850846 | L45: -1.114777695 | M45: -3.00499041 | N45: -4.375461095 | O45: -1.551404505 | P45: -2.327106901 | Q45: -0.5662152142 | R45: -0.8244513831 | S45: -0.2850851578 | T45: -0.4276277634 | U45: -5.517927269 | V45: -8.034423316 | W45: -2.899469631 | X45: -4.349204714 | Y45: -5.586196544 | Z45: -8.133864776 | AA45: -2.884019347 | AB45: -4.326029289 | AC45: -5.68402082 | AD45: -8.276356251 | AE45: -2.861862296 | AF45: -4.292793711 | AG45: -347.1144819 | AH45: -505.418892 | AI45: -182.3960066 | AJ45: -273.5940267 | AK45: 295.2771109 | AL45: 429.9426403 | AM45: 152.4444931 | AN45: 228.6667538 | AO45: 85.59540761 | AP45: 124.6332674 | AQ45: 43.09665243 | AR45: 64.64498268 | AT45: 24542.47406 | AU45: 15117.11545 | AV45: 9826.224732 | BA45: MEX | BB45: -8.520088565 | BC45: -12.71974215 | BD45: 0 | BE45: 0 | BF45: -7.946100282 | BG45: -11.88270099 | BH45: 0 | BI45: 0 | BJ45: -8.556222075 | BK45: -12.79163814 | BL45: 0 | BM45: 0 | BN45: -50.74838114 | BO45: -75.34460251 | BP45: 0 | BQ45: 0 | BR45: -47.09497626 | BS45: -70.04625875 | BT45: 0 | BU45: 0 | BV45: -51.0249747 | BW45: -75.7457978 | BX45: 0 | BY45: 0 | BZ45: 104004.6768 | CA45: 155269.8262 | CB45: 0 | CC45: 0 | CD45: 4959.426029 | CE45: 7416.389734 | CF45: 0 | CG45: 0 | CH45: 41036.0133 | CI45: 61349.253 | CJ45: 0 | CK45: 0
A46: CAM | B46: Business, Trade, Personal, and Public Services | C46: CAMBusiness, Trade, Personal, and Public Services | D46: 5924.394917 | E46: 11227.63268 | F46: 6268.723847 | G46: 2796.075161 | H46: 1577.120569 | I46: -1.319761883 | J46: -1.927092043 | K46: -0.7704706489 | L46: -1.155706013 | M46: -1.395108839 | N46: -2.034194592 | O46: -0.8388481212 | P46: -1.258272223 | Q46: -0.7871378052 | R46: -1.152337602 | S46: -0.3302957506 | T46: -0.4954436482 | U46: -4.761638821 | V46: -6.952857485 | W46: -2.779821876 | X46: -4.169732955 | Y46: -4.902820179 | Z46: -7.148754285 | AA46: -2.947957449 | AB46: -4.421936319 | AC46: -5.415187116 | AD46: -7.927612797 | AE46: -2.272300074 | AF46: -3.408450264 | AG46: -323.9022177 | AH46: -472.9560649 | AI46: -189.0925592 | AJ46: -283.6388484 | AK46: 137.0865298 | AL46: 199.8845321 | AM46: 82.42710154 | AN46: 123.6406564 | AO46: 118.9925307 | AP46: 174.2002057 | AQ46: 49.93118994 | AR46: 74.89678827 | AT46: 24542.47406 | AU46: 15117.11545 | AV46: 9826.224732 | BA46: MLT | BB46: -7.65746822 | BC46: -11.23553183 | BD46: 0 | BE46: 0 | BF46: -7.271546939 | BG46: -10.6550259 | BH46: 0 | BI46: 0 | BJ46: -12.02144525 | BK46: -17.6515251 | BL46: 0 | BM46: 0 | BN46: -46.68639132 | BO46: -68.37115992 | BP46: 0 | BQ46: 0 | BR46: -43.79418235 | BS46: -64.11898125 | BT46: 0 | BU46: 0 | BV46: -60.02369814 | BW46: -87.95352479 | BX46: 0 | BY46: 0 | BZ46: 1114.423736 | CA46: 1635.154466 | CB46: 0 | CC46: 0 | CD46: 18.32846721 | CE46: 26.85677401 | CF46: 0 | CG46: 0 | CH46: 2534.468625 | CI46: 3721.452423 | CJ46: 0 | CK46: 0
A47: CAM | B47: Hotel and restaurants and Other Personal Services | C47: CAMHotel and restaurants and Other Personal Services | D47: 2083.046005 | E47: 3936.412608 | F47: 1825.698755 | G47: 268.8080609 | H47: 1419.622138 | I47: -3.960953528 | J47: -5.742043202 | K47: -0.1803753609 | L47: -0.2705631371 | M47: -1.335174856 | N47: -1.934862147 | O47: -0.0713738331 | P47: -0.1070607728 | Q47: -6.490825019 | R47: -9.416254987 | S47: -0.1920879718 | T47: -0.2881322039 | U47: -49.06938731 | V47: -71.13401858 | W47: -2.234539836 | X47: -3.35181094 | Y47: -48.80705161 | Z47: -70.72850141 | AA47: -2.609056289 | AB47: -3.91358528 | AC47: -49.60834409 | AD47: -71.96694041 | AE47: -1.468097842 | AF47: -2.202148644 | AG47: -972.1159921 | AH47: -1409.239463 | AI47: -44.26857617 | AJ47: -66.40288774 | AK47: 131.1972819 | AL47: 190.1239028 | AM47: 7.01335324 | AN47: 10.52003213 | AO47: 981.2255116 | AP47: 1423.466137 | AQ47: 29.03816046 | AR47: 43.5572779 | AT47: 24542.47406 | AU47: 15117.11545 | AV47: 9826.224732 | BA47: MON | BB47: -4.055095932 | BC47: -5.99385977 | BD47: -1.765015258 | BE47: -2.647522762 | BF47: -4.081885808 | BG47: -5.981845663 | BH47: -2.302618601 | BI47: -3.453927715 | BJ47: -5.549609455 | BK47: -8.268154756 | BL47: -0.6627217026 | BM47: -0.9940824407 | BN47: -44.77430373 | BO47: -65.35171764 | BP47: -9.55830904 | BQ47: -14.33746247 | BR47: -46.42021176 | BS47: -67.6099804 | BT47: -10.94352761 | BU47: -16.41528996 | BV47: -52.79439939 | BW47: -77.111757 | BX47: -8.060998871 | BY47: -12.09149682 | BZ47: 529.8692128 | CA47: 783.2026199 | CB47: 230.630116 | CC47: 345.9451577 | CD47: 51.37200117 | CE47: 75.28367937 | CF47: 28.97928337 | CG47: 43.46892269 | CH47: 425.3778727 | CI47: 633.7545209 | CJ47: 50.79765528 | CK47: 76.19647424
A48: CAM | B48: Light/Heavy Manufacturing, Utilities, and Construction | C48: CAMLight/Heavy Manufacturing, Utilities, and Construction | D48: 12850.49068 | E48: 19933.55772 | F48: 7408.032713 | G48: 1453.344247 | H48: 6327.405643 | I48: -1.214267703 | J48: -1.79471728 | K48: -0.9088097722 | L48: -1.363214705 | M48: -0.5830256646 | N48: -0.8518215174 | O48: -0.480877796 | P48: -0.7213167181 | Q48: -3.204481192 | R48: -4.787731733 | S48: -0.2296272305 | T48: -0.3444409039 | U48: -3.707247321 | V48: -5.479401959 | W48: -2.774662116 | X48: -4.161993318 | Y48: -3.941902632 | Z48: -5.759261874 | AA48: -3.25126931 | AB48: -4.876904127 | AC48: -5.494898084 | AD48: -8.209783847 | AE48: -0.3937542938 | AF48: -0.5906315405 | AG48: -298.011336 | AH48: -440.4680229 | AI48: -223.0444026 | AJ48: -334.5666155 | AK48: 57.28941204 | AL48: 83.70189661 | AM48: 47.25213292 | AN48: 70.87820174 | AO48: 484.4251213 | AP48: 723.7669334 | AQ48: 34.71301353 | AR48: 52.06952909 | AT48: 24542.47406 | AU48: 15117.11545 | AV48: 9826.224732 | BA48: NLD | BB48: -7.786647304 | BC48: -11.58756286 | BD48: 0 | BE48: 0 | BF48: -7.541816031 | BG48: -11.22822771 | BH48: 0 | BI48: 0 | BJ48: -9.203717778 | BK48: -13.66405447 | BL48: 0 | BM48: 0 | BN48: -54.00055458 | BO48: -79.74075975 | BP48: 0 | BQ48: 0 | BR48: -53.52454523 | BS48: -79.03341988 | BT48: 0 | BU48: 0 | BV48: -58.46833015 | BW48: -86.22258126 | BX48: 0 | BY48: 0 | BZ48: 71143.36229 | CA48: 105870.749 | CB48: 0 | CC48: 0 | CD48: 739.9786856 | CE48: 1101.677521 | CF48: 0 | CG48: 0 | CH48: 70906.81275 | CI48: 105269.911 | CJ48: 0 | CK48: 0
A49: CAM | B49: Transport services | C49: CAMTransport services | D49: 545.327693 | E49: 2544.271725 | F49: 1317.603648 | G49: 22.16288798 | H49: 444.9778051 | I49: -3.150245578 | J49: -4.5667934 | K49: -0.1290183497 | L49: -0.1935275395 | M49: -0.121966336 | N49: -0.1768100437 | O49: -0.004995132919 | P49: -0.007492699957 | Q49: -2.217691085 | R49: -3.214903968 | S49: -0.09082556799 | T49: -0.1362383625 | U49: -54.07538621 | V49: -78.39106848 | W49: -2.214658164 | X49: -3.321987502 | Y49: -54.07547487 | Z49: -78.39119701 | AA49: -2.214661795 | AB49: -3.321992949 | AC49: -54.07422371 | AD49: -78.38938326 | AE49: -2.214610554 | AF49: -3.321916087 | AG49: -773.1482039 | AH49: -1120.804086 | AI49: -31.66429501 | AJ49: -47.49644618 | AK49: 11.98468627 | AL49: 17.37375224 | AM49: 0.4908329863 | AN49: 0.7362495362 | AO49: 335.2509216 | AP49: 486.0007444 | AQ49: 13.73020597 | AR49: 20.59531054 | AT49: 24542.47406 | AU49: 15117.11545 | AV49: 9826.224732 | BA49: NOR | BB49: -8.358039242 | BC49: -12.47405291 | BD49: 0 | BE49: 0 | BF49: -7.092691103 | BG49: -10.59811745 | BH49: 0 | BI49: 0 | BJ49: -8.999149671 | BK49: -13.35851174 | BL49: 0 | BM49: 0 | BN49: -44.78267649 | BO49: -66.62953061 | BP49: 0 | BQ49: 0 | BR49: -41.56630117 | BS49: -61.87028184 | BT49: 0 | BU49: 0 | BV49: -45.75258446 | BW49: -67.94159949 | BX49: 0 | BY49: 0 | BZ49: 36287.81609 | CA49: 54158.17335 | CB49: 0 | CC49: 0 | CD49: 166.761911 | CE49: 249.1807826 | CF49: 0 | CG49: 0 | CH49: 15019.65549 | CI49: 22295.46696 | CJ49: 0 | CK49: 0
A50: CAN | B50: Agriculture, Mining and Quarrying | C50: CANAgriculture, Mining and Quarrying | D50: 31186.35987 | E50: 278359.1848 | F50: 168086.7264 | G50: 652.3662993 | H50: 145191.9843 | I50: -0.9981349241 | J50: -1.489866648 | K50: 0 | L50: 0 | M50: -0.2722955782 | N50: -0.4065835862 | O50: 0 | P50: 0 | Q50: -2.544600239 | R50: -3.798187453 | S50: 0 | T50: 0 | U50: -9.464171972 | V50: -14.12670155 | W50: 0 | X50: 0 | Y50: -8.453238748 | Z50: -12.62212243 | AA50: 0 | AB50: 0 | AC50: -9.474050689 | AD50: -14.14140418 | AE50: 0 | AF50: 0 | AG50: -17101.46193 | AH50: -25526.50663 | AI50: 0 | AJ50: 0 | AK50: 55.14608246 | AL50: 82.34247546 | AM50: 0 | AN50: 0 | AO50: 14008.34151 | AP50: 20909.49539 | AQ50: 0 | AR50: 0 | AT50: 1713341.705 | AU50: 550512.4656 | AV50: 20252.28717 | BA50: NPL | BB50: -7.838383212 | BC50: -11.67234766 | BD50: 0 | BE50: 0 | BF50: -6.926564019 | BG50: -10.33980402 | BH50: 0 | BI50: 0 | BJ50: -11.26789107 | BK50: -16.62216105 | BL50: 0 | BM50: 0 | BN50: -54.48223149 | BO50: -80.5051303 | BP50: 0 | BQ50: 0 | BR50: -48.16802872 | BS50: -71.30648342 | BT50: 0 | BU50: 0 | BV50: -53.85704216 | BW50: -79.50858361 | BX50: 0 | BY50: 0 | BZ50: 2276.297758 | CA50: 3389.696332 | CB50: 0 | CC50: 0 | CD50: 1323.307916 | CE50: 1975.401436 | CF50: 0 | CG50: 0 | CH50: 292.3264358 | CI50: 431.2339428 | CJ50: 0 | CK50: 0
A51: CAN | B51: Business, Trade, Personal, and Public Services | C51: CANBusiness, Trade, Personal, and Public Services | D51: 932344.2463 | E51: 1636874.113 | F51: 944087.6345 | G51: 10729.34242 | H51: 77039.20257 | I51: -5.027521672 | J51: -7.528438245 | K51: 0 | L51: 0 | M51: -4.469518166 | N51: -6.692723779 | O51: 0 | P51: 0 | Q51: -1.347418777 | R51: -2.016093566 | S51: 0 | T51: 0 | U51: -8.487278099 | V51: -12.70923394 | W51: 0 | X51: 0 | Y51: -8.436487447 | Z51: -12.63292329 | AA51: 0 | AB51: 0 | AC51: -9.454740155 | AD51: -14.14678281 | AE51: 0 | AF51: 0 | AG51: -86138.62553 | AH51: -128987.8722 | AI51: 0 | AJ51: 0 | AK51: 905.179654 | AL51: 1355.429639 | AM51: 0 | AN51: 0 | AO51: 7417.708332 | AP51: 11098.8464 | AQ51: 0 | AR51: 0 | AT51: 1713341.705 | AU51: 550512.4656 | AV51: 20252.28717 | BA51: PAK | BB51: -7.337714305 | BC51: -10.99613692 | BD51: 0 | BE51: 0 | BF51: -7.274541486 | BG51: -10.90472676 | BH51: 0 | BI51: 0 | BJ51: -6.922082118 | BK51: -10.37323893 | BL51: 0 | BM51: 0 | BN51: -37.71797065 | BO51: -56.48005341 | BP51: 0 | BQ51: 0 | BR51: -38.35297175 | BS51: -57.4453642 | BT51: 0 | BU51: 0 | BV51: -36.91055478 | BW51: -55.24847258 | BX51: 0 | BY51: 0 | BZ51: 23083.58412 | CA51: 34592.55036 | CB51: 0 | CC51: 0 | CD51: 4302.209553 | CE51: 6449.123938 | CF51: 0 | CG51: 0 | CH51: 1914.712901 | CI51: 2869.335275 | CJ51: 0 | CK51: 0
A52: CAN | B52: Hotel and restaurants and Other Personal Services | C52: CANHotel and restaurants and Other Personal Services | D52: 96578.39561 | E52: 160629.2668 | F52: 77810.5071 | G52: 3537.740295 | H52: 19335.58717 | I52: -0.6756524234 | J52: -0.9962905041 | K52: 0 | L52: 0 | M52: -2.352693659 | N52: -3.471343575 | O52: 0 | P52: 0 | Q52: -0.5755705326 | R52: -0.8460348444 | S52: 0 | T52: 0 | U52: -13.83922862 | V52: -20.40678252 | W52: 0 | X52: 0 | Y52: -13.4683222 | Z52: -19.87218929 | AA52: 0 | AB52: 0 | AC52: -16.09162739 | AD52: -23.65318706 | AE52: 0 | AF52: 0 | AG52: -11576.23475 | AH52: -17069.86071 | AI52: 0 | AJ52: 0 | AK52: 476.474276 | AL52: 703.0264694 | AM52: 0 | AN52: 0 | AO52: 3168.58753 | AP52: 4657.527282 | AQ52: 0 | AR52: 0 | AT52: 1713341.705 | AU52: 550512.4656 | AV52: 20252.28717 | BA52: PHI | BB52: -7.73450591 | BC52: -11.51963345 | BD52: 0 | BE52: 0 | BF52: -7.805987556 | BG52: -11.61965702 | BH52: 0 | BI52: 0 | BJ52: -9.114348023 | BK52: -13.52644613 | BL52: 0 | BM52: 0 | BN52: -51.22484517 | BO52: -75.70179779 | BP52: 0 | BQ52: 0 | BR52: -52.3038099 | BS52: -77.30111645 | BT52: 0 | BU52: 0 | BV52: -55.66383333 | BW52: -82.09398658 | BX52: 0 | BY52: 0 | BZ52: 25594.28008 | CA52: 38119.65864 | CB52: 0 | CC52: 0 | CD52: 3414.84603 | CE52: 5083.192785 | CF52: 0 | CG52: 0 | CH52: 9555.996986 | CI52: 14181.88971 | CJ52: 0 | CK52: 0
A53: CAN | B53: Light/Heavy Manufacturing, Utilities, and Construction | C53: CANLight/Heavy Manufacturing, Utilities, and Construction | D53: 465707.7552 | E53: 961361.9208 | F53: 343567.6263 | G53: 4378.669117 | H53: 271089.65 | I53: -2.667903802 | J53: -3.996560654 | K53: 0 | L53: 0 | M53: -2.638695038 | N53: -3.953047566 | O53: 0 | P53: 0 | Q53: -4.674041992 | R53: -6.995455972 | S53: 0 | T53: 0 | U53: -12.376126 | V53: -18.53962583 | W53: 0 | X53: 0 | Y53: -12.20453216 | Z53: -18.28369533 | AA53: 0 | AB53: 0 | AC53: -9.32048376 | AD53: -13.94960377 | AE53: 0 | AF53: 0 | AG53: -45710.30848 | AH53: -68474.74045 | AI53: 0 | AJ53: 0 | AK53: 534.3960967 | AL53: 800.582545 | AM53: 0 | AN53: 0 | AO53: 25731.18381 | AP53: 38510.85715 | AQ53: 0 | AR53: 0 | AT53: 1713341.705 | AU53: 550512.4656 | AV53: 20252.28717 | BA53: POL | BB53: -7.761865295 | BC53: -11.5658647 | BD53: 0 | BE53: 0 | BF53: -7.571520328 | BG53: -11.28111878 | BH53: 0 | BI53: 0 | BJ53: -8.392618911 | BK53: -12.49936894 | BL53: 0 | BM53: 0 | BN53: -49.27394237 | BO53: -72.90925647 | BP53: 0 | BQ53: 0 | BR53: -47.67887875 | BS53: -70.56576102 | BT53: 0 | BU53: 0 | BV53: -54.99082472 | BW53: -81.19430492 | BX53: 0 | BY53: 0 | BZ53: 45458.43639 | CA53: 67737.08439 | CB53: 0 | CC53: 0 | CD53: 1530.035212 | CE53: 2279.662236 | CF53: 0 | CG53: 0 | CH53: 27324.07784 | CI53: 40694.5357 | CJ53: 0 | CK53: 0
A54: CAN | B54: Transport services | C54: CANTransport services | D54: 37658.82956 | E54: 165759.8916 | F54: 60221.70036 | G54: 954.1684243 | H54: 27922.09123 | I54: -0.3735619486 | J54: -0.5550844048 | K54: 0 | L54: 0 | M54: -0.465603072 | N54: -0.6918530819 | O54: 0 | P54: 0 | Q54: -0.5220197513 | R54: -0.7752010234 | S54: 0 | T54: 0 | U54: -9.886359736 | V54: -14.69037232 | W54: 0 | X54: 0 | Y54: -9.882455336 | Z54: -14.68462644 | AA54: 0 | AB54: 0 | AC54: -10.10643006 | AD54: -15.00808141 | AE54: 0 | AF54: 0 | AG54: -6400.392658 | AH54: -9510.492604 | AI54: 0 | AJ54: 0 | AK54: 94.2952712 | AL54: 140.1160729 | AM54: 0 | AN54: 0 | AO54: 2873.783804 | AP54: 4267.578267 | AQ54: 0 | AR54: 0 | AT54: 1713341.705 | AU54: 550512.4656 | AV54: 20252.28717 | BA54: PRT | BB54: -12.0643243 | BC54: -17.85480716 | BD54: 0 | BE54: 0 | BF54: -11.26837668 | BG54: -16.71047775 | BH54: 0 | BI54: 0 | BJ54: -17.89451197 | BK54: -26.28139252 | BL54: 0 | BM54: 0 | BN54: -93.53471196 | BO54: -137.2941456 | BP54: 0 | BQ54: 0 | BR54: -83.48775571 | BS54: -122.7782377 | BT54: 0 | BU54: 0 | BV54: -132.5239155 | BW54: -193.6098245 | BX54: 0 | BY54: 0 | BZ54: 29035.75513 | CA54: 42971.97223 | CB54: 0 | CC54: 0 | CD54: 644.5598718 | CE54: 955.8522667 | CF54: 0 | CG54: 0 | CH54: 18743.7351 | CI54: 27528.63338 | CJ54: 0 | CK54: 0
A55: CHE | B55: Agriculture, Mining and Quarrying | C55: CHEAgriculture, Mining and Quarrying | D55: 1764.208292 | E55: 14379.17648 | F55: 5899.590675 | G55: 2714.444785 | H55: 389.9821744 | I55: -0.05417053776 | J55: -0.08061680018 | K55: 0 | L55: 0 | M55: -3.521347707 | N55: -5.239605947 | O55: 0 | P55: 0 | Q55: -0.006507636375 | R55: -0.009684268002 | S55: 0 | T55: 0 | U55: -6.695696424 | V55: -9.964560866 | W55: 0 | X55: 0 | Y55: -6.696182867 | Z55: -9.963616916 | AA55: 0 | AB55: 0 | AC55: -6.695745775 | AD55: -9.96420095 | AE55: 0 | AF55: 0 | AG55: -381.9783218 | AH55: -568.4615903 | AI55: 0 | AJ55: 0 | AK55: 181.7641957 | AL55: 270.4568933 | AM55: 0 | AN55: 0 | AO55: 30.34546039 | AP55: 45.15826548 | AQ55: 0 | AR55: 0 | AT55: 705140.3542 | AU55: 466305.4087 | AV55: 5161.779264 | BA55: ROM | BB55: -7.790438926 | BC55: -11.62943021 | BD55: 0 | BE55: 0 | BF55: -7.293311867 | BG55: -10.89035175 | BH55: 0 | BI55: 0 | BJ55: -8.472336727 | BK55: -12.62447733 | BL55: 0 | BM55: 0 | BN55: -41.63459518 | BO55: -61.96712919 | BP55: 0 | BQ55: 0 | BR55: -41.35753507 | BS55: -61.53458578 | BT55: 0 | BU55: 0 | BV55: -41.83446683 | BW55: -62.24155785 | BX55: 0 | BY55: 0 | BZ55: 18662.19251 | CA55: 27858.59274 | CB55: 0 | CC55: 0 | CD55: 1026.017458 | CE55: 1532.046239 | CF55: 0 | CG55: 0 | CH55: 8451.506249 | CI55: 12593.43821 | CJ55: 0 | CK55: 0
A56: CHE | B56: Business, Trade, Personal, and Public Services | C56: CHEBusiness, Trade, Personal, and Public Services | D56: 424609.0917 | E56: 792577.4921 | F56: 473338.6218 | G56: 1387.332694 | H56: 157618.1146 | I56: -3.825414185 | J56: -5.708864933 | K56: 0 | L56: 0 | M56: -1.567504964 | N56: -2.338892687 | O56: 0 | P56: 0 | Q56: -2.431605259 | R56: -3.623140503 | S56: 0 | T56: 0 | U56: -5.893333396 | V56: -8.794928533 | W56: 0 | X56: 0 | Y56: -5.832136912 | Z56: -8.702200434 | AA56: 0 | AB56: 0 | AC56: -6.190238472 | AD56: -9.223579216 | AE56: 0 | AF56: 0 | AG56: -26974.53913 | AH56: -40255.51041 | AI56: 0 | AJ56: 0 | AK56: 80.91114618 | AL56: 120.7284777 | AM56: 0 | AN56: 0 | AO56: 11338.70684 | AP56: 16894.90013 | AQ56: 0 | AR56: 0 | AT56: 705140.3542 | AU56: 466305.4087 | AV56: 5161.779264 | BA56: RUS | BB56: -8.971289326 | BC56: -13.39548802 | BD56: 0 | BE56: 0 | BF56: -8.803961087 | BG56: -13.16397738 | BH56: 0 | BI56: 0 | BJ56: -8.822485475 | BK56: -13.11577647 | BL56: 0 | BM56: 0 | BN56: -47.80077928 | BO56: -71.15437509 | BP56: 0 | BQ56: 0 | BR56: -47.65586742 | BS56: -71.02723308 | BT56: 0 | BU56: 0 | BV56: -49.744309 | BW56: -73.82252544 | BX56: 0 | BY56: 0 | BZ56: 148704.0231 | CA56: 222037.5342 | CB56: 0 | CC56: 0 | CD56: 9713.379602 | CE56: 14523.77039 | CF56: 0 | CG56: 0 | CH56: 44955.04887 | CI56: 66831.54922 | CJ56: 0 | CK56: 0
A57: CHE | B57: Hotel and restaurants and Other Personal Services | C57: CHEHotel and restaurants and Other Personal Services | D57: 36721.76206 | E57: 54576.15132 | F57: 30381.2649 | G57: 129.3502116 | H57: 8638.633949 | I57: -0.6514122038 | J57: -0.9533652429 | K57: 0 | L57: 0 | M57: -0.4138224697 | N57: -0.6053040945 | O57: 0 | P57: 0 | Q57: -0.3606674033 | R57: -0.5273012317 | S57: 0 | T57: 0 | U57: -15.63523912 | V57: -22.88273609 | W57: 0 | X57: 0 | Y57: -16.5137738 | Z57: -24.1549351 | AA57: 0 | AB57: 0 | AC57: -16.75260141 | AD57: -24.49255818 | AE57: 0 | AF57: 0 | AG57: -4593.370321 | AH57: -6722.563051 | AI57: 0 | AJ57: 0 | AK57: 21.36060243 | AL57: 31.24446124 | AM57: 0 | AN57: 0 | AO57: 1681.811609 | AP57: 2458.834164 | AQ57: 0 | AR57: 0 | AT57: 705140.3542 | AU57: 466305.4087 | AV57: 5161.779264 | BA57: RoW | BB57: -3.456200533 | BC57: -5.104863948 | BD57: 0 | BE57: 0 | BF57: -2.961282857 | BG57: -4.380119549 | BH57: 0 | BI57: 0 | BJ57: -5.357754464 | BK57: -7.92215779 | BL57: 0 | BM57: 0 | BN57: -29.22726242 | BO57: -42.84486456 | BP57: 0 | BQ57: 0 | BR57: -26.88062923 | BS57: -39.42824757 | BT57: 0 | BU57: 0 | BV57: -41.52236014 | BW57: -60.8671793 | BX57: 0 | BY57: 0 | BZ57: 3501082.934 | CA57: 5171155.98 | CB57: 0 | CC57: 0 | CD57: 34712.22781 | CE57: 51343.86514 | CF57: 0 | CG57: 0 | CH57: 162541.486 | CI57: 240339.3639 | CJ57: 0 | CK57: 0
A58: CHE | B58: Light/Heavy Manufacturing, Utilities, and Construction | C58: CHELight/Heavy Manufacturing, Utilities, and Construction | D58: 209547.7279 | E58: 509798.1875 | F58: 192534.9953 | G58: 787.4742377 | H58: 215708.6917 | I58: -1.886548304 | J58: -2.81946877 | K58: 0 | L58: 0 | M58: -1.121358352 | N58: -1.673607917 | O58: 0 | P58: 0 | Q58: -3.674422316 | R58: -5.490754653 | S58: 0 | T58: 0 | U58: -7.145172849 | V58: -10.67854539 | W58: 0 | X58: 0 | Y58: -7.350340779 | Z58: -10.97025629 | AA58: 0 | AB58: 0 | AC58: -6.835052577 | AD58: -10.21374069 | AE58: 0 | AF58: 0 | AG58: -13302.81339 | AH58: -19881.21207 | AI58: 0 | AJ58: 0 | AK58: 57.88204291 | AL58: 86.38794642 | AM58: 0 | AN58: 0 | AO58: 17134.03 | AP58: 25603.68592 | AQ58: 0 | AR58: 0 | AT58: 705140.3542 | AU58: 466305.4087 | AV58: 5161.779264 | BA58: SIN | BB58: -6.920895683 | BC58: -10.2595783 | BD58: 0 | BE58: 0 | BF58: -7.430960921 | BG58: -11.00397764 | BH58: 0 | BI58: 0 | BJ58: -6.533842902 | BK58: -9.656087085 | BL58: 0 | BM58: 0 | BN58: -45.6858006 | BO58: -67.30973187 | BP58: 0 | BQ58: 0 | BR58: -45.78856716 | BS58: -67.47523699 | BT58: 0 | BU58: 0 | BV58: -40.27591452 | BW58: -59.36230475 | BX58: 0 | BY58: 0 | BZ58: 25202.90241 | CA58: 37360.93744 | CB58: 0 | CC58: 0 | CD58: 308.1299259 | CE58: 456.2875314 | CF58: 0 | CG58: 0 | CH58: 41966.53193 | CI58: 62020.54335 | CJ58: 0 | CK58: 0
A59: CHE | B59: Transport services | C59: CHETransport services | D59: 15411.45083 | E59: 76425.41101 | F59: 27058.67195 | G59: 143.1770777 | H59: 18899.55651 | I59: -0.5660832101 | J59: -0.8288985101 | K59: 0 | L59: 0 | M59: -0.4365052996 | N59: -0.6390612011 | O59: 0 | P59: 0 | Q59: -0.7656708877 | R59: -1.120447375 | S59: 0 | T59: 0 | U59: -15.25556459 | V59: -22.33826147 | W59: 0 | X59: 0 | Y59: -15.73676407 | Z59: -23.03925143 | AA59: 0 | AB59: 0 | AC59: -16.25589763 | AD59: -23.78812898 | AE59: 0 | AF59: 0 | AG59: -3991.681152 | AH59: -5844.89789 | AI59: 0 | AJ59: 0 | AK59: 22.53144004 | AL59: 32.98692856 | AM59: 0 | AN59: 0 | AO59: 3570.364762 | AP59: 5224.706712 | AQ59: 0 | AR59: 0 | AT59: 705140.3542 | AU59: 466305.4087 | AV59: 5161.779264 | BA59: SRI | BB59: -10.84447476 | BC59: -16.08365644 | BD59: 0 | BE59: 0 | BF59: -9.436579118 | BG59: -14.02676522 | BH59: 0 | BI59: 0 | BJ59: -11.08811891 | BK59: -16.39538661 | BL59: 0 | BM59: 0 | BN59: -60.56876079 | BO59: -89.55826135 | BP59: 0 | BQ59: 0 | BR59: -64.89984664 | BS59: -95.78855974 | BT59: 0 | BU59: 0 | BV59: -65.19792139 | BW59: -96.12032288 | BX59: 0 | BY59: 0 | BZ59: 9640.821657 | CA59: 14298.49456 | CB59: 0 | CC59: 0 | CD59: 815.8351288 | CE59: 1212.677567 | CF59: 0 | CG59: 0 | CH59: 2246.011807 | CI59: 3321.05312 | CJ59: 0 | CK59: 0
A60: CHN | B60: Agriculture, Mining and Quarrying | C60: CHNAgriculture, Mining and Quarrying | D60: 511015.2155 | E60: 3379184.881 | F60: 1873244.373 | G60: 257637.9796 | H60: 29476.22434 | I60: -0.6689195282 | J60: -1.002248113 | K60: 0 | L60: 0 | M60: -1.142390765 | N60: -1.712188467 | O60: 0 | P60: 0 | Q60: -0.05427127107 | R60: -0.08130764324 | S60: 0 | T60: 0 | U60: -4.882493951 | V60: -7.315484364 | W60: 0 | X60: 0 | Y60: -4.457521095 | Z60: -6.680828002 | AA60: 0 | AB60: 0 | AC60: -5.02387325 | AD60: -7.526621098 | AE60: 0 | AF60: 0 | AG60: -91027.58526 | AH60: -136387.4453 | AI60: 0 | AJ60: 0 | AK60: 11484.92591 | AL60: 17213.33741 | AM60: 0 | AN60: 0 | AO60: 1441.232816 | AP60: 2159.213177 | AQ60: 0 | AR60: 0 | AT60: 13608151.86 | AU60: 2655609.105 | AV60: 1005341.278 | BA60: SVK | BB60: -8.083733303 | BC60: -12.02443687 | BD60: 0 | BE60: 0 | BF60: -8.011707025 | BG60: -11.9196831 | BH60: 0 | BI60: 0 | BJ60: -8.106485523 | BK60: -12.09717213 | BL60: 0 | BM60: 0 | BN60: -51.8788875 | BO60: -76.63411511 | BP60: 0 | BQ60: 0 | BR60: -50.63109904 | BS60: -74.83330148 | BT60: 0 | BU60: 0 | BV60: -53.58428963 | BW60: -79.11420143 | BX60: 0 | BY60: 0 | BZ60: 8561.048019 | CA60: 12734.43563 | CB60: 0 | CC60: 0 | CD60: 203.2217002 | CE60: 302.349831 | CF60: 0 | CG60: 0 | CH60: 8249.489203 | CI60: 12310.57412 | CJ60: 0 | CK60: 0
A61: CHN | B61: Business, Trade, Personal, and Public Services | C61: CHNBusiness, Trade, Personal, and Public Services | D61: 4688787.661 | E61: 9463527.859 | F61: 5603414.188 | G61: 211573.6318 | H61: 348038.6981 | I61: -1.855066713 | J61: -2.779675435 | K61: 0 | L61: 0 | M61: -0.9302365235 | N61: -1.393577515 | O61: 0 | P61: 0 | Q61: -0.6360724328 | R61: -0.9524780416 | S61: 0 | T61: 0 | U61: -4.526568354 | V61: -6.7827161 | W61: 0 | X61: 0 | Y61: -4.419981529 | Z61: -6.621527665 | AA61: 0 | AB61: 0 | AC61: -4.986772688 | AD61: -7.467375159 | AE61: 0 | AF61: 0 | AG61: -252440.2955 | AH61: -378262.4545 | AI61: 0 | AJ61: 0 | AK61: 9352.051752 | AL61: 14010.21 | AM61: 0 | AN61: 0 | AO61: 16891.59744 | AP61: 25294.09359 | AQ61: 0 | AR61: 0 | AT61: 13608151.86 | AU61: 2655609.105 | AV61: 1005341.278 | BA61: SVN | BB61: -9.444533402 | BC61: -13.99655523 | BD61: 0 | BE61: 0 | BF61: -9.439466704 | BG61: -13.99495013 | BH61: 0 | BI61: 0 | BJ61: -11.55608507 | BK61: -17.06667892 | BL61: 0 | BM61: 0 | BN61: -63.48784735 | BO61: -93.41119765 | BP61: 0 | BQ61: 0 | BR61: -69.47926106 | BS61: -102.101278 | BT61: 0 | BU61: 0 | BV61: -69.98418794 | BW61: -102.8340495 | BX61: 0 | BY61: 0 | BZ61: 5100.800965 | CA61: 7559.255647 | CB61: 0 | CC61: 0 | CD61: 109.4316584 | CE61: 162.2433396 | CF61: 0 | CG61: 0 | CH61: 5328.657286 | CI61: 7869.661953 | CJ61: 0 | CK61: 0
A62: CHN | B62: Hotel and restaurants and Other Personal Services | C62: CHNHotel and restaurants and Other Personal Services | D62: 677478.2565 | E62: 1473352.354 | F62: 688596.8768 | G62: 207276.4705 | H62: 26106.44148 | I62: -0.2456840743 | J62: -0.3668855299 | K62: 0 | L62: 0 | M62: -1.032102625 | N62: -1.540323893 | O62: 0 | P62: 0 | Q62: -0.04648663484 | R62: -0.06942626516 | S62: 0 | T62: 0 | U62: -4.878364344 | V62: -7.284970719 | W62: 0 | X62: 0 | Y62: -5.005661597 | Z62: -7.47051695 | AA62: 0 | AB62: 0 | AC62: -4.858709847 | AD62: -7.256323874 | AE62: 0 | AF62: 0 | AG62: -33433.06193 | AH62: -49926.34007 | AI62: 0 | AJ62: 0 | AK62: 10376.15372 | AL62: 15485.51191 | AM62: 0 | AN62: 0 | AO62: 1234.503307 | AP62: 1843.690219 | AQ62: 0 | AR62: 0 | AT62: 13608151.86 | AU62: 2655609.105 | AV62: 1005341.278 | BA62: SWE | BB62: -6.926930022 | BC62: -10.32207198 | BD62: 0 | BE62: 0 | BF62: -7.007179264 | BG62: -10.43458067 | BH62: 0 | BI62: 0 | BJ62: -9.172275506 | BK62: -13.6109607 | BL62: 0 | BM62: 0 | BN62: -43.25873244 | BO62: -64.06831074 | BP62: 0 | BQ62: 0 | BR62: -42.53359329 | BS62: -63.04653244 | BT62: 0 | BU62: 0 | BV62: -54.00494439 | BW62: -79.59838222 | BX62: 0 | BY62: 0 | BZ62: 38519.72195 | CA62: 57399.64767 | CB62: 0 | CC62: 0 | CD62: 369.7495512 | CE62: 550.604084 | CF62: 0 | CG62: 0 | CH62: 23354.38439 | CI62: 34656.1339 | CJ62: 0 | CK62: 0
A63: CHN | B63: Light/Heavy Manufacturing, Utilities, and Construction | C63: CHNLight/Heavy Manufacturing, Utilities, and Construction | D63: 7760072.37 | E63: 24028407.49 | F63: 4906100.765 | G63: 288787.5416 | H63: 2224336.264 | I63: -2.026248387 | J63: -3.037818792 | K63: 0 | L63: 0 | M63: -1.671813728 | N63: -2.507613148 | O63: 0 | P63: 0 | Q63: -4.612941602 | R63: -6.91304504 | S63: 0 | T63: 0 | U63: -5.647009184 | V63: -8.466183479 | W63: 0 | X63: 0 | Y63: -5.81966575 | Z63: -8.729124606 | AA63: 0 | AB63: 0 | AC63: -5.658717956 | AD63: -8.480266058 | AE63: 0 | AF63: 0 | AG63: -275734.9576 | AH63: -413390.9946 | AI63: 0 | AJ63: 0 | AK63: 16807.43349 | AL63: 25210.07006 | AM63: 0 | AN63: 0 | AO63: 122501.6972 | AP63: 183583.4535 | AQ63: 0 | AR63: 0 | AT63: 13608151.86 | AU63: 2655609.105 | AV63: 1005341.278 | BA63: TAP | BB63: -4.119670099 | BC63: -6.074816839 | BD63: -1.016899579 | BE63: -1.525349364 | BF63: -4.563676187 | BG63: -6.705109194 | BH63: -1.119231367 | BI63: -1.67884702 | BJ63: -7.034341264 | BK63: -10.40626446 | BL63: -0.4498767426 | BM63: -0.674815094 | BN63: -42.49959229 | BO63: -61.9839658 | BP63: -5.026408763 | BQ63: -7.539612768 | BR63: -40.81644727 | BS63: -59.51723666 | BT63: -5.290446203 | BU63: -7.935668909 | BV63: -56.78537561 | BW63: -82.79463787 | BX63: -3.921978661 | BY63: -5.882967506 | BZ63: 25055.25679 | CA63: 36946.18554 | CB63: 6184.640873 | CC63: 9276.961285 | CD63: 572.7332793 | CE63: 841.4793292 | CF63: 140.4615544 | CG63: 210.6923278 | CH63: 27675.20663 | CI63: 40941.363 | CJ63: 1769.949927 | CK63: 2654.924813
A64: CHN | B64: Transport services | C64: CHNTransport services | D64: 198792.9732 | E64: 1251564.949 | F64: 601595.3757 | G64: 40008.00141 | H64: 100646.5129 | I64: -0.2650658173 | J64: -0.3950030879 | K64: 0 | L64: 0 | M64: -0.235240694 | N64: -0.3507929427 | O64: 0 | P64: 0 | Q64: -0.292254973 | R64: -0.4321966243 | S64: 0 | T64: 0 | U64: -6.024368257 | V64: -8.977559191 | W64: 0 | X64: 0 | Y64: -5.91090805 | Z64: -8.814396836 | AA64: 0 | AB64: 0 | AC64: -7.923256421 | AD64: -11.7171819 | AE64: 0 | AF64: 0 | AG64: -36070.55896 | AH64: -53752.62007 | AI64: 0 | AJ64: 0 | AK64: 2364.971799 | AL64: 3526.666253 | AM64: 0 | AN64: 0 | AO64: 7761.149671 | AP64: 11477.45291 | AQ64: 0 | AR64: 0 | AT64: 13608151.86 | AU64: 2655609.105 | AV64: 1005341.278 | BA64: THA | BB64: -11.7097645 | BC64: -17.21862811 | BD64: 0 | BE64: 0 | BF64: -10.59230852 | BG64: -15.5895999 | BH64: 0 | BI64: 0 | BJ64: -12.3224365 | BK64: -18.12149709 | BL64: 0 | BM64: 0 | BN64: -91.92916316 | BO64: -134.3714508 | BP64: 0 | BQ64: 0 | BR64: -101.773795 | BS64: -148.608839 | BT64: 0 | BU64: 0 | BV64: -95.38600032 | BW64: -139.3724382 | BX64: 0 | BY64: 0 | BZ64: 59133.46268 | CA64: 86952.82494 | CB64: 0 | CC64: 0 | CD64: 4750.392569 | CE64: 6991.556126 | CF64: 0 | CG64: 0 | CH64: 41579.46101 | CI64: 61147.16692 | CJ64: 0 | CK64: 0
A65: CYP | B65: Agriculture, Mining and Quarrying | C65: CYPAgriculture, Mining and Quarrying | D65: 400.3866072 | E65: 980.9132246 | F65: 435.4976698 | G65: 16.04442901 | H65: 185.7981875 | I65: -0.0570499021 | J65: -0.08454301177 | K65: 0 | L65: 0 | M65: -0.08880529797 | N65: -0.1317438112 | O65: 0 | P65: 0 | Q65: -0.05264402993 | R65: -0.07794688297 | S65: 0 | T65: 0 | U65: -2.297585933 | V65: -3.404823276 | W65: 0 | X65: 0 | Y65: -2.030189966 | Z65: -3.011813143 | AA65: 0 | AB65: 0 | AC65: -2.566578541 | AD65: -3.800180143 | AE65: 0 | AF65: 0 | AG65: -14.2407901 | AH65: -21.10361701 | AI65: 0 | AJ65: 0 | AK65: 0.3257323986 | AL65: 0.4832282375 | AM65: 0 | AN65: 0 | AO65: 9.601569181 | AP65: 14.21647222 | AQ65: 0 | AR65: 0 | AT65: 24961.98866 | AU65: 18238.66675 | AV65: 366.7938806 | BA65: TUR | BB65: -8.298153421 | BC65: -12.31377998 | BD65: 0 | BE65: 0 | BF65: -7.307405525 | BG65: -10.88198344 | BH65: 0 | BI65: 0 | BJ65: -7.489923704 | BK65: -11.15371563 | BL65: 0 | BM65: 0 | BN65: -51.48303724 | BO65: -75.98372141 | BP65: 0 | BQ65: 0 | BR65: -51.68586951 | BS65: -76.28857367 | BT65: 0 | BU65: 0 | BV65: -57.52744454 | BW65: -84.73411204 | BX65: 0 | BY65: 0 | BZ65: 64007.83383 | CA65: 94982.38256 | CB65: 0 | CC65: 0 | CD65: 2229.922062 | CE65: 3320.737418 | CF65: 0 | CG65: 0 | CH65: 17060.59002 | CI65: 25405.99571 | CJ65: 0 | CK65: 0
A66: CYP | B66: Business, Trade, Personal, and Public Services | C66: CYPBusiness, Trade, Personal, and Public Services | D66: 9849.550868 | E66: 17872.41912 | F66: 11475.2067 | G66: 182.8462624 | H66: 3678.83306 | I66: -3.188412544 | J66: -4.657092061 | K66: 0 | L66: 0 | M66: -2.705746365 | N66: -3.947193418 | O66: 0 | P66: 0 | Q66: -2.903101196 | R66: -4.24545419 | S66: 0 | T66: 0 | U66: -4.873227513 | V66: -7.117983903 | W66: 0 | X66: 0 | Y66: -5.427790339 | Z66: -7.918162092 | AA66: 0 | AB66: 0 | AC66: -7.148237912 | AD66: -10.45348217 | AE66: 0 | AF66: 0 | AG66: -795.8911777 | AH66: -1162.502792 | AI66: 0 | AJ66: 0 | AK66: 9.924512092 | AL66: 14.47806391 | AM66: 0 | AN66: 0 | AO66: 529.4869525 | AP66: 774.3142416 | AQ66: 0 | AR66: 0 | AT66: 24961.98866 | AU66: 18238.66675 | AV66: 366.7938806 | BA66: USA | BB66: -8.01493548 | BC66: -11.9828875 | BD66: 0 | BE66: 0 | BF66: -7.934307078 | BG66: -11.8651209 | BH66: 0 | BI66: 0 | BJ66: -9.072246708 | BK66: -13.5245684 | BL66: 0 | BM66: 0 | BN66: -50.74655108 | BO66: -75.37932596 | BP66: 0 | BQ66: 0 | BR66: -46.65893274 | BS66: -69.46205385 | BT66: 0 | BU66: 0 | BV66: -56.88732683 | BW66: -84.23260268 | BX66: 0 | BY66: 0 | BZ66: 1646615.873 | CA66: 2461805.563 | CB66: 0 | CC66: 0 | CD66: 13513.78772 | CE66: 20208.78742 | CF66: 0 | CG66: 0 | CH66: 227736.073 | CI66: 339500.4781 | CJ66: 0 | CK66: 0
A67: CYP | B67: Hotel and restaurants and Other Personal Services | C67: CYPHotel and restaurants and Other Personal Services | D67: 3094.267015 | E67: 3900.559806 | F67: 2239.267662 | G67: 76.01249993 | H67: 170.3389583 | I67: -1.893429603 | J67: -2.74456281 | K67: 0 | L67: 0 | M67: -2.238953328 | N67: -3.245830796 | O67: 0 | P67: 0 | Q67: -0.6077094235 | R67: -0.8806181116 | S67: 0 | T67: 0 | U67: -14.83016046 | V67: -21.49660426 | W67: 0 | X67: 0 | Y67: -10.80393821 | Z67: -15.66256649 | AA67: 0 | AB67: 0 | AC67: -32.31684002 | AD67: -46.82960891 | AE67: 0 | AF67: 0 | AG67: -472.6376828 | AH67: -685.0974574 | AI67: 0 | AJ67: 0 | AK67: 8.212343798 | AL67: 11.90550873 | AM67: 0 | AN67: 0 | AO67: 110.8380965 | AP67: 160.6130027 | AQ67: 0 | AR67: 0 | AT67: 24961.98866 | AU67: 18238.66675 | AV67: 366.7938806 | BA67: VIE | BB67: -4.035497529 | BC67: -5.959310005 | BD67: -1.919797708 | BE67: -2.879696582 | BF67: -3.829339327 | BG67: -5.65155638 | BH67: -1.979502321 | BI67: -2.969253522 | BJ67: -5.245339767 | BK67: -7.768349011 | BL67: -1.130404216 | BM67: -1.695606345 | BN67: -39.01784282 | BO67: -57.05023676 | BP67: -9.096891582 | BQ67: -13.64533779 | BR67: -37.05700927 | BS67: -54.13842692 | BT67: -10.1753192 | BU67: -15.26297969 | BV67: -46.0974639 | BW67: -67.42958655 | BX67: -6.997895842 | BY67: -10.49684412 | BZ67: 9895.592255 | CA67: 14613.04375 | CB67: 4707.60673 | CC67: 7061.410146 | CD67: 2052.321881 | CE67: 3028.933148 | CF67: 1060.907791 | CG67: 1591.361709 | CH67: 13612.39475 | CI67: 20159.95874 | CJ67: 2933.557996 | CK67: 4400.337049
A68: CYP | B68: Light/Heavy Manufacturing, Utilities, and Construction | C68: CYPLight/Heavy Manufacturing, Utilities, and Construction | D68: 4194.116558 | E68: 7657.901019 | F68: 2262.836472 | G68: 70.3537682 | H68: 1183.164646 | I68: -0.445923249 | J68: -0.654821067 | K68: 0 | L68: 0 | M68: -0.5727691521 | N68: -0.8431735694 | O68: 0 | P68: 0 | Q68: -0.6717266619 | R68: -0.9939881084 | S68: 0 | T68: 0 | U68: -3.456285754 | V68: -5.075422128 | W68: 0 | X68: 0 | Y68: -2.986168593 | Z68: -4.395939311 | AA68: 0 | AB68: 0 | AC68: -5.142736904 | AD68: -7.609969378 | AE68: 0 | AF68: 0 | AG68: -111.3113109 | AH68: -163.4563605 | AI68: 0 | AJ68: 0 | AK68: 2.1008822 | AL68: 3.092709055 | AM68: 0 | AN68: 0 | AO68: 122.5139873 | AP68: 181.2901786 | AQ68: 0 | AR68: 0 | AT68: 24961.98866 | AU68: 18238.66675 | AV68: 366.7938806
A69: CYP | B69: Transport services | C69: CYPTransport services | D69: 711.1584525 | E69: 4987.300316 | F69: 1126.105375 | G69: 21.53690894 | H69: 3840.169415 | I69: -2.884994102 | J69: -4.191355197 | K69: 0 | L69: 0 | M69: -4.154589279 | N69: -6.026990472 | O69: 0 | P69: 0 | Q69: -19.05247919 | R69: -27.68172656 | S69: 0 | T69: 0 | U69: -44.93332884 | V69: -65.27969717 | W69: 0 | X69: 0 | Y69: -70.75657317 | Z69: -102.6453311 | AA69: 0 | AB69: 0 | AC69: -44.94154681 | AD69: -65.29646865 | AE69: 0 | AF69: 0 | AG69: -720.1519007 | AH69: -1046.245609 | AI69: 0 | AJ69: 0 | AK69: 15.23877924 | AL69: 22.10663223 | AM69: 0 | AN69: 0 | AO69: 3474.918186 | AP69: 5048.777857 | AQ69: 0 | AR69: 0 | AT69: 24961.98866 | AU69: 18238.66675 | AV69: 366.7938806
A70: CZE | B70: Agriculture, Mining and Quarrying | C70: =A70&B70 -> CZEAgriculture, Mining and Quarrying | D70: 3188.529599 | E70: 16797.19078 | F70: 7092.522919 | G70: 230.5394226 | H70: 4521.387739 | I70: -0.2291001659 | J70: -0.3409609241 | K70: 0 | L70: 0 | M70: -0.2338267323 | N70: -0.3484044282 | O70: 0 | P70: 0 | Q70: -0.1698402872 | R70: -0.2525385875 | S70: 0 | T70: 0 | U70: -7.063720737 | V70: -10.51266262 | W70: 0 | X70: 0 | Y70: -6.678724692 | Z70: -9.951373969 | AA70: 0 | AB70: 0 | AC70: -7.390765636 | AD70: -10.98946278 | AE70: 0 | AF70: 0 | AG70: -561.8129046 | AH70: -836.1244364 | AI70: 0 | AJ70: 0 | AK70: 15.39709402 | AL70: 22.9418411 | AM70: 0 | AN70: 0 | AO70: 326.4719567 | AP70: 485.4370432 | AQ70: 0 | AR70: 0 | AT70: 245225.8829 | AU70: 192222.9185 | AV70: 6584.830513
A71: CZE | B71: Business, Trade, Personal, and Public Services | C71: CZEBusiness, Trade, Personal, and Public Services | D71: 103236.1042 | E71: 207955.2522 | F71: 110692.8684 | G71: 3124.469167 | H71: 13899.7883 | I71: -3.137999003 | J71: -4.683052511 | K71: 0 | L71: 0 | M71: -2.938033004 | N71: -4.385286071 | O71: 0 | P71: 0 | Q71: -0.5242393289 | R71: -0.7816290544 | S71: 0 | T71: 0 | U71: -6.199291031 | V71: -9.25162991 | W71: 0 | X71: 0 | Y71: -6.191915327 | Z71: -9.24200647 | AA71: 0 | AB71: 0 | AC71: -7.420648848 | AD71: -11.06402061 | AE71: 0 | AF71: 0 | AG71: -7695.18576 | AH71: -11484.05687 | AI71: 0 | AJ71: 0 | AK71: 193.4644938 | AL71: 288.7636553 | AM71: 0 | AN71: 0 | AO71: 1007.708138 | AP71: 1502.47018 | AQ71: 0 | AR71: 0 | AT71: 245225.8829 | AU71: 192222.9185 | AV71: 6584.830513
A72: CZE | B72: Hotel and restaurants and Other Personal Services | C72: CZEHotel and restaurants and Other Personal Services | D72: 15835.7695 | E72: 23679.87203 | F72: 11242.80508 | G72: 508.6968667 | H72: 2459.83288 | I72: -0.6076372121 | J72: -0.892144002 | K72: 0 | L72: 0 | M72: -0.8497961422 | N72: -1.248615538 | O72: 0 | P72: 0 | Q72: -0.1708022655 | R72: -0.250435318 | S72: 0 | T72: 0 | U72: -11.81894051 | V72: -17.35278333 | W72: 0 | X72: 0 | Y72: -11.00019223 | Z72: -16.16271275 | AA72: 0 | AB72: 0 | AC72: -13.6618179 | AD72: -20.03136024 | AE72: 0 | AF72: 0 | AG72: -1490.083718 | AH72: -2187.768006 | AI72: 0 | AJ72: 0 | AK72: 55.95763567 | AL72: 82.21921692 | AM72: 0 | AN72: 0 | AO72: 328.3210995 | AP72: 481.3940771 | AQ72: 0 | AR72: 0 | AT72: 245225.8829 | AU72: 192222.9185 | AV72: 6584.830513
A73: CZE | B73: Light/Heavy Manufacturing, Utilities, and Construction | C73: CZELight/Heavy Manufacturing, Utilities, and Construction | D73: 107787.4064 | E73: 287624.7685 | F73: 78082.73691 | G73: 2342.550986 | H73: 168358.7252 | I73: -2.91786711 | J73: -4.361341729 | K73: 0 | L73: 0 | M73: -2.935719626 | N73: -4.389423518 | O73: 0 | P73: 0 | Q73: -7.056159606 | R73: -10.54604154 | S73: 0 | T73: 0 | U73: -8.171830436 | V73: -12.21445108 | W73: 0 | X73: 0 | Y73: -8.252206863 | Z73: -12.33851849 | AA73: 0 | AB73: 0 | AC73: -8.246188056 | AD73: -12.32464211 | AE73: 0 | AF73: 0 | AG73: -7155.365383 | AH73: -10695.13876 | AI73: 0 | AJ73: 0 | AK73: 193.3121617 | AL73: 289.0360992 | AM73: 0 | AN73: 0 | AO73: 13563.55593 | AP73: 20271.90883 | AQ73: 0 | AR73: 0 | AT73: 245225.8829 | AU73: 192222.9185 | AV73: 6584.830513
A74: CZE | B74: Transport services | C74: CZETransport services | D74: 7722.342858 | E74: 30462.7057 | F74: 11568.96607 | G74: 378.5737809 | H74: 7512.860281 | I74: -1.041324552 | J74: -1.522735728 | K74: 0 | L74: 0 | M74: -1.17424844 | N74: -1.716541269 | O74: 0 | P74: 0 | Q74: -0.9652282178 | R74: -1.408527106 | S74: 0 | T74: 0 | U74: -19.68341396 | V74: -28.78318544 | W74: 0 | X74: 0 | Y74: -20.42462264 | Z74: -29.85714648 | AA74: 0 | AB74: 0 | AC74: -25.27814294 | AD74: -36.887597 | AE74: 0 | AF74: 0 | AG74: -2553.597327 | AH74: -3734.142133 | AI74: 0 | AJ74: 0 | AK74: 77.32226955 | AL74: 113.0313333 | AM74: 0 | AN74: 0 | AO74: 1855.38985 | AP74: 2707.51191 | AQ74: 0 | AR74: 0 | AT74: 245225.8829 | AU74: 192222.9185 | AV74: 6584.830513
A75: DEU | B75: Agriculture, Mining and Quarrying | C75: DEUAgriculture, Mining and Quarrying | D75: 20245.48094 | E75: 95979.91519 | F75: 32790.05243 | G75: 1158.846473 | H75: 29189.96333 | I75: -0.0610570584 | J75: -0.0911988546 | K75: 0 | L75: 0 | M75: -0.1499525999 | N75: -0.2241677372 | O75: 0 | P75: 0 | Q75: -0.1093169608 | R75: -0.163032694 | S75: 0 | T75: 0 | U75: -6.710708158 | V75: -10.02355688 | W75: 0 | X75: 0 | Y75: -6.547441707 | Z75: -9.787927609 | AA75: 0 | AB75: 0 | AC75: -7.02936117 | AD75: -10.48342069 | AE75: 0 | AF75: 0 | AG75: -2410.300748 | AH75: -3600.184372 | AI75: 0 | AJ75: 0 | AK75: 75.87480055 | AL75: 113.4270588 | AM75: 0 | AN75: 0 | AO75: 2046.203325 | AP75: 3051.658572 | AQ75: 0 | AR75: 0 | AT75: 3947620.163 | AU75: 1871807.732 | AV75: 50599.18976
A76: DEU | B76: Business, Trade, Personal, and Public Services | C76: DEUBusiness, Trade, Personal, and Public Services | D76: 1830857.62 | E76: 3334430.735 | F76: 2083402.581 | G76: 29367.65708 | H76: 255983.9705 | I76: -4.086835682 | J76: -6.116895011 | K76: 0 | L76: 0 | M76: -4.087542276 | N76: -6.118695864 | O76: 0 | P76: 0 | Q76: -1.088864496 | R76: -1.628294878 | S76: 0 | T76: 0 | U76: -7.069497821 | V76: -10.58113888 | W76: 0 | X76: 0 | Y76: -7.042656407 | Z76: -10.54224512 | AA76: 0 | AB76: 0 | AC76: -7.984044057 | AD76: -11.93939015 | AE76: 0 | AF76: 0 | AG76: -161332.7494 | AH76: -241471.7808 | AI76: 0 | AJ76: 0 | AK76: 2068.263273 | AL76: 3096.010531 | AM76: 0 | AN76: 0 | AO76: 20381.44984 | AP76: 30478.54943 | AQ76: 0 | AR76: 0 | AT76: 3947620.163 | AU76: 1871807.732 | AV76: 50599.18976
A77: DEU | B77: Hotel and restaurants and Other Personal Services | C77: DEUHotel and restaurants and Other Personal Services | D77: 271762.2972 | E77: 383500.7817 | F77: 221319.6971 | G77: 5485.761558 | H77: 33810.67325 | I77: -0.7273972938 | J77: -1.072828333 | K77: 0 | L77: 0 | M77: -1.24742252 | N77: -1.838926922 | O77: 0 | P77: 0 | Q77: -0.2193165589 | R77: -0.3232513718 | S77: 0 | T77: 0 | U77: -11.84475822 | V77: -17.4696721 | W77: 0 | X77: 0 | Y77: -11.50588946 | Z77: -16.9617668 | AA77: 0 | AB77: 0 | AC77: -12.17529416 | AD77: -17.94520468 | AE77: 0 | AF77: 0 | AG77: -28714.88223 | AH77: -42351.18756 | AI77: 0 | AJ77: 0 | AK77: 631.1856881 | AL77: 930.4821229 | AM77: 0 | AN77: 0 | AO77: 4105.184307 | AP77: 6050.644171 | AQ77: 0 | AR77: 0 | AT77: 3947620.163 | AU77: 1871807.732 | AV77: 50599.18976
A78: DEU | B78: Light/Heavy Manufacturing, Utilities, and Construction | C78: DEULight/Heavy Manufacturing, Utilities, and Construction | D78: 1441746.623 | E78: 3171285.613 | F78: 1122030.673 | G78: 12226.12187 | H78: 1494954.888 | I78: -2.763224553 | J78: -4.136209765 | K78: 0 | L78: 0 | M78: -2.21219766 | N78: -3.311882286 | O78: 0 | P78: 0 | Q78: -6.557350752 | R78: -9.810503701 | S78: 0 | T78: 0 | U78: -8.875361191 | V78: -13.28533202 | W78: 0 | X78: 0 | Y78: -9.155430112 | Z78: -13.70659926 | AA78: 0 | AB78: 0 | AC78: -8.233077161 | AD78: -12.31757107 | AE78: 0 | AF78: 0 | AG78: -109081.6096 | AH78: -163281.8506 | AI78: 0 | AJ78: 0 | AK78: 1119.354092 | AL78: 1675.785602 | AM78: 0 | AN78: 0 | AO78: 122740.9984 | AP78: 183633.7668 | AQ78: 0 | AR78: 0 | AT78: 3947620.163 | AU78: 1871807.732 | AV78: 50599.18976
A79: DEU | B79: Transport services | C79: DEUTransport services | D79: 83287.79729 | E79: 383607.8862 | F79: 144372.3853 | G79: 2360.800578 | H79: 63050.07107 | I79: -0.4299910528 | J79: -0.6356112562 | K79: 0 | L79: 0 | M79: -0.4764879102 | N79: -0.7055028259 | O79: 0 | P79: 0 | Q79: -0.5412913639 | R79: -0.7908864111 | S79: 0 | T79: 0 | U79: -10.73371039 | V79: -15.86653281 | W79: 0 | X79: 0 | Y79: -10.21259541 | Z79: -15.12108653 | AA79: 0 | AB79: 0 | AC79: -16.11414904 | AD79: -23.54454985 | AE79: 0 | AF79: 0 | AG79: -16974.4135 | AH79: -25091.51811 | AI79: 0 | AJ79: 0 | AK79: 241.0990219 | AL79: 356.9787136 | AM79: 0 | AN79: 0 | AO79: 10131.9336 | AP79: 14803.873 | AQ79: 0 | AR79: 0 | AT79: 3947620.163 | AU79: 1871807.732 | AV79: 50599.18976
A80: DNK | B80: Agriculture, Mining and Quarrying | C80: DNKAgriculture, Mining and Quarrying | D80: 3013.537517 | E80: 19352.10609 | F80: 10366.1183 | G80: 83.02774387 | H80: 9776.835423 | I80: -0.2564538578 | J80: -0.3817220118 | K80: 0 | L80: 0 | M80: -0.148644502 | N80: -0.2221036585 | O80: 0 | P80: 0 | Q80: -0.3310914891 | R80: -0.4937061842 | S80: 0 | T80: 0 | U80: -7.440280206 | V80: -11.07457986 | W80: 0 | X80: 0 | Y80: -5.92051997 | Z80: -8.846402848 | AA80: 0 | AB80: 0 | AC80: -6.641662964 | AD80: -9.90369788 | AE80: 0 | AF80: 0 | AG80: -912.1431028 | AH80: -1357.691022 | AI80: 0 | AJ80: 0 | AK80: 4.915674406 | AL80: 7.344969072 | AM80: 0 | AN80: 0 | AO80: 655.2417956 | AP80: 977.0620427 | AQ80: 0 | AR80: 0 | AT80: 355675.3291 | AU80: 197903.5454 | AV80: 3307.000488
A81: DNK | B81: Business, Trade, Personal, and Public Services | C81: DNKBusiness, Trade, Personal, and Public Services | D81: 196658.7545 | E81: 328541.9738 | F81: 189574.2187 | G81: 2137.86983 | H81: 47389.13813 | I81: -3.63540476 | J81: -5.442146943 | K81: 0 | L81: 0 | M81: -3.688874135 | N81: -5.523265917 | O81: 0 | P81: 0 | Q81: -1.623018936 | R81: -2.42614452 | S81: 0 | T81: 0 | U81: -5.767262414 | V81: -8.633506196 | W81: 0 | X81: 0 | Y81: -5.706197718 | Z81: -8.543757856 | AA81: 0 | AB81: 0 | AC81: -6.716946627 | AD81: -10.04072281 | AE81: 0 | AF81: 0 | AG81: -12930.23784 | AH81: -19356.37405 | AI81: 0 | AJ81: 0 | AK81: 121.9910857 | AL81: 182.6544308 | AM81: 0 | AN81: 0 | AO81: 3212.012018 | AP81: 4801.426022 | AQ81: 0 | AR81: 0 | AT81: 355675.3291 | AU81: 197903.5454 | AV81: 3307.000488
A82: DNK | B82: Hotel and restaurants and Other Personal Services | C82: DNKHotel and restaurants and Other Personal Services | D82: 23895.07879 | E82: 38397.31148 | F82: 20546.76337 | G82: 323.2823464 | H82: 2525.825562 | I82: -0.5055060481 | J82: -0.7502642438 | K82: 0 | L82: 0 | M82: -0.689739959 | N82: -1.024674048 | O82: 0 | P82: 0 | Q82: -0.0989027669 | R82: -0.1466780427 | S82: 0 | T82: 0 | U82: -7.399104354 | V82: -10.98163603 | W82: 0 | X82: 0 | Y82: -7.05565983 | Z82: -10.48185106 | AA82: 0 | AB82: 0 | AC82: -7.679486976 | AD82: -11.38908601 | AE82: 0 | AF82: 0 | AG82: -1797.9603 | AH82: -2668.504818 | AI82: 0 | AJ82: 0 | AK82: 22.80970381 | AL82: 33.88597577 | AM82: 0 | AN82: 0 | AO82: 195.7320822 | AP82: 290.2810469 | AQ82: 0 | AR82: 0 | AT82: 355675.3291 | AU82: 197903.5454 | AV82: 3307.000488
A83: DNK | B83: Light/Heavy Manufacturing, Utilities, and Construction | C83: DNKLight/Heavy Manufacturing, Utilities, and Construction | D83: 96154.26414 | E83: 179717.8213 | F83: 63193.50635 | G83: 602.9744321 | H83: 96103.14464 | I83: -1.593054688 | J83: -2.383415518 | K83: 0 | L83: 0 | M83: -1.416994836 | N83: -2.120927106 | O83: 0 | P83: 0 | Q83: -3.578496503 | R83: -5.3493437 | S83: 0 | T83: 0 | U83: -7.581487925 | V83: -11.3428849 | W83: 0 | X83: 0 | Y83: -7.771477737 | Z83: -11.63217915 | AA83: 0 | AB83: 0 | AC83: -7.302811977 | AD83: -10.91666604 | AE83: 0 | AF83: 0 | AG83: -5666.102505 | AH83: -8477.220988 | AI83: 0 | AJ83: 0 | AK83: 46.86002613 | AL83: 70.13906974 | AM83: 0 | AN83: 0 | AO83: 7081.971453 | AP83: 10586.54084 | AQ83: 0 | AR83: 0 | AT83: 355675.3291 | AU83: 197903.5454 | AV83: 3307.000488
A84: DNK | B84: Transport services | C84: DNKTransport services | D84: 14726.42304 | E84: 57483.95898 | F84: 17062.86985 | G84: 159.8459678 | H84: 40327.42081 | I84: -0.7512958739 | J84: -1.10032252 | K84: 0 | L84: 0 | M84: -0.6171105423 | N84: -0.9050086293 | O84: 0 | P84: 0 | Q84: -3.119377579 | R84: -4.554763912 | S84: 0 | T84: 0 | U84: -13.2420475 | V84: -19.39385479 | W84: 0 | X84: 0 | Y84: -12.76719575 | Z84: -18.72342398 | AA84: 0 | AB84: 0 | AC84: -15.17031574 | AD84: -22.15095958 | AE84: 0 | AF84: 0 | AG84: -2672.174072 | AH84: -3913.575745 | AI84: 0 | AJ84: 0 | AK84: 20.40784865 | AL84: 29.92863979 | AM84: 0 | AN84: 0 | AO84: 6173.358824 | AP84: 9014.039269 | AQ84: 0 | AR84: 0 | AT84: 355675.3291 | AU84: 197903.5454 | AV84: 3307.000488
A85: ESP | B85: Agriculture, Mining and Quarrying | C85: ESPAgriculture, Mining and Quarrying | D85: 24071.02802 | E85: 67649.7913 | F85: 35763.67849 | G85: 928.1361225 | H85: 20420.35711 | I85: -0.260241227 | J85: -0.3880942752 | K85: 0 | L85: 0 | M85: -0.4433296177 | N85: -0.6612545168 | O85: 0 | P85: 0 | Q85: -0.4308393065 | R85: -0.6419611039 | S85: 0 | T85: 0 | U85: -9.373294063 | V85: -13.97826857 | W85: 0 | X85: 0 | Y85: -9.463167528 | Z85: -14.11492041 | AA85: 0 | AB85: 0 | AC85: -8.984477253 | AD85: -13.38709084 | AE85: 0 | AF85: 0 | AG85: -3692.932183 | AH85: -5507.220571 | AI85: 0 | AJ85: 0 | AK85: 87.83107664 | AL85: 131.0056757 | AM85: 0 | AN85: 0 | AO85: 2146.958877 | AP85: 3199.021236 | AQ85: 0 | AR85: 0 | AT85: 1419041.95 | AU85: 498320.1033 | AV85: 19811.68709
A86: ESP | B86: Business, Trade, Personal, and Public Services | C86: ESPBusiness, Trade, Personal, and Public Services | D86: 662917.1403 | E86: 1054942.734 | F86: 738932.2591 | G86: 10750.73702 | H86: 68234.47912 | I86: -6.080625875 | J86: -9.084806168 | K86: 0 | L86: 0 | M86: -5.71154941 | N86: -8.536397409 | O86: 0 | P86: 0 | Q86: -1.816209334 | R86: -2.708729008 | S86: 0 | T86: 0 | U86: -10.59990524 | V86: -15.83687049 | W86: 0 | X86: 0 | Y86: -10.5253648 | Z86: -15.73105481 | AA86: 0 | AB86: 0 | AC86: -11.33451263 | AD86: -16.90450686 | AE86: 0 | AF86: 0 | AG86: -86286.63198 | AH86: -128917.2106 | AI86: 0 | AJ86: 0 | AK86: 1131.554297 | AL86: 1691.204344 | AM86: 0 | AN86: 0 | AO86: 9050.53623 | AP86: 13498.14119 | AQ86: 0 | AR86: 0 | AT86: 1419041.95 | AU86: 498320.1033 | AV86: 19811.68709
A87: ESP | B87: Hotel and restaurants and Other Personal Services | C87: ESPHotel and restaurants and Other Personal Services | D87: 199858.6511 | E87: 253852.1353 | F87: 148221.4793 | G87: 3724.909366 | H87: 12255.32681 | I87: -2.126728861 | J87: -3.132996893 | K87: 0 | L87: 0 | M87: -3.553867422 | N87: -5.233608517 | O87: 0 | P87: 0 | Q87: -0.5521802945 | R87: -0.8129176416 | S87: 0 | T87: 0 | U87: -18.4824401 | V87: -27.22746114 | W87: 0 | X87: 0 | Y87: -18.90196566 | Z87: -27.83600983 | AA87: 0 | AB87: 0 | AC87: -19.18654759 | AD87: -28.24635933 | AE87: 0 | AF87: 0 | AG87: -30179.1747 | AH87: -44458.54019 | AI87: 0 | AJ87: 0 | AK87: 704.0810932 | AL87: 1036.866143 | AM87: 0 | AN87: 0 | AO87: 2751.625414 | AP87: 4050.932032 | AQ87: 0 | AR87: 0 | AT87: 1419041.95 | AU87: 498320.1033 | AV87: 19811.68709
A88: ESP | B88: Light/Heavy Manufacturing, Utilities, and Construction | C88: ESPLight/Heavy Manufacturing, Utilities, and Construction | D88: 437700.7332 | E88: 1091596.579 | F88: 307475.0695 | G88: 3514.963573 | H88: 302925.2286 | I88: -2.712600056 | J88: -4.052111219 | K88: 0 | L88: 0 | M88: -2.036917889 | N88: -3.044215147 | O88: 0 | P88: 0 | Q88: -7.365798053 | R88: -10.97592719 | S88: 0 | T88: 0 | U88: -11.36407743 | V88: -16.97578142 | W88: 0 | X88: 0 | Y88: -11.48085287 | Z88: -17.15836775 | AA88: 0 | AB88: 0 | AC88: -10.35440604 | AD88: -15.42931343 | AE88: 0 | AF88: 0 | AG88: -38492.93273 | AH88: -57501.15805 | AI88: 0 | AJ88: 0 | AK88: 403.5477985 | AL88: 603.1103793 | AM88: 0 | AN88: 0 | AO88: 36705.25247 | AP88: 54695.25173 | AQ88: 0 | AR88: 0 | AT88: 1419041.95 | AU88: 498320.1033 | AV88: 19811.68709
A89: ESP | B89: Transport services | C89: ESPTransport services | D89: 36502.6068 | E89: 130047.1333 | F89: 57733.45372 | G89: 892.940896 | H89: 21999.09275 | I89: -1.294253495 | J89: -1.892334606 | K89: 0 | L89: 0 | M89: -1.274282865 | N89: -1.863532561 | O89: 0 | P89: 0 | Q89: -2.450532367 | R89: -3.567889566 | S89: 0 | T89: 0 | U89: -28.87687107 | V89: -42.22101982 | W89: 0 | X89: 0 | Y89: -28.27252438 | Z89: -41.34621221 | AA89: 0 | AB89: 0 | AC89: -47.43473737 | AD89: -69.06332142 | AE89: 0 | AF89: 0 | AG89: -18366.00003 | AH89: -26853.02189 | AI89: 0 | AJ89: 0 | AK89: 252.4569339 | AL89: 369.1972398 | AM89: 0 | AN89: 0 | AO89: 12211.49542 | AP89: 17779.51097 | AQ89: 0 | AR89: 0 | AT89: 1419041.95 | AU89: 498320.1033 | AV89: 19811.68709
A90: EST | B90: Agriculture, Mining and Quarrying | C90: ESTAgriculture, Mining and Quarrying | D90: 405.2075353 | E90: 2410.123319 | F90: 958.3846338 | G90: 26.8340357 | H90: 614.1875552 | I90: -0.294878009 | J90: -0.4393513125 | K90: 0 | L90: 0 | M90: -0.2188087284 | N90: -0.3265351575 | O90: 0 | P90: 0 | Q90: -0.2136943229 | R90: -0.3185528592 | S90: 0 | T90: 0 | U90: -8.100091172 | V90: -12.06867104 | W90: 0 | X90: 0 | Y90: -7.578177247 | Z90: -11.30915261 | AA90: 0 | AB90: 0 | AC90: -7.928386126 | AD90: -11.81879815 | AE90: 0 | AF90: 0 | AG90: -90.62233591 | AH90: -135.0220804 | AI90: 0 | AJ90: 0 | AK90: 2.03353089 | AL90: 3.034702199 | AM90: 0 | AN90: 0 | AO90: 48.76649516 | AP90: 72.69592495 | AQ90: 0 | AR90: 0 | AT90: 30732.14453 | AU90: 22820.67885 | AV90: 929.3646119
A91: EST | B91: Business, Trade, Personal, and Public Services | C91: ESTBusiness, Trade, Personal, and Public Services | D91: 11925.37675 | E91: 22888.61584 | F91: 14102.82312 | G91: 435.3439561 | H91: 3122.486914 | I91: -4.399205955 | J91: -6.538649637 | K91: 0 | L91: 0 | M91: -3.592094751 | N91: -5.347360171 | O91: 0 | P91: 0 | Q91: -1.258569323 | R91: -1.865743308 | S91: 0 | T91: 0 | U91: -8.212125903 | V91: -12.20588775 | W91: 0 | X91: 0 | Y91: -7.668340241 | Z91: -11.41544977 | AA91: 0 | AB91: 0 | AC91: -9.184792204 | AD91: -13.61582893 | AE91: 0 | AF91: 0 | AG91: -1351.970332 | AH91: -2009.467257 | AI91: 0 | AJ91: 0 | AK91: 33.38365744 | AL91: 49.69647311 | AM91: 0 | AN91: 0 | AO91: 287.2140632 | AP91: 425.7752885 | AQ91: 0 | AR91: 0 | AT91: 30732.14453 | AU91: 22820.67885 | AV91: 929.3646119
A92: EST | B92: Hotel and restaurants and Other Personal Services | C92: ESTHotel and restaurants and Other Personal Services | D92: 2869.84513 | E92: 4986.46641 | F92: 2109.622653 | G92: 129.649881 | H92: 1194.499196 | I92: -1.292516929 | J92: -1.896603694 | K92: 0 | L92: 0 | M92: -2.219201476 | N92: -3.256962601 | O92: 0 | P92: 0 | Q92: -0.9039250498 | R92: -1.325321977 | S92: 0 | T92: 0 | U92: -16.12942269 | V92: -23.66787001 | W92: 0 | X92: 0 | Y92: -15.90782189 | Z92: -23.34676753 | AA92: 0 | AB92: 0 | AC92: -17.24405426 | AD92: -25.28298567 | AE92: 0 | AF92: 0 | AG92: -397.2181706 | AH92: -582.8669883 | AI92: 0 | AJ92: 0 | AK92: 20.62447319 | AL92: 30.26905783 | AM92: 0 | AN92: 0 | AO92: 206.2818326 | AP92: 302.447472 | AQ92: 0 | AR92: 0 | AT92: 30732.14453 | AU92: 22820.67885 | AV92: 929.3646119
A93: EST | B93: Light/Heavy Manufacturing, Utilities, and Construction | C93: ESTLight/Heavy Manufacturing, Utilities, and Construction | D93: 10366.82777 | E93: 24683.97804 | F93: 7223.194457 | G93: 268.3101492 | H93: 14578.65667 | I93: -2.372440471 | J93: -3.541152697 | K93: 0 | L93: 0 | M93: -2.529059657 | N93: -3.780193369 | O93: 0 | P93: 0 | Q93: -5.183212438 | R93: -7.740283567 | S93: 0 | T93: 0 | U93: -8.646759519 | V93: -12.90632839 | W93: 0 | X93: 0 | Y93: -8.760080214 | Z93: -13.09371926 | AA93: 0 | AB93: 0 | AC93: -8.101665748 | AD93: -12.09851825 | AE93: 0 | AF93: 0 | AG93: -729.1018344 | AH93: -1088.272165 | AI93: 0 | AJ93: 0 | AK93: 23.50418547 | AL93: 35.13177944 | AM93: 0 | AN93: 0 | AO93: 1182.844264 | AP93: 1766.385255 | AQ93: 0 | AR93: 0 | AT93: 30732.14453 | AU93: 22820.67885 | AV93: 929.3646119
A94: EST | B94: Transport services | C94: ESTTransport services | D94: 912.6171453 | E94: 7059.783023 | F94: 1932.125865 | G94: 69.22654345 | H94: 3277.46708 | I94: -1.590136137 | J94: -2.323062656 | K94: 0 | L94: 0 | M94: -1.60149927 | N94: -2.339723914 | O94: 0 | P94: 0 | Q94: -3.593753959 | R94: -5.241892055 | S94: 0 | T94: 0 | U94: -21.66637504 | V94: -31.65285385 | W94: 0 | X94: 0 | Y94: -21.50008651 | Z94: -31.41073337 | AA94: 0 | AB94: 0 | AC94: -24.98635022 | AD94: -36.44538613 | AE94: 0 | AF94: 0 | AG94: -488.6829358 | AH94: -713.9269728 | AI94: 0 | AJ94: 0 | AK94: 14.88376748 | AL94: 21.74456608 | AM94: 0 | AN94: 0 | AO94: 820.1190496 | AP94: 1196.235351 | AQ94: 0 | AR94: 0 | AT94: 30732.14453 | AU94: 22820.67885 | AV94: 929.3646119
A95: FIJ | B95: Agriculture, Mining and Quarrying | C95: FIJAgriculture, Mining and Quarrying | D95: 422.850336 | E95: 804.4948672 | F95: 472.6962745 | G95: 176.7362093 | H95: 228.2604952 | I95: -0.6268736221 | J95: -0.9161020026 | K95: -0.3602652278 | L95: -0.5403978683 | M95: -2.957458143 | N95: -4.321016639 | O95: -1.679379172 | P95: -2.519068886 | Q95: -0.4658971794 | R95: -0.6818893298 | S95: -0.2896155038 | T95: -0.4344232731 | U95: -5.550969839 | V95: -8.112088954 | W95: -3.190150842 | X95: -4.785226499 | Y95: -5.605674129 | Z95: -8.190212681 | AA95: -3.183156591 | AB95: -4.774735129 | AC95: -5.204276783 | AD95: -7.617004276 | AE95: -3.235132792 | AF95: -4.852699381 | AG95: -34.70848582 | AH95: -50.72236611 | AI95: -19.9470198 | AJ95: -29.92053117 | AK95: 9.907255669 | AL95: 14.475071 | AM95: 5.625790128 | AN95: 8.438685621 | AO95: 11.87930796 | AP95: 17.38661168 | AQ95: 7.384530131 | AR95: 11.07679564 | AT95: 5536.759659 | AU95: 2549.77031 | AV95: 334.9922532
A96: FIJ | B96: Business, Trade, Personal, and Public Services | C96: FIJBusiness, Trade, Personal, and Public Services | D96: 2195.509064 | E96: 3521.376996 | F96: 2336.608649 | G96: 95.25982802 | H96: 522.665753 | I96: -2.653655432 | J96: -3.875266548 | K96: -2.046234311 | L96: -3.069351606 | M96: -1.528113663 | N96: -2.230672831 | O96: -1.018560383 | P96: -1.527840655 | Q96: -1.200897719 | R96: -1.755994131 | S96: -0.6543582865 | T96: -0.9815374866 | U96: -4.753676263 | V96: -6.942032633 | W96: -3.665560854 | X96: -5.498341533 | Y96: -5.373789401 | Z96: -7.844420415 | AA96: -3.581886037 | AB96: -5.372829335 | AC96: -5.858454148 | AD96: -8.566434047 | AE96: -3.192218587 | AF96: -4.788328157 | AG96: -146.9265234 | AH96: -214.5641949 | AI96: -113.2950758 | AJ96: -169.9426215 | AK96: 5.119062391 | AL96: 7.472581176 | AM96: 3.412098378 | AN96: 5.118147833 | AO96: 30.62013348 | AP96: 44.77381701 | AQ96: 16.68463331 | AR96: 25.02695142 | AT96: 5536.759659 | AU96: 2549.77031 | AV96: 334.9922532
A97: FIJ | B97: Hotel and restaurants and Other Personal Services | C97: FIJHotel and restaurants and Other Personal Services | D97: 385.7192185 | E97: 720.2681656 | F97: 313.4821514 | G97: 9.598143792 | H97: 650.330486 | I97: -5.393521494 | J97: -7.826192093 | K97: -0.01992994841 | L97: -0.02989497902 | M97: -1.55492956 | N97: -2.2566362 | O97: -0.03443384711 | P97: -0.051650789 | Q97: -18.72041265 | R97: -27.16372455 | S97: -0.04928551799 | T97: -0.07392847132 | U97: -72.01627375 | V97: -104.4981823 | W97: -0.2661119683 | X97: -0.3991687056 | Y97: -54.26980295 | Z97: -78.7606108 | AA97: -1.201802413 | AB97: -1.802704259 | AC97: -73.39768532 | AD97: -106.5016324 | AE97: -0.1932352138 | AF97: -0.2898535826 | AG97: -298.6263223 | AH97: -433.3174466 | AI97: -1.103473344 | AJ97: -1.655213139 | AK97: 5.208893569 | AL97: 7.559556454 | AM97: 0.1153507203 | AN97: 0.1730261419 | AO97: 477.3275237 | AP97: 692.6125837 | AQ97: 1.256667505 | AR97: 1.885006213 | AT97: 5536.759659 | AU97: 2549.77031 | AV97: 334.9922532
A98: FIJ | B98: Light/Heavy Manufacturing, Utilities, and Construction | C98: FIJLight/Heavy Manufacturing, Utilities, and Construction | D98: 1112.863553 | E98: 1973.207001 | F98: 716.2043528 | G98: 43.86195744 | H98: 531.6881824 | I98: -0.9679438672 | J98: -1.416600946 | K98: -0.6272738027 | L98: -0.9409107388 | M98: -0.5731909601 | N98: -0.8398754472 | O98: -0.5498001799 | P98: -0.8247002925 | Q98: -1.339944581 | R98: -1.963589105 | S98: -0.616919056 | T98: -0.9253786329 | U98: -5.656975106 | V98: -8.279071295 | W98: -3.665989741 | X98: -5.498984814 | Y98: -4.377701044 | Z98: -6.414482917 | AA98: -4.199055792 | AB98: -6.298583862 | AC98: -6.42585452 | AD98: -9.416611777 | AE98: -2.958504524 | AF98: -4.43775702 | AG98: -53.59272556 | AH98: -78.4337897 | AI98: -34.73064286 | AJ98: -52.09596621 | AK98: 1.920145312 | AL98: 2.813517684 | AM98: 1.84178801 | AN98: 2.762682092 | AO98: 34.1655091 | AP98: 50.067012 | AQ98: 15.73001893 | AR98: 23.59502964 | AT98: 5536.759659 | AU98: 2549.77031 | AV98: 334.9922532
A99: FIJ | B99: Transport services | C99: FIJTransport services | D99: 287.700747 | E99: 808.8725781 | F99: 346.737035 | G99: 9.536124492 | H99: 616.8253937 | I99: -2.885111514 | J99: -4.194585744 | K99: -0.08654393835 | L99: -0.1298160584 | M99: -0.7978191164 | N99: -1.160770652 | O99: -0.03529347108 | P99: -0.05294022615 | Q99: -10.98106241 | R99: -15.95583014 | S99: -0.1425214934 | T99: -0.21378271 | U99: -34.82839202 | V99: -50.63605893 | W99: -1.044738201 | X99: -1.567109122 | Y99: -28.02639914 | Z99: -40.77643782 | AA99: -1.239816002 | AB99: -1.85972469 | AC99: -45.3924031 | AD99: -65.95659384 | AE99: -0.5891409079 | AF99: -0.8837133041 | AG99: -159.7416904 | AH99: -232.2441313 | AI99: -4.791729866 | AJ99: -7.187603152 | AK99: 2.672632234 | AL99: 3.88849176 | AM99: 0.118230394 | AN99: 0.1773456564 | AO99: 279.9918691 | AP99: 406.8370196 | AQ99: 3.633970724 | AR99: 5.450968067 | AT99: 5536.759659 | AU99: 2549.77031 | AV99: 334.9922532
A100: FIN | B100: Agriculture, Mining and Quarrying | C100: FINAgriculture, Mining and Quarrying | D100: 3033.852729 | E100: 16318.83246 | F100: 7803.529552 | G100: 129.8332505 | H100: 2347.847942 | I100: -0.2379340052 | J100: -0.3553690409 | K100: 0 | L100: 0 | M100: -0.3258046615 | N100: -0.4868355309 | O100: 0 | P100: 0 | Q100: -0.1692305222 | R100: -0.2523387863 | S100: 0 | T100: 0 | U100: -7.257824342 | V100: -10.84000613 | W100: 0 | X100: 0 | Y100: -7.134595441 | Z100: -10.66091118 | AA100: 0 | AB100: 0 | AC100: -7.732103289 | AD100: -11.52930059 | AE100: 0 | AF100: 0 | AG100: -658.4659908 | AH100: -983.4593731 | AI100: 0 | AJ100: 0 | AK100: 9.263077426 | AL100: 13.8414079 | AM100: 0 | AN100: 0 | AO100: 180.5953633 | AP100: 269.2848442 | AQ100: 0 | AR100: 0 | AT100: 276743.1205 | AU100: 106715.5978 | AV100: 2843.138396
A101: FIN | B101: Business, Trade, Personal, and Public Services | C101: FINBusiness, Trade, Personal, and Public Services | D101: 143204.7486 | E101: 237129.6159 | F101: 139354.5759 | G101: 1622.894026 | H101: 17830.80493 | I101: -3.838921205 | J101: -5.740521266 | K101: 0 | L101: 0 | M101: -3.711638928 | N101: -5.552061266 | O101: 0 | P101: 0 | Q101: -1.247629436 | R101: -1.861796711 | S101: 0 | T101: 0 | U101: -6.557359305 | V101: -9.805530912 | W101: 0 | X101: 0 | Y101: -6.502397993 | Z101: -9.726622858 | AA101: 0 | AB101: 0 | AC101: -7.505913979 | AD101: -11.20083059 | AE101: 0 | AF101: 0 | AG101: -10623.95034 | AH101: -15886.49769 | AI101: 0 | AJ101: 0 | AK101: 105.5270315 | AL101: 157.8527856 | AM101: 0 | AN101: 0 | AO101: 1331.415211 | AP101: 1986.827489 | AQ101: 0 | AR101: 0 | AT101: 276743.1205 | AU101: 106715.5978 | AV101: 2843.138396
A102: FIN | B102: Hotel and restaurants and Other Personal Services | C102: FINHotel and restaurants and Other Personal Services | D102: 16189.07845 | E102: 24192.30303 | F102: 11144.05594 | G102: 228.6568158 | H102: 831.5336356 | I102: -0.3563166779 | J102: -0.5299896364 | K102: 0 | L102: 0 | M102: -0.6037952684 | N102: -0.8982314953 | O102: 0 | P102: 0 | Q102: -0.05920059972 | R102: -0.08805916039 | S102: 0 | T102: 0 | U102: -7.610862641 | V102: -11.32048701 | W102: 0 | X102: 0 | Y102: -7.507641783 | Z102: -11.1686869 | AA102: 0 | AB102: 0 | AC102: -7.637218291 | AD102: -11.36013881 | AE102: 0 | AF102: 0 | AG102: -986.0818933 | AH102: -1466.709858 | AI102: 0 | AJ102: 0 | AK102: 17.16673511 | AL102: 25.53796453 | AM102: 0 | AN102: 0 | AO102: 63.17627386 | AP102: 93.97285938 | AQ102: 0 | AR102: 0 | AT102: 276743.1205 | AU102: 106715.5978 | AV102: 2843.138396
A103: FIN | B103: Light/Heavy Manufacturing, Utilities, and Construction | C103: FINLight/Heavy Manufacturing, Utilities, and Construction | D103: 78353.2472 | E103: 203382.8905 | F103: 68139.47615 | G103: 692.1014198 | H103: 79648.34994 | I103: -2.443261315 | J103: -3.653671338 | K103: 0 | L103: 0 | M103: -2.107726234 | N103: -3.153829495 | O103: 0 | P103: 0 | Q103: -6.309912475 | R103: -9.419221236 | S103: 0 | T103: 0 | U103: -8.535169402 | V103: -12.76355649 | W103: 0 | X103: 0 | Y103: -8.658495774 | Z103: -12.95586633 | AA103: 0 | AB103: 0 | AC103: -8.498366784 | AD103: -12.68607088 | AE103: 0 | AF103: 0 | AG103: -6761.557605 | AH103: -10111.28407 | AI103: 0 | AJ103: 0 | AK103: 59.92557382 | AL103: 89.6677373 | AM103: 0 | AN103: 0 | AO103: 6733.660815 | AP103: 10051.77825 | AQ103: 0 | AR103: 0 | AT103: 276743.1205 | AU103: 106715.5978 | AV103: 2843.138396
A104: FIN | B104: Transport services | C104: FINTransport services | D104: 5119.069459 | E104: 31111.33996 | F104: 11593.47084 | G104: 169.6528059 | H104: 6614.091219 | I104: -0.8395755319 | J104: -1.230986477 | K104: 0 | L104: 0 | M104: -0.955762218 | N104: -1.402661804 | O104: 0 | P104: 0 | Q104: -1.579179002 | R104: -2.303607406 | S104: 0 | T104: 0 | U104: -17.23801746 | V104: -25.27439829 | W104: 0 | X104: 0 | Y104: -16.01720744 | Z104: -23.50660515 | AA104: 0 | AB104: 0 | AC104: -25.61238959 | AD104: -37.36174953 | AE104: 0 | AF104: 0 | AG104: -2323.467526 | AH104: -3406.67039 | AI104: 0 | AJ104: 0 | AK104: 27.17364259 | AL104: 39.8796163 | AM104: 0 | AN104: 0 | AO104: 1685.230312 | AP104: 2458.308413 | AQ104: 0 | AR104: 0 | AT104: 276743.1205 | AU104: 106715.5978 | AV104: 2843.138396
A105: FRA | B105: Agriculture, Mining and Quarrying | C105: FRAAgriculture, Mining and Quarrying | D105: 34750.50357 | E105: 111609.0637 | F105: 45029.25023 | G105: 921.3809512 | H105: 24853.23818 | I105: -0.1160523713 | J105: -0.1736152705 | K105: 0 | L105: 0 | M105: -0.1989291172 | N105: -0.2976522294 | O105: 0 | P105: 0 | Q105: -0.1848105591 | R105: -0.2762647686 | S105: 0 | T105: 0 | U105: -6.356492249 | V105: -9.509362964 | W105: 0 | X105: 0 | Y105: -6.333986041 | Z105: -9.477371096 | AA105: 0 | AB105: 0 | AC105: -6.456499363 | AD105: -9.65152268 | AE105: 0 | AF105: 0 | AG105: -3223.395509 | AH105: -4822.22532 | AI105: 0 | AJ105: 0 | AK105: 58.36014037 | AL105: 87.32269127 | AM105: 0 | AN105: 0 | AO105: 1608.60852 | AP105: 2404.634577 | AQ105: 0 | AR105: 0 | AT105: 2777535.239 | AU105: 870409.4225 | AV105: 29337.15345
A106: FRA | B106: Business, Trade, Personal, and Public Services | C106: FRABusiness, Trade, Personal, and Public Services | D106: 1604447.295 | E106: 2765799.82 | F106: 1680848.123 | G106: 19013.04307 | H106: 247587.2174 | I106: -6.037935751 | J106: -9.036121592 | K106: 0 | L106: 0 | M106: -5.714555652 | N106: -8.552850788 | O106: 0 | P106: 0 | Q106: -2.868276805 | R106: -4.287392465 | S106: 0 | T106: 0 | U106: -8.859684012 | V106: -13.25903178 | W106: 0 | X106: 0 | Y106: -8.817567853 | Z106: -13.19706146 | AA106: 0 | AB106: 0 | AC106: -10.05879959 | AD106: -15.03551593 | AE106: 0 | AF106: 0 | AG106: -167705.7932 | AH106: -250981.4615 | AI106: 0 | AJ106: 0 | AK106: 1676.48796 | AL106: 2509.16296 | AM106: 0 | AN106: 0 | AO106: 24965.75157 | AP106: 37317.868 | AQ106: 0 | AR106: 0 | AT106: 2777535.239 | AU106: 870409.4225 | AV106: 29337.15345
A107: FRA | B107: Hotel and restaurants and Other Personal Services | C107: FRAHotel and restaurants and Other Personal Services | D107: 181656.4457 | E107: 275541.7634 | F107: 148251.0888 | G107: 2711.49259 | H107: 10552.23324 | I107: -0.7062770289 | J107: -1.047128421 | K107: 0 | L107: 0 | M107: -1.021266289 | N107: -1.515941022 | O107: 0 | P107: 0 | Q107: -0.1824490434 | R107: -0.2692927168 | S107: 0 | T107: 0 | U107: -11.7499335 | V107: -17.4204863 | W107: 0 | X107: 0 | Y107: -11.04965073 | Z107: -16.40181312 | AA107: 0 | AB107: 0 | AC107: -15.01241364 | AD107: -22.1581521 | AE107: 0 | AF107: 0 | AG107: -19617.09337 | AH107: -29084.36089 | AI107: 0 | AJ107: 0 | AK107: 299.6104583 | AL107: 444.7339439 | AM107: 0 | AN107: 0 | AO107: 1588.053665 | AP107: 2343.949181 | AQ107: 0 | AR107: 0 | AT107: 2777535.239 | AU107: 870409.4225 | AV107: 29337.15345
A108: FRA | B108: Light/Heavy Manufacturing, Utilities, and Construction | C108: FRALight/Heavy Manufacturing, Utilities, and Construction | D108: 739288.016 | E108: 1470905.621 | F108: 488787.3067 | G108: 5240.857502 | H108: 518877.5234 | I108: -2.153972302 | J108: -3.225695758 | K108: 0 | L108: 0 | M108: -2.059901683 | N108: -3.085499296 | O108: 0 | P108: 0 | Q108: -5.084138367 | R108: -7.603215616 | S108: 0 | T108: 0 | U108: -10.86872033 | V108: -16.27652549 | W108: 0 | X108: 0 | Y108: -11.53087109 | Z108: -17.27193822 | AA108: 0 | AB108: 0 | AC108: -8.507575594 | AD108: -12.72288969 | AE108: 0 | AF108: 0 | AG108: -59827.33973 | AH108: -89594.83638 | AI108: 0 | AJ108: 0 | AK108: 604.3165178 | AL108: 905.1976631 | AM108: 0 | AN108: 0 | AO108: 44252.8194 | AP108: 66179.10513 | AQ108: 0 | AR108: 0 | AT108: 2777535.239 | AU108: 870409.4225 | AV108: 29337.15345
A109: FRA | B109: Transport services | C109: FRATransport services | D109: 64863.16306 | E109: 241704.6426 | F109: 103454.1722 | G109: 1450.379565 | H109: 66396.82455 | I109: -0.9980272873 | J109: -1.460394969 | K109: 0 | L109: 0 | M109: -1.196439362 | N109: -1.749869949 | O109: 0 | P109: 0 | Q109: -2.062872437 | R109: -3.007654259 | S109: 0 | T109: 0 | U109: -23.79318735 | V109: -34.81613334 | W109: 0 | X109: 0 | Y109: -24.20064809 | Z109: -35.39501303 | AA109: 0 | AB109: 0 | AC109: -26.97605119 | AD109: -39.33090278 | AE109: 0 | AF109: 0 | AG109: -27720.5596 | AH109: -40562.9849 | AI109: 0 | AJ109: 0 | AK109: 351.0012517 | AL109: 513.362032 | AM109: 0 | AN109: 0 | AO109: 17955.43607 | AP109: 26178.90607 | AQ109: 0 | AR109: 0 | AT109: 2777535.239 | AU109: 870409.4225 | AV109: 29337.15345
A110: GBR | B110: Agriculture, Mining and Quarrying | C110: GBRAgriculture, Mining and Quarrying | D110: 16602.86044 | E110: 95804.13929 | F110: 48587.00433 | G110: 636.9220435 | H110: 27022.44364 | I110: -0.1628260913 | J110: -0.243040194 | K110: 0 | L110: 0 | M110: -0.1452439009 | N110: -0.2171269535 | O110: 0 | P110: 0 | Q110: -0.3067163601 | R110: -0.457572296 | S110: 0 | T110: 0 | U110: -8.45190822 | V110: -12.61562811 | W110: 0 | X110: 0 | Y110: -8.5754998 | Z110: -12.81962364 | AA110: 0 | AB110: 0 | AC110: -8.409670544 | AD110: -12.5458983 | AE110: 0 | AF110: 0 | AG110: -4649.168063 | AH110: -6939.518717 | AI110: 0 | AJ110: 0 | AK110: 54.61924898 | AL110: 81.65100951 | AM110: 0 | AN110: 0 | AO110: 2627.898525 | AP110: 3920.408945 | AQ110: 0 | AR110: 0 | AT110: 2855296.732 | AU110: 856784.5952 | AV110: 37605.19282
A111: GBR | B111: Business, Trade, Personal, and Public Services | C111: GBRBusiness, Trade, Personal, and Public Services | D111: 1585974.809 | E111: 2654587.407 | F111: 1618467.064 | G111: 24358.09674 | H111: 317621.1481 | I111: -5.428944374 | J111: -8.12514344 | K111: 0 | L111: 0 | M111: -5.446382407 | N111: -8.152627409 | O111: 0 | P111: 0 | Q111: -3.717406762 | R111: -5.555349078 | S111: 0 | T111: 0 | U111: -8.459845347 | V111: -12.66129328 | W111: 0 | X111: 0 | Y111: -8.408385153 | Z111: -12.58641537 | AA111: 0 | AB111: 0 | AC111: -8.671562003 | AD111: -12.95891385 | AE111: 0 | AF111: 0 | AG111: -155012.4713 | AH111: -231996.9551 | AI111: 0 | AJ111: 0 | AK111: 2048.122606 | AL111: 3065.811257 | AM111: 0 | AN111: 0 | AO111: 31850.16848 | AP111: 47597.37511 | AQ111: 0 | AR111: 0 | AT111: 2855296.732 | AU111: 856784.5952 | AV111: 37605.19282
A112: GBR | B112: Hotel and restaurants and Other Personal Services | C112: GBRHotel and restaurants and Other Personal Services | D112: 364253.4188 | E112: 496226.1352 | F112: 273912.1936 | G112: 3874.570268 | H112: 52694.46645 | I112: -1.407094206 | J112: -2.07998697 | K112: 0 | L112: 0 | M112: -1.259209092 | N112: -1.863417845 | O112: 0 | P112: 0 | Q112: -0.952193107 | R112: -1.406636883 | S112: 0 | T112: 0 | U112: -12.9557544 | V112: -19.15138321 | W112: 0 | X112: 0 | Y112: -12.22143285 | Z112: -18.08566679 | AA112: 0 | AB112: 0 | AC112: -13.38833844 | AD112: -19.77805816 | AE112: 0 | AF112: 0 | AG112: -40176.71487 | AH112: -59389.79997 | AI112: 0 | AJ112: 0 | AK112: 473.5280072 | AL112: 700.7418735 | AM112: 0 | AN112: 0 | AO112: 8158.243857 | AP112: 12051.84812 | AQ112: 0 | AR112: 0 | AT112: 2855296.732 | AU112: 856784.5952 | AV112: 37605.19282
A113: GBR | B113: Light/Heavy Manufacturing, Utilities, and Construction | C113: GBRLight/Heavy Manufacturing, Utilities, and Construction | D113: 535317.7846 | E113: 1348529.09 | F113: 485545.9929 | G113: 6200.971376 | H113: 314567.6305 | I113: -1.906238939 | J113: -2.85321712 | K113: 0 | L113: 0 | M113: -1.700527176 | N113: -2.545563572 | O113: 0 | P113: 0 | Q113: -3.647992607 | R113: -5.452172039 | S113: 0 | T113: 0 | U113: -9.901428603 | V113: -14.82024369 | W113: 0 | X113: 0 | Y113: -10.31268296 | Z113: -15.43732464 | AA113: 0 | AB113: 0 | AC113: -8.592243553 | AD113: -12.84168997 | AE113: 0 | AF113: 0 | AG113: -54428.77812 | AH113: -81467.81517 | AI113: 0 | AJ113: 0 | AK113: 639.4865233 | AL113: 957.2640897 | AM113: 0 | AN113: 0 | AO113: 31255.43869 | AP113: 46713.37014 | AQ113: 0 | AR113: 0 | AT113: 2855296.732 | AU113: 856784.5952 | AV113: 37605.19282
A114: GBR | B114: Transport services | C114: GBRTransport services | D114: 75183.90907 | E114: 220769.9814 | F114: 95521.51761 | G114: 2534.632099 | H114: 29006.36521 | I114: -0.4046019613 | J114: -0.6003999569 | K114: 0 | L114: 0 | M114: -0.7028474769 | N114: -1.043855081 | O114: 0 | P114: 0 | Q114: -0.4664220716 | R114: -0.6884816906 | S114: 0 | T114: 0 | U114: -10.68261724 | V114: -15.85222897 | W114: 0 | X114: 0 | Y114: -10.42783081 | Z114: -15.48720672 | AA114: 0 | AB114: 0 | AC114: -11.91385865 | AD114: -17.58594639 | AE114: 0 | AF114: 0 | AG114: -11552.58658 | AH114: -17143.20035 | AI114: 0 | AJ114: 0 | AK114: 264.3071489 | AL114: 392.5437158 | AM114: 0 | AN114: 0 | AO114: 3996.232458 | AP114: 5898.805066 | AQ114: 0 | AR114: 0 | AT114: 2855296.732 | AU114: 856784.5952 | AV114: 37605.19282
A115: GRC | B115: Agriculture, Mining and Quarrying | C115: GRCAgriculture, Mining and Quarrying | D115: 7093.376589 | E115: 17205.55921 | F115: 8712.914992 | G115: 589.4750454 | H115: 3578.388001 | I115: -0.2827417212 | J115: -0.4228089335 | K115: 0 | L115: 0 | M115: -0.6879979521 | N115: -1.02962092 | O115: 0 | P115: 0 | Q115: -0.2803397281 | R115: -0.4191768734 | S115: 0 | T115: 0 | U115: -6.158903348 | V115: -9.209957926 | W115: 0 | X115: 0 | Y115: -6.061340568 | Z115: -9.071077945 | AA115: 0 | AB115: 0 | AC115: -6.171270806 | AD115: -9.227568347 | AE115: 0 | AF115: 0 | AG115: -616.4669901 | AH115: -921.8581168 | AI115: 0 | AJ115: 0 | AK115: 35.73009145 | AL115: 53.4717429 | AM115: 0 | AN115: 0 | AO115: 220.8326566 | AP115: 330.1991593 | AQ115: 0 | AR115: 0 | AT115: 218031.8446 | AU115: 78773.22922 | AV115: 5193.342704
A116: GRC | B116: Business, Trade, Personal, and Public Services | C116: GRCBusiness, Trade, Personal, and Public Services | D116: 84254.66964 | E116: 164559.5234 | F116: 113233.7529 | G116: 2738.755038 | H116: 14688.40808 | I116: -4.587000447 | J116: -6.820984316 | K116: 0 | L116: 0 | M116: -3.886133869 | N116: -5.781093445 | O116: 0 | P116: 0 | Q116: -1.411548736 | R116: -2.091975468 | S116: 0 | T116: 0 | U116: -7.68829164 | V116: -11.43268184 | W116: 0 | X116: 0 | Y116: -7.369050503 | Z116: -10.96235256 | AA116: 0 | AB116: 0 | AC116: -7.570046257 | AD116: -11.21913162 | AE116: 0 | AF116: 0 | AG116: -10001.12169 | AH116: -14871.91792 | AI116: 0 | AJ116: 0 | AK116: 201.8202497 | AL116: 300.2319946 | AM116: 0 | AN116: 0 | AO116: 1111.922521 | AP116: 1647.916631 | AQ116: 0 | AR116: 0 | AT116: 218031.8446 | AU116: 78773.22922 | AV116: 5193.342704
A117: GRC | B117: Hotel and restaurants and Other Personal Services | C117: GRCHotel and restaurants and Other Personal Services | D117: 34927.88606 | E117: 40034.375 | F117: 22028.70012 | G117: 615.9962864 | H117: 716.2984859 | I117: -1.277030933 | J117: -1.883936729 | K117: 0 | L117: 0 | M117: -1.30232158 | N117: -1.921396353 | O117: 0 | P117: 0 | Q117: -0.1454877655 | R117: -0.2133943775 | S117: 0 | T117: 0 | U117: -11.00245281 | V117: -16.23134133 | W117: 0 | X117: 0 | Y117: -10.97961492 | Z117: -16.19891153 | AA117: 0 | AB117: 0 | AC117: -15.99962582 | AD117: -23.46747289 | AE117: 0 | AF117: 0 | AG117: -2784.334099 | AH117: -4107.582002 | AI117: 0 | AJ117: 0 | AK117: 67.63402276 | AL117: 99.78469731 | AM117: 0 | AN117: 0 | AO117: 114.605411 | AP117: 168.0976421 | AQ117: 0 | AR117: 0 | AT117: 218031.8446 | AU117: 78773.22922 | AV117: 5193.342704
A118: GRC | B118: Light/Heavy Manufacturing, Utilities, and Construction | C118: GRCLight/Heavy Manufacturing, Utilities, and Construction | D118: 49596.66324 | E118: 110657.3767 | F118: 32923.98132 | G118: 945.2246815 | H118: 45476.60809 | I118: -1.415894802 | J118: -2.108636924 | K118: 0 | L118: 0 | M118: -1.62484426 | N118: -2.424449399 | O118: 0 | P118: 0 | Q118: -4.890886844 | R118: -7.233586071 | S118: 0 | T118: 0 | U118: -8.161981554 | V118: -12.1553209 | W118: 0 | X118: 0 | Y118: -8.927372426 | Z118: -13.32063832 | AA118: 0 | AB118: 0 | AC118: -8.47182421 | AD118: -12.52976639 | AE118: 0 | AF118: 0 | AG118: -3087.101554 | AH118: -4597.49998 | AI118: 0 | AJ118: 0 | AK118: 84.38373085 | AL118: 125.909966 | AM118: 0 | AN118: 0 | AO118: 3852.709504 | AP118: 5698.129336 | AQ118: 0 | AR118: 0 | AT118: 218031.8446 | AU118: 78773.22922 | AV118: 5193.342704
A119: GRC | B119: Transport services | C119: GRCTransport services | D119: 11342.23884 | E119: 28750.63368 | F119: 12892.24237 | G119: 303.8914513 | H119: 14313.29735 | I119: -3.05169131 | J119: -4.432184591 | K119: 0 | L119: 0 | M119: -1.301463985 | N119: -1.900381632 | O119: 0 | P119: 0 | Q119: -10.10065382 | R119: -14.65357658 | S119: 0 | T119: 0 | U119: -44.92510571 | V119: -65.24787111 | W119: 0 | X119: 0 | Y119: -22.24132401 | Z119: -32.47650652 | AA119: 0 | AB119: 0 | AC119: -55.58878462 | AD119: -80.64572125 | AE119: 0 | AF119: 0 | AG119: -6653.658854 | AH119: -9663.573819 | AI119: 0 | AJ119: 0 | AK119: 67.58948493 | AL119: 98.69333082 | AM119: 0 | AN119: 0 | AO119: 7956.611187 | AP119: 11543.09547 | AQ119: 0 | AR119: 0 | AT119: 218031.8446 | AU119: 78773.22922 | AV119: 5193.342704
A120: HKG | B120: Agriculture, Mining and Quarrying | C120: HKGAgriculture, Mining and Quarrying | D120: 326.3586436 | E120: 515.2741255 | F120: 235.6719154 | G120: 5.092497392 | H120: 114.114635 | I120: -0.003948993043 | J120: -0.005847513891 | K120: 0 | L120: 0 | M120: -0.00696997464 | N120: -0.01032086486 | O120: 0 | P120: 0 | Q120: -0.003196893973 | R120: -0.00473383511 | S120: 0 | T120: 0 | U120: -5.814698901 | V120: -8.610177893 | W120: 0 | X120: 0 | Y120: -5.814732791 | Z120: -8.610228075 | AA120: 0 | AB120: 0 | AC120: -5.814619999 | AD120: -8.610061058 | AE120: 0 | AF120: 0 | AG120: -14.32228767 | AH120: -21.2078814 | AI120: 0 | AJ120: 0 | AK120: 0.2961151121 | AL120: 0.4384756348 | AM120: 0 | AN120: 0 | AO120: 21.83048918 | AP120: 32.32573149 | AQ120: 0 | AR120: 0 | AT120: 362682.0182 | AU120: 682865.5993 | AV120: 4248.438874
A121: HKG | B121: Business, Trade, Personal, and Public Services | C121: HKGBusiness, Trade, Personal, and Public Services | D121: 251305.9947 | E121: 477909.9497 | F121: 276704.6517 | G121: 2389.315042 | H121: 159674.1034 | I121: -5.026022722 | J121: -7.426692147 | K121: 0 | L121: 0 | M121: -3.464219154 | N121: -5.123093896 | O121: 0 | P121: 0 | Q121: -4.367843004 | R121: -6.41935492 | S121: 0 | T121: 0 | U121: -6.30313605 | V121: -9.313816033 | W121: 0 | X121: 0 | Y121: -6.159724961 | Z121: -9.109368648 | AA121: 0 | AB121: 0 | AC121: -5.677628656 | AD121: -8.344327717 | AE121: 0 | AF121: 0 | AG121: -18228.48064 | AH121: -26935.27697 | AI121: 0 | AJ121: 0 | AK121: 147.1752332 | AL121: 217.6515126 | AM121: 0 | AN121: 0 | AO121: 29826.49731 | AP121: 43835.56645 | AQ121: 0 | AR121: 0 | AT121: 362682.0182 | AU121: 682865.5993 | AV121: 4248.438874
A122: HKG | B122: Hotel and restaurants and Other Personal Services | C122: HKGHotel and restaurants and Other Personal Services | D122: 35837.76094 | E122: 52562.12891 | F122: 24321.28516 | G122: 928.8441452 | H122: 1093.739973 | I122: -0.7207193622 | J122: -1.058565596 | K122: 0 | L122: 0 | M122: -1.646520906 | N122: -2.431149877 | O122: 0 | P122: 0 | Q122: -0.07485539286 | R122: -0.1095050962 | S122: 0 | T122: 0 | U122: -10.28320192 | V122: -15.1035817 | W122: 0 | X122: 0 | Y122: -7.531019651 | Z122: -11.11983299 | AA122: 0 | AB122: 0 | AC122: -14.20507266 | AD122: -20.78043797 | AE122: 0 | AF122: 0 | AG122: -2613.919529 | AH122: -3839.227069 | AI122: 0 | AJ122: 0 | AK122: 69.95143424 | AL122: 103.2859164 | AM122: 0 | AN122: 0 | AO122: 511.1617271 | AP122: 747.7726313 | AQ122: 0 | AR122: 0 | AT122: 362682.0182 | AU122: 682865.5993 | AV122: 4248.438874
A123: HKG | B123: Light/Heavy Manufacturing, Utilities, and Construction | C123: HKGLight/Heavy Manufacturing, Utilities, and Construction | D123: 46393.8728 | E123: 97674.55554 | F123: 26099.44283 | G123: 578.1278235 | H123: 18564.37663 | I123: -0.6564142872 | J123: -0.979526877 | K123: 0 | L123: 0 | M123: -1.15171438 | N123: -1.718080702 | O123: 0 | P123: 0 | Q123: -0.4734589496 | R123: -0.7036901173 | S123: 0 | T123: 0 | U123: -8.727613045 | V123: -13.02368293 | W123: 0 | X123: 0 | Y123: -8.463505831 | Z123: -12.625514 | AA123: 0 | AB123: 0 | AC123: -5.293420682 | AD123: -7.867477896 | AE123: 0 | AF123: 0 | AG123: -2380.696585 | AH123: -3552.567847 | AI123: 0 | AJ123: 0 | AK123: 48.92988144 | AL123: 72.99160841 | AM123: 0 | AN123: 0 | AO123: 3233.088294 | AP123: 4805.257737 | AQ123: 0 | AR123: 0 | AT123: 362682.0182 | AU123: 682865.5993 | AV123: 4248.438874
A124: HKG | B124: Transport services | C124: HKGTransport services | D124: 15538.88164 | E124: 54899.89427 | F124: 19654.30466 | G124: 347.0594184 | H124: 28109.26296 | I124: -2.835147309 | J124: -4.113667345 | K124: 0 | L124: 0 | M124: -3.995581047 | N124: -5.797609597 | O124: 0 | P124: 0 | Q124: -8.322272123 | R124: -12.06720195 | S124: 0 | T124: 0 | U124: -50.05720988 | V124: -72.63069152 | W124: 0 | X124: 0 | Y124: -48.9108814 | Z124: -70.96995208 | AA124: 0 | AB124: 0 | AC124: -61.45070988 | AD124: -89.1028454 | AE124: 0 | AF124: 0 | AG124: -10282.56948 | AH124: -14919.53175 | AI124: 0 | AJ124: 0 | AK124: 169.7498184 | AL124: 246.3078999 | AM124: 0 | AN124: 0 | AO124: 56829.93341 | AP124: 82402.77093 | AQ124: 0 | AR124: 0 | AT124: 362682.0182 | AU124: 682865.5993 | AV124: 4248.438874
A125: HRV | B125: Agriculture, Mining and Quarrying | C125: HRVAgriculture, Mining and Quarrying | D125: 2782.88052 | E125: 7723.303737 | F125: 3252.97328 | G125: 918.3985104 | H125: 2795.22024 | I125: -0.6552213922 | J125: -0.9680180895 | K125: 0 | L125: 0 | M125: -4.208905161 | N125: -6.26025759 | O125: 0 | P125: 0 | Q125: -1.208522716 | R125: -1.778351346 | S125: 0 | T125: 0 | U125: -10.27011068 | V125: -15.17296755 | W125: 0 | X125: 0 | Y125: -8.24254569 | Z125: -12.25982939 | AA125: 0 | AB125: 0 | AC125: -12.00875548 | AD125: -17.67098475 | AE125: 0 | AF125: 0 | AG125: -399.4996171 | AH125: -590.2170789 | AI125: 0 | AJ125: 0 | AK125: 75.69941956 | AL125: 112.5940946 | AM125: 0 | AN125: 0 | AO125: 372.23539 | AP125: 547.7475086 | AQ125: 0 | AR125: 0 | AT125: 60971.69932 | AU125: 30800.86001 | AV125: 1798.553701
A126: HRV | B126: Business, Trade, Personal, and Public Services | C126: HRVBusiness, Trade, Personal, and Public Services | D126: 21910.07191 | E126: 47769.5195 | F126: 28795.45747 | G126: 503.7668592 | H126: 5490.449181 | I126: -6.280628892 | J126: -9.270505519 | K126: 0 | L126: 0 | M126: -3.108865875 | N126: -4.590430753 | O126: 0 | P126: 0 | Q126: -2.450906996 | R126: -3.604995784 | S126: 0 | T126: 0 | U126: -11.12107327 | V126: -16.41523053 | W126: 0 | X126: 0 | Y126: -11.09930501 | Z126: -16.38880322 | AA126: 0 | AB126: 0 | AC126: -12.39875766 | AD126: -18.23711351 | AE126: 0 | AF126: 0 | AG126: -3829.406163 | AH126: -5652.38475 | AI126: 0 | AJ126: 0 | AK126: 55.91462227 | AL126: 82.56136221 | AM126: 0 | AN126: 0 | AO126: 754.9004327 | AP126: 1110.369705 | AQ126: 0 | AR126: 0 | AT126: 60971.69932 | AU126: 30800.86001 | AV126: 1798.553701
A127: HRV | B127: Hotel and restaurants and Other Personal Services | C127: HRVHotel and restaurants and Other Personal Services | D127: 8246.817903 | E127: 10279.94162 | F127: 5123.571444 | G127: 50.74180365 | H127: 898.2585552 | I127: -2.938528305 | J127: -4.282410896 | K127: 0 | L127: 0 | M127: -1.010246796 | N127: -1.470043689 | O127: 0 | P127: 0 | Q127: -1.789636095 | R127: -2.597952417 | S127: 0 | T127: 0 | U127: -29.24318244 | V127: -42.61702123 | W127: 0 | X127: 0 | Y127: -35.80840488 | Z127: -52.10600005 | AA127: 0 | AB127: 0 | AC127: -55.33788856 | AD127: -80.33208636 | AE127: 0 | AF127: 0 | AG127: -1791.670642 | AH127: -2611.058695 | AI127: 0 | AJ127: 0 | AK127: 18.16983115 | AL127: 26.43952519 | AM127: 0 | AN127: 0 | AO127: 551.2233082 | AP127: 800.191687 | AQ127: 0 | AR127: 0 | AT127: 60971.69932 | AU127: 30800.86001 | AV127: 1798.553701
A128: HRV | B128: Light/Heavy Manufacturing, Utilities, and Construction | C128: HRVLight/Heavy Manufacturing, Utilities, and Construction | D128: 19962.64768 | E128: 34339.83958 | F128: 11557.59007 | G128: 265.6067991 | H128: 15012.07706 | I128: -2.234057607 | J128: -3.316626605 | K128: 0 | L128: 0 | M128: -1.411289796 | N128: -2.096124169 | O128: 0 | P128: 0 | Q128: -4.791366574 | R128: -7.113035474 | S128: 0 | T128: 0 | U128: -9.855862434 | V128: -14.63176932 | W128: 0 | X128: 0 | Y128: -9.556533958 | Z128: -14.19388269 | AA128: 0 | AB128: 0 | AC128: -8.864981426 | AD128: -13.1605308 | AE128: 0 | AF128: 0 | AG128: -1362.142887 | AH128: -2022.203601 | AI128: 0 | AJ128: 0 | AK128: 25.38280486 | AL128: 37.69991883 | AM128: 0 | AN128: 0 | AO128: 1475.782111 | AP128: 2190.876099 | AQ128: 0 | AR128: 0 | AT128: 60971.69932 | AU128: 30800.86001 | AV128: 1798.553701
A129: HRV | B129: Transport services | C129: HRVTransport services | D129: 2386.768641 | E129: 5917.736356 | F129: 2258.357822 | G129: 60.03966424 | H129: 3579.324246 | I129: -3.803978013 | J129: -5.516061389 | K129: 0 | L129: 0 | M129: -2.56206556 | N129: -3.715823234 | O129: 0 | P129: 0 | Q129: -12.86221869 | R129: -18.64557395 | S129: 0 | T129: 0 | U129: -85.88410533 | V129: -124.538574 | W129: 0 | X129: 0 | Y129: -76.74946867 | Z129: -111.3115384 | AA129: 0 | AB129: 0 | AC129: -99.81000177 | AD129: -144.688472 | AE129: 0 | AF129: 0 | AG129: -2319.350036 | AH129: -3363.236364 | AI129: 0 | AJ129: 0 | AK129: 46.08012496 | AL129: 66.83107632 | AM129: 0 | AN129: 0 | AO129: 3961.673973 | AP129: 5742.99713 | AQ129: 0 | AR129: 0 | AT129: 60971.69932 | AU129: 30800.86001 | AV129: 1798.553701
A130: HUN | B130: Agriculture, Mining and Quarrying | C130: HUNAgriculture, Mining and Quarrying | D130: 2785.838817 | E130: 13063.29956 | F130: 5926.588371 | G130: 492.8399283 | H130: 3324.704219 | I130: -0.3062035879 | J130: -0.457137618 | K130: 0 | L130: 0 | M130: -0.580736866 | N130: -0.8672850177 | O130: 0 | P130: 0 | Q130: -0.1681738803 | R130: -0.2510177075 | S130: 0 | T130: 0 | U130: -6.789904601 | V130: -10.13678787 | W130: 0 | X130: 0 | Y130: -6.749884567 | Z130: -10.08042385 | AA130: 0 | AB130: 0 | AC130: -6.814966263 | AD130: -10.17207431 | AE130: 0 | AF130: 0 | AG130: -483.4431437 | AH130: -721.7421867 | AI130: 0 | AJ130: 0 | AK130: 33.26612793 | AL130: 49.68035619 | AM130: 0 | AN130: 0 | AO130: 225.5279543 | AP130: 336.6248669 | AQ130: 0 | AR130: 0 | AT130: 157882.9128 | AU130: 134104.032 | AV130: 5728.261779
A131: HUN | B131: Business, Trade, Personal, and Public Services | C131: HUNBusiness, Trade, Personal, and Public Services | D131: 65104.06465 | E131: 113146.5135 | F131: 69408.26214 | G131: 2663.325714 | H131: 16734.91412 | I131: -3.797298292 | J131: -5.664619259 | K131: 0 | L131: 0 | M131: -3.167164593 | N131: -4.728325788 | O131: 0 | P131: 0 | Q131: -1.031475075 | R131: -1.537167426 | S131: 0 | T131: 0 | U131: -7.189881045 | V131: -10.72550416 | W131: 0 | X131: 0 | Y131: -6.811914471 | Z131: -10.16964857 | AA131: 0 | AB131: 0 | AC131: -8.304116435 | AD131: -12.37530367 | AE131: 0 | AF131: 0 | AG131: -5995.285151 | AH131: -8943.465885 | AI131: 0 | AJ131: 0 | AK131: 181.4234789 | AL131: 270.8508789 | AM131: 0 | AN131: 0 | AO131: 1383.249665 | AP131: 2061.403498 | AQ131: 0 | AR131: 0 | AT131: 157882.9128 | AU131: 134104.032 | AV131: 5728.261779
A132: HUN | B132: Hotel and restaurants and Other Personal Services | C132: HUNHotel and restaurants and Other Personal Services | D132: 11599.04865 | E132: 16219.78713 | F132: 7673.282368 | G132: 470.2006214 | H132: 1383.553994 | I132: -0.696948311 | J132: -1.026394112 | K132: 0 | L132: 0 | M132: -0.9630826717 | N132: -1.418522017 | O132: 0 | P132: 0 | Q132: -0.1255271074 | R132: -0.1848236406 | S132: 0 | T132: 0 | U132: -11.9365151 | V132: -17.57887726 | W132: 0 | X132: 0 | Y132: -11.73284154 | Z132: -17.28127244 | AA132: 0 | AB132: 0 | AC132: -12.22361292 | AD132: -17.99780692 | AE132: 0 | AF132: 0 | AG132: -1100.362294 | AH132: -1620.50092 | AI132: 0 | AJ132: 0 | AK132: 55.16789659 | AL132: 81.2566545 | AM132: 0 | AN132: 0 | AO132: 168.3369123 | AP132: 247.8559542 | AQ132: 0 | AR132: 0 | AT132: 157882.9128 | AU132: 134104.032 | AV132: 5728.261779
A133: HUN | B133: Light/Heavy Manufacturing, Utilities, and Construction | C133: HUNLight/Heavy Manufacturing, Utilities, and Construction | D133: 71187.7679 | E133: 155604.7544 | F133: 40770.17774 | G133: 1801.587855 | H133: 105095.0703 | I133: -2.578982916 | J133: -3.853240066 | K133: 0 | L133: 0 | M133: -2.560524583 | N133: -3.82755364 | O133: 0 | P133: 0 | Q133: -6.522200617 | R133: -9.744997263 | S133: 0 | T133: 0 | U133: -8.313119474 | V133: -12.42057279 | W133: 0 | X133: 0 | Y133: -8.141348382 | Z133: -12.16994667 | AA133: 0 | AB133: 0 | AC133: -8.36122649 | AD133: -12.49273582 | AE133: 0 | AF133: 0 | AG133: -4071.773347 | AH133: -6083.607652 | AI133: 0 | AJ133: 0 | AK133: 146.673551 | AL133: 219.2522922 | AM133: 0 | AN133: 0 | AO133: 8746.534004 | AP133: 13068.43425 | AQ133: 0 | AR133: 0 | AT133: 157882.9128 | AU133: 134104.032 | AV133: 5728.261779
A134: HUN | B134: Transport services | C134: =A134&B134 -> HUNTransport services | D134: 5335.08398 | E134: 18641.53546 | F134: 7640.690447 | G134: 300.3073729 | H134: 8189.85567 | I134: -2.084870184 | J134: -3.035532785 | K134: 0 | L134: 0 | M134: -1.852029844 | N134: -2.696496167 | O134: 0 | P134: 0 | Q134: -2.443413199 | R134: -3.555422373 | S134: 0 | T134: 0 | U134: -35.85952852 | V134: -52.21081644 | W134: 0 | X134: 0 | Y134: -35.32684241 | Z134: -51.43475168 | AA134: 0 | AB134: 0 | AC134: -40.19563068 | AD134: -58.48885675 | AE134: 0 | AF134: 0 | AG134: -3291.653775 | AH134: -4792.58758 | AI134: 0 | AJ134: 0 | AK134: 106.0891177 | AL134: 154.4623593 | AM134: 0 | AN134: 0 | AO134: 3276.715619 | AP134: 4767.964757 | AQ134: 0 | AR134: 0 | AT134: 157882.9128 | AU134: 134104.032 | AV134: 5728.261779
A135: IDN | B135: Agriculture, Mining and Quarrying | C135: IDNAgriculture, Mining and Quarrying | D135: 65989.66589 | E135: 278573.9473 | F135: 218177.5832 | G135: 38368.27157 | H135: 35494.54593 | I135: -1.173630194 | J135: -1.751494329 | K135: 0 | L135: 0 | M135: -1.657188117 | N135: -2.474818802 | O135: 0 | P135: 0 | Q135: -0.8678709975 | R135: -1.294007699 | S135: 0 | T135: 0 | U135: -5.39481501 | V135: -8.051077714 | W135: 0 | X135: 0 | Y135: -5.412079132 | Z135: -8.082314284 | AA135: 0 | AB135: 0 | AC135: -5.371544145 | AD135: -8.00904685 | AE135: 0 | AF135: 0 | AG135: -12231.26053 | AH135: -18253.60626 | AI135: 0 | AJ135: 0 | AK135: 2076.521224 | AL135: 3101.044302 | AM135: 0 | AN135: 0 | AO135: 1896.288289 | AP135: 2827.392149 | AQ135: 0 | AR135: 0 | AT135: 1042173.301 | AU135: 218498.8661 | AV135: 125303.8929
A136: IDN | B136: Business, Trade, Personal, and Public Services | C136: IDNBusiness, Trade, Personal, and Public Services | D136: 275138.0285 | E136: 516247.7227 | F136: 341819.0733 | G136: 39949.05582 | H136: 6206.838951 | I136: -1.745756044 | J136: -2.611831162 | K136: 0 | L136: 0 | M136: -1.638464713 | N136: -2.45154056 | O136: 0 | P136: 0 | Q136: -0.148138615 | R136: -0.2214821444 | S136: 0 | T136: 0 | U136: -5.122036531 | V136: -7.663095124 | W136: 0 | X136: 0 | Y136: -5.139195463 | Z136: -7.689482737 | AA136: 0 | AB136: 0 | AC136: -5.243284241 | AD136: -7.83923785 | AE136: 0 | AF136: 0 | AG136: -18193.80338 | AH136: -27219.80703 | AI136: 0 | AJ136: 0 | AK136: 2053.06007 | AL136: 3071.875759 | AM136: 0 | AN136: 0 | AO136: 323.6811939 | AP136: 483.9359741 | AQ136: 0 | AR136: 0 | AT136: 1042173.301 | AU136: 218498.8661 | AV136: 125303.8929
A137: IDN | B137: Hotel and restaurants and Other Personal Services | C137: IDNHotel and restaurants and Other Personal Services | D137: 67462.43107 | E137: 107287.8839 | F137: 51784.33631 | G137: 16293.08489 | H137: 3208.779166 | I137: -0.590371047 | J137: -0.8670025092 | K137: 0 | L137: 0 | M137: -1.516793424 | N137: -2.226869088 | O137: 0 | P137: 0 | Q137: -0.1587942527 | R137: -0.2333786696 | S137: 0 | T137: 0 | U137: -11.43357503 | V137: -16.79103047 | W137: 0 | X137: 0 | Y137: -11.66507887 | Z137: -17.12599958 | AA137: 0 | AB137: 0 | AC137: -10.87177734 | AD137: -15.97816601 | AE137: 0 | AF137: 0 | AG137: -6152.689426 | AH137: -9035.668667 | AI137: 0 | AJ137: 0 | AK137: 1900.601208 | AL137: 2790.353658 | AM137: 0 | AN137: 0 | AO137: 346.9636416 | AP137: 509.9297467 | AQ137: 0 | AR137: 0 | AT137: 1042173.301 | AU137: 218498.8661 | AV137: 125303.8929
A138: IDN | B138: Light/Heavy Manufacturing, Utilities, and Construction | C138: IDNLight/Heavy Manufacturing, Utilities, and Construction | D138: 552128.5352 | E138: 964169.1308 | F138: 333465.2289 | G138: 24932.28855 | H138: 173063.7171 | I138: -1.846251384 | J138: -2.761351158 | K138: 0 | L138: 0 | M138: -1.133469477 | N138: -1.697609667 | O138: 0 | P138: 0 | Q138: -4.184484078 | R138: -6.246862033 | S138: 0 | T138: 0 | U138: -5.552591039 | V138: -8.304748653 | W138: 0 | X138: 0 | Y138: -5.696554384 | Z138: -8.531791978 | AA138: 0 | AB138: 0 | AC138: -5.311797267 | AD138: -7.929786338 | AE138: 0 | AF138: 0 | AG138: -19241.13899 | AH138: -28778.0645 | AI138: 0 | AJ138: 0 | AK138: 1420.28138 | AL138: 2127.171 | AM138: 0 | AN138: 0 | AO138: 9143.050261 | AP138: 13649.32271 | AQ138: 0 | AR138: 0 | AT138: 1042173.301 | AU138: 218498.8661 | AV138: 125303.8929
A139: IDN | B139: Transport services | C139: IDNTransport services | D139: 67178.02014 | E139: 135202.0488 | F139: 57648.64829 | G139: 5761.191777 | H139: 1713.746364 | I139: -0.4140359419 | J139: -0.6136179193 | K139: 0 | L139: 0 | M139: -0.3112675145 | N139: -0.462144966 | O139: 0 | P139: 0 | Q139: -0.06304238471 | R139: -0.09315840834 | S139: 0 | T139: 0 | U139: -7.202849233 | V139: -10.67491228 | W139: 0 | X139: 0 | Y139: -6.769958842 | Z139: -10.05149029 | AA139: 0 | AB139: 0 | AC139: -8.081494564 | AD139: -11.94211123 | AE139: 0 | AF139: 0 | AG139: -4314.972041 | AH139: -6394.962122 | AI139: 0 | AJ139: 0 | AK139: 390.0303131 | AL139: 579.0856335 | AM139: 0 | AN139: 0 | AO139: 137.7468957 | AP139: 203.5500659 | AQ139: 0 | AR139: 0 | AT139: 1042173.301 | AU139: 218498.8661 | AV139: 125303.8929
A140: IND | B140: Agriculture, Mining and Quarrying | C140: INDAgriculture, Mining and Quarrying | D140: 273591.2333 | E140: 541079.9345 | F140: 407697.8784 | G140: 268765.6411 | H140: 24219.99037 | I140: -0.867425249 | J140: -1.299336935 | K140: 0 | L140: 0 | M140: -2.557388148 | N140: -3.833292564 | O140: 0 | P140: 0 | Q140: -0.3395717113 | R140: -0.5076491351 | S140: 0 | T140: 0 | U140: -5.525882688 | V140: -8.277351254 | W140: 0 | X140: 0 | Y140: -5.453369497 | Z140: -8.174105583 | AA140: 0 | AB140: 0 | AC140: -5.755420185 | AD140: -8.604173969 | AE140: 0 | AF140: 0 | AG140: -23582.96983 | AH140: -35325.49203 | AI140: 0 | AJ140: 0 | AK140: 14656.78444 | AL140: 21969.1887 | AM140: 0 | AN140: 0 | AO140: 1822.222877 | AP140: 2724.166463 | AQ140: 0 | AR140: 0 | AT140: 2718732.231 | AU140: 536623.8755 | AV140: 573115.3658
A141: IND | B141: Business, Trade, Personal, and Public Services | C141: INDBusiness, Trade, Personal, and Public Services | D141: 1002463.583 | E141: 1613180.596 | F141: 1370749.958 | G141: 119596.6547 | H141: 101895.5728 | I141: -3.173165205 | J141: -4.753208538 | K141: 0 | L141: 0 | M141: -1.285659799 | N141: -1.925677796 | O141: 0 | P141: 0 | Q141: -1.44334794 | R141: -2.157951561 | S141: 0 | T141: 0 | U141: -6.012325643 | V141: -9.006098244 | W141: 0 | X141: 0 | Y141: -6.160969469 | Z141: -9.227979378 | AA141: 0 | AB141: 0 | AC141: -5.814805873 | AD141: -8.693724542 | AE141: 0 | AF141: 0 | AG141: -86269.86518 | AH141: -129227.0126 | AI141: 0 | AJ141: 0 | AK141: 7368.313858 | AL141: 11036.35535 | AM141: 0 | AN141: 0 | AO141: 7745.349655 | AP141: 11580.0833 | AQ141: 0 | AR141: 0 | AT141: 2718732.231 | AU141: 536623.8755 | AV141: 573115.3658
A142: IND | B142: Hotel and restaurants and Other Personal Services | C142: INDHotel and restaurants and Other Personal Services | D142: 126882.3196 | E142: 196160.9883 | F142: 107180.2682 | G142: 27528.3816 | H142: 12131.62975 | I142: -0.4349278262 | J142: -0.6414648399 | K142: 0 | L142: 0 | M142: -0.4894089095 | N142: -0.7222743913 | O142: 0 | P142: 0 | Q142: -0.3699076435 | R142: -0.5439819007 | S142: 0 | T142: 0 | U142: -10.53926702 | V142: -15.54411749 | W142: 0 | X142: 0 | Y142: -10.18903879 | Z142: -15.03708177 | AA142: 0 | AB142: 0 | AC142: -12.5168099 | AD142: -18.40707581 | AE142: 0 | AF142: 0 | AG142: -11824.52299 | AH142: -17439.71136 | AI142: 0 | AJ142: 0 | AK142: 2804.877662 | AL142: 4139.465519 | AM142: 0 | AN142: 0 | AO142: 1985.012732 | AP142: 2919.136758 | AQ142: 0 | AR142: 0 | AT142: 2718732.231 | AU142: 536623.8755 | AV142: 573115.3658
A143: IND | B143: Light/Heavy Manufacturing, Utilities, and Construction | C143: INDLight/Heavy Manufacturing, Utilities, and Construction | D143: 1302054.064 | E143: 2415869.537 | F143: 564456.0006 | G143: 133791.0508 | H143: 257075.0287 | I143: -1.727006179 | J143: -2.587450679 | K143: 0 | L143: 0 | M143: -1.851740837 | N143: -2.775591607 | O143: 0 | P143: 0 | Q143: -4.254187005 | R143: -6.365071066 | S143: 0 | T143: 0 | U143: -7.946426122 | V143: -11.90556577 | W143: 0 | X143: 0 | Y143: -7.932227546 | Z143: -11.88968983 | AA143: 0 | AB143: 0 | AC143: -6.793227863 | AD143: -10.16395802 | AE143: 0 | AF143: 0 | AG143: -46952.67364 | AH143: -70345.85557 | AI143: 0 | AJ143: 0 | AK143: 10612.61127 | AL143: 15907.34199 | AM143: 0 | AN143: 0 | AO143: 22828.98318 | AP143: 34156.49103 | AQ143: 0 | AR143: 0 | AT143: 2718732.231 | AU143: 536623.8755 | AV143: 573115.3658
A144: IND | B144: Transport services | C144: INDTransport services | D144: 169698.5738 | E144: 345779.1104 | F144: 147131.7943 | G144: 23433.60045 | H144: 15183.76829 | I144: -0.5804965724 | J144: -0.8584191391 | K144: 0 | L144: 0 | M144: -0.3506295002 | N144: -0.5207287443 | O144: 0 | P144: 0 | Q144: -1.057510644 | R144: -1.54149982 | S144: 0 | T144: 0 | U144: -10.24710488 | V144: -15.15307991 | W144: 0 | X144: 0 | Y144: -8.57534213 | Z144: -12.73545762 | AA144: 0 | AB144: 0 | AC144: -28.59069274 | AD144: -41.67574856 | AE144: 0 | AF144: 0 | AG144: -15782.14742 | AH144: -23338.11781 | AI144: 0 | AJ144: 0 | AK144: 2009.511542 | AL144: 2984.376447 | AM144: 0 | AN144: 0 | AO144: 5674.854604 | AP144: 8272.056076 | AQ144: 0 | AR144: 0 | AT144: 2718732.231 | AU144: 536623.8755 | AV144: 573115.3658
A145: IRL | B145: Agriculture, Mining and Quarrying | C145: IRLAgriculture, Mining and Quarrying | D145: 6713.455394 | E145: 18983.83449 | F145: 5347.95291 | G145: 133.1111342 | H145: 16702.32418 | I145: -0.1453474372 | J145: -0.2172669555 | K145: 0 | L145: 0 | M145: -0.4660772843 | N145: -0.6967130875 | O145: 0 | P145: 0 | Q145: -0.3493051454 | R145: -0.5221530064 | S145: 0 | T145: 0 | U145: -9.519510413 | V145: -14.22986938 | W145: 0 | X145: 0 | Y145: -9.452604931 | Z145: -14.13017495 | AA145: 0 | AB145: 0 | AC145: -9.474657338 | AD145: -14.16303447 | AE145: 0 | AF145: 0 | AG145: -555.9357651 | AH145: -831.0189259 | AI145: 0 | AJ145: 0 | AK145: 12.58246772 | AL145: 18.80883327 | AM145: 0 | AN145: 0 | AO145: 1634.335808 | AP145: 2443.059791 | AQ145: 0 | AR145: 0 | AT145: 382487.4905 | AU145: 467881.9736 | AV145: 2699.652641
A146: IRL | B146: Business, Trade, Personal, and Public Services | C146: IRLBusiness, Trade, Personal, and Public Services | D146: 171595.1788 | E146: 365343.4511 | F146: 184100.3745 | G146: 1408.365056 | H146: 191767.7124 | I146: -3.590400992 | J146: -5.362136206 | K146: 0 | L146: 0 | M146: -3.493038196 | N146: -5.225034059 | O146: 0 | P146: 0 | Q146: -2.800382447 | R146: -4.172085655 | S146: 0 | T146: 0 | U146: -6.830981239 | V146: -10.20182757 | W146: 0 | X146: 0 | Y146: -6.695700942 | Z146: -10.01571226 | AA146: 0 | AB146: 0 | AC146: -6.615722757 | AD146: -9.856283038 | AE146: 0 | AF146: 0 | AG146: -13732.83465 | AH146: -20509.50021 | AI146: 0 | AJ146: 0 | AK146: 94.29989792 | AL146: 141.05777 | AM146: 0 | AN146: 0 | AO146: 13102.48466 | AP146: 19520.4367 | AQ146: 0 | AR146: 0 | AT146: 382487.4905 | AU146: 467881.9736 | AV146: 2699.652641
A147: IRL | B147: Hotel and restaurants and Other Personal Services | C147: IRLHotel and restaurants and Other Personal Services | D147: 14851.94073 | E147: 19853.02929 | F147: 13623.65483 | G147: 243.4410335 | H147: 4513.078109 | I147: -0.5122397889 | J147: -0.7539349604 | K147: 0 | L147: 0 | M147: -1.170831893 | N147: -1.721552611 | O147: 0 | P147: 0 | Q147: -0.1304150887 | R147: -0.1912432557 | S147: 0 | T147: 0 | U147: -13.16965771 | V147: -19.3836277 | W147: 0 | X147: 0 | Y147: -12.98400622 | Z147: -19.09125465 | AA147: 0 | AB147: 0 | AC147: -13.09153071 | AD147: -19.19767858 | AE147: 0 | AF147: 0 | AG147: -1959.253114 | AH147: -2883.70691 | AI147: 0 | AJ147: 0 | AK147: 31.60839411 | AL147: 46.47594053 | AM147: 0 | AN147: 0 | AO147: 610.1886907 | AP147: 894.792719 | AQ147: 0 | AR147: 0 | AT147: 382487.4905 | AU147: 467881.9736 | AV147: 2699.652641
A148: IRL | B148: Light/Heavy Manufacturing, Utilities, and Construction | C148: IRLLight/Heavy Manufacturing, Utilities, and Construction | D148: 166493.364 | E148: 293290.0961 | F148: 134865.7202 | G148: 791.3712869 | H148: 221901.0815 | I148: -3.210246228 | J148: -4.802144168 | K148: 0 | L148: 0 | M148: -3.793980894 | N148: -5.684891442 | O148: 0 | P148: 0 | Q148: -3.59578108 | R148: -5.380622908 | S148: 0 | T148: 0 | U148: -8.33741804 | V148: -12.4717796 | W148: 0 | X148: 0 | Y148: -12.94263802 | Z148: -19.3932163 | AA148: 0 | AB148: 0 | AC148: -7.34123729 | AD148: -10.98521535 | AE148: 0 | AF148: 0 | AG148: -12278.79024 | AH148: -18367.60072 | AI148: 0 | AJ148: 0 | AK148: 102.4243054 | AL148: 153.472322 | AM148: 0 | AN148: 0 | AO148: 16824.01148 | AP148: 25174.96465 | AQ148: 0 | AR148: 0 | AT148: 382487.4905 | AU148: 467881.9736 | AV148: 2699.652641
A149: IRL | B149: Transport services | C149: IRLTransport services | D149: 6590.03135 | E149: 27618.32385 | F149: 12325.73807 | G149: 123.3645428 | H149: 18154.64509 | I149: -1.162563905 | J149: -1.702292427 | K149: 0 | L149: 0 | M149: -1.225513831 | N149: -1.800460662 | O149: 0 | P149: 0 | Q149: -1.697589546 | R149: -2.468994123 | S149: 0 | T149: 0 | U149: -33.03685594 | V149: -48.37445017 | W149: 0 | X149: 0 | Y149: -26.81858239 | Z149: -39.40045504 | AA149: 0 | AB149: 0 | AC149: -42.36238146 | AD149: -61.61234389 | AE149: 0 | AF149: 0 | AG149: -4446.661505 | AH149: -6511.055585 | AI149: 0 | AJ149: 0 | AK149: 33.08461651 | AL149: 48.60618381 | AM149: 0 | AN149: 0 | AO149: 7942.71547 | AP149: 11551.97843 | AQ149: 0 | AR149: 0 | AT149: 382487.4905 | AU149: 467881.9736 | AV149: 2699.652641
A150: ITA | B150: Agriculture, Mining and Quarrying | C150: ITAAgriculture, Mining and Quarrying | D150: 31773.7726 | E150: 75416.43093 | F150: 51206.40778 | G150: 964.511658 | H150: 8961.729331 | I150: -0.1992747637 | J150: -0.2983284139 | K150: 0 | L150: 0 | M150: -0.2937613286 | N150: -0.4398268102 | O150: 0 | P150: 0 | Q150: -0.1090781832 | R150: -0.1632990319 | S150: 0 | T150: 0 | U150: -7.489476034 | V150: -11.21227528 | W150: 0 | X150: 0 | Y150: -7.40921922 | Z150: -11.09326837 | AA150: 0 | AB150: 0 | AC150: -7.4834033 | AD150: -11.20327162 | AE150: 0 | AF150: 0 | AG150: -4152.61558 | AH150: -6216.759194 | AI150: 0 | AJ150: 0 | AK150: 71.46278398 | AL150: 106.995868 | AM150: 0 | AN150: 0 | AO150: 714.9495952 | AP150: 1070.33848 | AQ150: 0 | AR150: 0 | AT150: 2083864.26 | AU150: 655446.9228 | AV150: 24326.81808
A151: ITA | B151: Business, Trade, Personal, and Public Services | C151: ITABusiness, Trade, Personal, and Public Services | D151: 1016471.028 | E151: 1637155.511 | F151: 1156034.242 | G151: 13205.79337 | H151: 78382.37097 | I151: -5.104279902 | J151: -7.636369536 | K151: 0 | L151: 0 | M151: -4.684823376 | N151: -7.007624885 | O151: 0 | P151: 0 | Q151: -1.189252536 | R151: -1.776486094 | S151: 0 | T151: 0 | U151: -8.497422772 | V151: -12.71275511 | W151: 0 | X151: 0 | Y151: -8.630064205 | Z151: -12.90897176 | AA151: 0 | AB151: 0 | AC151: -9.328434535 | AD151: -13.93466378 | AE151: 0 | AF151: 0 | AG151: -106366.2646 | AH151: -159131.5755 | AI151: 0 | AJ151: 0 | AK151: 1139.66846 | AL151: 1704.732157 | AM151: 0 | AN151: 0 | AO151: 7794.919149 | AP151: 11643.92344 | AQ151: 0 | AR151: 0 | AT151: 2083864.26 | AU151: 655446.9228 | AV151: 24326.81808
A152: ITA | B152: Hotel and restaurants and Other Personal Services | C152: ITAHotel and restaurants and Other Personal Services | D152: 232885.5979 | E152: 325075.0701 | F152: 167171.8839 | G152: 3102.115982 | H152: 6039.060685 | I152: -1.025867358 | J152: -1.51951799 | K152: 0 | L152: 0 | M152: -1.593037257 | N152: -2.356948192 | O152: 0 | P152: 0 | Q152: -0.1639325636 | R152: -0.2412585351 | S152: 0 | T152: 0 | U152: -11.81004133 | V152: -17.49307074 | W152: 0 | X152: 0 | Y152: -12.49261063 | Z152: -18.48320615 | AA152: 0 | AB152: 0 | AC152: -16.68971479 | AD152: -24.56214954 | AE152: 0 | AF152: 0 | AG152: -21377.68323 | AH152: -31664.69231 | AI152: 0 | AJ152: 0 | AK152: 387.5352754 | AL152: 573.3704988 | AM152: 0 | AN152: 0 | AO152: 1074.490944 | AP152: 1581.321644 | AQ152: 0 | AR152: 0 | AT152: 2083864.26 | AU152: 655446.9228 | AV152: 24326.81808
A153: ITA | B153: Light/Heavy Manufacturing, Utilities, and Construction | C153: ITALight/Heavy Manufacturing, Utilities, and Construction | D153: 615892.3665 | E153: 1361583.598 | F153: 452704.4541 | G153: 6091.580054 | H153: 502840.5602 | I153: -2.225385931 | J153: -3.330228641 | K153: 0 | L153: 0 | M153: -2.382628305 | N153: -3.566292981 | O153: 0 | P153: 0 | Q153: -6.921709169 | R153: -10.35208584 | S153: 0 | T153: 0 | U153: -9.460498332 | V153: -14.15737472 | W153: 0 | X153: 0 | Y153: -9.515062453 | Z153: -14.24204538 | AA153: 0 | AB153: 0 | AC153: -8.463229622 | AD153: -12.65757885 | AE153: 0 | AF153: 0 | AG153: -46374.02205 | AH153: -69397.44442 | AI153: 0 | AJ153: 0 | AK153: 579.6176533 | AL153: 867.5656056 | AM153: 0 | AN153: 0 | AO153: 45368.12975 | AP153: 67852.42811 | AQ153: 0 | AR153: 0 | AT153: 2083864.26 | AU153: 655446.9228 | AV153: 24326.81808
A154: ITA | B154: Transport services | C154: ITATransport services | D154: 73159.66771 | E154: 204955.2084 | F154: 97407.50613 | G154: 962.8167291 | H154: 18603.48701 | I154: -0.8655461144 | J154: -1.272979582 | K154: 0 | L154: 0 | M154: -0.6258257671 | N154: -0.9216065432 | O154: 0 | P154: 0 | Q154: -0.5637662999 | R154: -0.8276715431 | S154: 0 | T154: 0 | U154: -17.10098908 | V154: -25.1508378 | W154: 0 | X154: 0 | Y154: -15.81230253 | Z154: -23.28558881 | AA154: 0 | AB154: 0 | AC154: -18.6319296 | AD154: -27.35374201 | AE154: 0 | AF154: 0 | AG154: -18036.80613 | AH154: -26527.16655 | AI154: 0 | AJ154: 0 | AK154: 152.2434958 | AL154: 224.1975472 | AM154: 0 | AN154: 0 | AO154: 3695.188865 | AP154: 5424.94766 | AQ154: 0 | AR154: 0 | AT154: 2083864.26 | AU154: 655446.9228 | AV154: 24326.81808
A155: JPN | B155: Agriculture, Mining and Quarrying | C155: JPNAgriculture, Mining and Quarrying | D155: 37164.61765 | E155: 160184.3796 | F155: 73648.20401 | G155: 2447.845224 | H155: 3611.634411 | I155: -0.07749809678 | J155: -0.1159359814 | K155: 0 | L155: 0 | M155: -0.2153998705 | N155: -0.3223221194 | O155: 0 | P155: 0 | Q155: -0.02273167479 | R155: -0.03395940069 | S155: 0 | T155: 0 | U155: -5.230766591 | V155: -7.825147758 | W155: 0 | X155: 0 | Y155: -5.137987231 | Z155: -7.688430497 | AA155: 0 | AB155: 0 | AC155: -5.760395268 | AD155: -8.605594304 | AE155: 0 | AF155: 0 | AG155: -3852.680772 | AH155: -5763.552201 | AI155: 0 | AJ155: 0 | AK155: 125.7699769 | AL155: 188.2008815 | AM155: 0 | AN155: 0 | AO155: 208.4777523 | AP155: 311.4499742 | AQ155: 0 | AR155: 0 | AT155: 4971323.08 | AU155: 917124.4715 | AV155: 58389.068
A156: JPN | B156: Business, Trade, Personal, and Public Services | C156: JPNBusiness, Trade, Personal, and Public Services | D156: 2846662.167 | E156: 4216120.126 | F156: 2941909.891 | G156: 31408.47816 | H156: 109643.4748 | I156: -3.023295916 | J156: -4.528910781 | K156: 0 | L156: 0 | M156: -2.834853095 | N156: -4.246655152 | O156: 0 | P156: 0 | Q156: -0.6895783942 | R156: -1.032055265 | S156: 0 | T156: 0 | U156: -5.108433636 | V156: -7.652456395 | W156: 0 | X156: 0 | Y156: -5.270055648 | Z156: -7.894627418 | AA156: 0 | AB156: 0 | AC156: -5.756062333 | AD156: -8.614792008 | AE156: 0 | AF156: 0 | AG156: -150297.8076 | AH156: -225146.7869 | AI156: 0 | AJ156: 0 | AK156: 1655.244301 | AL156: 2479.582365 | AM156: 0 | AN156: 0 | AO156: 6324.292204 | AP156: 9465.2314 | AQ156: 0 | AR156: 0 | AT156: 4971323.08 | AU156: 917124.4715 | AV156: 58389.068
A157: JPN | B157: Hotel and restaurants and Other Personal Services | C157: JPNHotel and restaurants and Other Personal Services | D157: 422762.7658 | E157: 665674.8292 | F157: 359589.7364 | G157: 8566.470714 | H157: 6477.875935 | I157: -0.4633940196 | J157: -0.6885957265 | K157: 0 | L157: 0 | M157: -0.9366251479 | N157: -1.391857569 | O157: 0 | P157: 0 | Q157: -0.04434290917 | R157: -0.06597481947 | S157: 0 | T157: 0 | U157: -6.405891847 | V157: -9.519047645 | W157: 0 | X157: 0 | Y157: -6.38403731 | Z157: -9.486901638 | AA157: 0 | AB157: 0 | AC157: -6.264929514 | AD157: -9.321165467 | AE157: 0 | AF157: 0 | AG157: -23036.81385 | AH157: -34232.31828 | AI157: 0 | AJ157: 0 | AK157: 546.8866945 | AL157: 812.6926624 | AM157: 0 | AN157: 0 | AO157: 406.6796714 | AP157: 605.0712144 | AQ157: 0 | AR157: 0 | AT157: 4971323.08 | AU157: 917124.4715 | AV157: 58389.068
A158: JPN | B158: Light/Heavy Manufacturing, Utilities, and Construction | C158: JPNLight/Heavy Manufacturing, Utilities, and Construction | D158: 1613417.581 | E158: 3987089.768 | F158: 1380047.111 | G158: 13143.54609 | H158: 749261.2289 | I158: -1.89876341 | J158: -2.843469614 | K158: 0 | L158: 0 | M158: -1.631484619 | N158: -2.44445751 | O158: 0 | P158: 0 | Q158: -5.408348172 | R158: -8.096559601 | S158: 0 | T158: 0 | U158: -6.8393276 | V158: -10.24215029 | W158: 0 | X158: 0 | Y158: -7.247729366 | Z158: -10.85929115 | AA158: 0 | AB158: 0 | AC158: -6.606265372 | AD158: -9.889899766 | AE158: 0 | AF158: 0 | AG158: -94393.66364 | AH158: -141358.0612 | AI158: 0 | AJ158: 0 | AK158: 952.6086638 | AL158: 1427.295958 | AM158: 0 | AN158: 0 | AO158: 49601.2846 | AP158: 74255.52946 | AQ158: 0 | AR158: 0 | AT158: 4971323.08 | AU158: 917124.4715 | AV158: 58389.068
A159: JPN | B159: Transport services | C159: JPNTransport services | D159: 144273.0017 | E159: 367943.9143 | F159: 215721.5204 | G159: 2822.726956 | H159: 46223.95482 | I159: -0.4380910282 | J159: -0.6456714609 | K159: 0 | L159: 0 | M159: -0.4257997265 | N159: -0.6294972709 | O159: 0 | P159: 0 | Q159: -0.6616288094 | R159: -0.9695777011 | S159: 0 | T159: 0 | U159: -10.0950239 | V159: -14.87834356 | W159: 0 | X159: 0 | Y159: -8.807812162 | Z159: -13.02136515 | AA159: 0 | AB159: 0 | AC159: -13.10001945 | AD159: -19.1973 | AE159: 0 | AF159: 0 | AG159: -21778.92039 | AH159: -32098.41435 | AI159: 0 | AJ159: 0 | AK159: 248.6204918 | AL159: 367.5575896 | AM159: 0 | AN159: 0 | AO159: 6067.959722 | AP159: 8892.234367 | AQ159: 0 | AR159: 0 | AT159: 4971323.08 | AU159: 917124.4715 | AV159: 58389.068
A160: KAZ | B160: Agriculture, Mining and Quarrying | C160: KAZAgriculture, Mining and Quarrying | D160: 15399.66588 | E160: 59152.67311 | F160: 33589.86392 | G160: 5925.590232 | H160: 26849.79094 | I160: -1.592598406 | J160: -2.374494152 | K160: 0 | L160: 0 | M160: -3.683697621 | N160: -5.525753963 | O160: 0 | P160: 0 | Q160: -3.597467084 | R160: -5.354686813 | S160: 0 | T160: 0 | U160: -7.332152583 | V160: -10.9319169 | W160: 0 | X160: 0 | Y160: -6.789495102 | Z160: -10.18462516 | AA160: 0 | AB160: 0 | AC160: -7.49644752 | AD160: -11.15816427 | AE160: 0 | AF160: 0 | AG160: -2856.165899 | AH160: -4258.41769 | AI160: 0 | AJ160: 0 | AK160: 402.3176772 | AL160: 603.4991816 | AM160: 0 | AN160: 0 | AO160: 2421.125077 | AP160: 3603.748475 | AQ160: 0 | AR160: 0 | AT160: 179339.9949 | AU160: 67300.82639 | AV160: 10921.57171
A161: KAZ | B161: Business, Trade, Personal, and Public Services | C161: KAZBusiness, Trade, Personal, and Public Services | D161: 60955.72081 | E161: 104159.4596 | F161: 68895.92537 | G161: 2644.403335 | H161: 12291.15501 | I161: -3.370836117 | J161: -5.045143964 | K161: 0 | L161: 0 | M161: -1.772584575 | N161: -2.654140496 | O161: 0 | P161: 0 | Q161: -1.747474197 | R161: -2.610157848 | S161: 0 | T161: 0 | U161: -7.566195569 | V161: -11.32435532 | W161: 0 | X161: 0 | Y161: -7.320898593 | Z161: -10.96178636 | AA161: 0 | AB161: 0 | AC161: -7.954587444 | AD161: -11.88156534 | AE161: 0 | AF161: 0 | AG161: -6045.257319 | AH161: -9047.960926 | AI161: 0 | AJ161: 0 | AK161: 193.5940955 | AL161: 289.8738575 | AM161: 0 | AN161: 0 | AO161: 1176.064575 | AP161: 1756.657801 | AQ161: 0 | AR161: 0 | AT161: 179339.9949 | AU161: 67300.82639 | AV161: 10921.57171
A162: KAZ | B162: Hotel and restaurants and Other Personal Services | C162: KAZHotel and restaurants and Other Personal Services | D162: 8730.005021 | E162: 9611.588266 | F162: 6200.386576 | G162: 273.9227049 | H162: 303.1530271 | I162: -0.3713306327 | J162: -0.55137211 | K162: 0 | L162: 0 | M162: -0.2194170808 | N162: -0.3262899658 | O162: 0 | P162: 0 | Q162: -0.05430030227 | R162: -0.08047258577 | S162: 0 | T162: 0 | U162: -9.261375056 | V162: -13.75179815 | W162: 0 | X162: 0 | Y162: -8.748377657 | Z162: -13.00950608 | AA162: 0 | AB162: 0 | AC162: -10.02166595 | AD162: -14.85202364 | AE162: 0 | AF162: 0 | AG162: -665.9443376 | AH162: -988.8307137 | AI162: 0 | AJ162: 0 | AK162: 23.96379383 | AL162: 35.6359926 | AM162: 0 | AN162: 0 | AO162: 36.54455216 | AP162: 54.15871524 | AQ162: 0 | AR162: 0 | AT162: 179339.9949 | AU162: 67300.82639 | AV162: 10921.57171
A163: KAZ | B163: Light/Heavy Manufacturing, Utilities, and Construction | C163: KAZLight/Heavy Manufacturing, Utilities, and Construction | D163: 31201.7675 | E163: 70692.07175 | F163: 32483.2375 | G163: 1790.091053 | H163: 13578.80282 | I163: -1.788518122 | J163: -2.676668693 | K163: 0 | L163: 0 | M163: -1.467591933 | N163: -2.196919816 | O163: 0 | P163: 0 | Q163: -1.940203605 | R163: -2.898519809 | S163: 0 | T163: 0 | U163: -8.514663694 | V163: -12.74291463 | W163: 0 | X163: 0 | Y163: -8.953963413 | Z163: -13.40368478 | AA163: 0 | AB163: 0 | AC163: -7.994391448 | AD163: -11.94302593 | AE163: 0 | AF163: 0 | AG163: -3207.528307 | AH163: -4800.337497 | AI163: 0 | AJ163: 0 | AK163: 160.2841054 | AL163: 239.9381731 | AM163: 0 | AN163: 0 | AO163: 1305.77306 | AP163: 1950.727784 | AQ163: 0 | AR163: 0 | AT163: 179339.9949 | AU163: 67300.82639 | AV163: 10921.57171
A164: KAZ | B164: Transport services | C164: KAZTransport services | D164: 9219.322297 | E164: 22549.62565 | F164: 13474.72453 | G164: 287.5638778 | H164: 2927.032972 | I164: -1.121635025 | J164: -1.654099497 | K164: 0 | L164: 0 | M164: -0.257295077 | N164: -0.3818941263 | O164: 0 | P164: 0 | Q164: -0.7069194479 | R164: -1.041556445 | S164: 0 | T164: 0 | U164: -12.87256605 | V164: -18.98345232 | W164: 0 | X164: 0 | Y164: -9.771973188 | Z164: -14.50419964 | AA164: 0 | AB164: 0 | AC164: -13.51269267 | AD164: -19.90924453 | AE164: 0 | AF164: 0 | AG164: -2011.540196 | AH164: -2966.461952 | AI164: 0 | AJ164: 0 | AK164: 28.10066634 | AL164: 41.70884086 | AM164: 0 | AN164: 0 | AO164: 475.7626303 | AP164: 700.9760949 | AQ164: 0 | AR164: 0 | AT164: 179339.9949 | AU164: 67300.82639 | AV164: 10921.57171
A165: KGZ | B165: Agriculture, Mining and Quarrying | C165: KGZAgriculture, Mining and Quarrying | D165: 1429.289839 | E165: 3277.396031 | F165: 1027.238677 | G165: 1395.264935 | H165: 544.5701184 | I165: -1.001808763 | J165: -1.500276576 | K165: 0 | L165: 0 | M165: -3.2576275 | N165: -4.879308446 | O165: 0 | P165: 0 | Q165: -1.141143159 | R165: -1.706631077 | S165: 0 | T165: 0 | U165: -6.184711958 | V165: -9.262025673 | W165: 0 | X165: 0 | Y165: -6.327582321 | Z165: -9.477518797 | AA165: 0 | AB165: 0 | AC165: -5.204902583 | AD165: -7.78416663 | AE165: 0 | AF165: 0 | AG165: -81.07474629 | AH165: -121.414932 | AI165: 0 | AJ165: 0 | AK165: 88.2865498 | AL165: 132.2365151 | AM165: 0 | AN165: 0 | AO165: 30.2293871 | AP165: 45.20941219 | AQ165: 0 | AR165: 0 | AT165: 8092.836609 | AU165: 2649.044237 | AV165: 2710.148715
A166: KGZ | B166: Business, Trade, Personal, and Public Services | C166: KGZBusiness, Trade, Personal, and Public Services | D166: 2780.514974 | E166: 5155.126472 | F166: 3065.389385 | G166: 746.6270344 | H166: 510.6562736 | I166: -4.136197292 | J166: -6.169837845 | K166: 0 | L166: 0 | M166: -2.529126847 | N166: -3.764647655 | O166: 0 | P166: 0 | Q166: -1.594927306 | R166: -2.381537607 | S166: 0 | T166: 0 | U166: -8.557001567 | V166: -12.76421514 | W166: 0 | X166: 0 | Y166: -9.180365282 | Z166: -13.66512742 | AA166: 0 | AB166: 0 | AC166: -7.757798644 | AD166: -11.58390677 | AE166: 0 | AF166: 0 | AG166: -334.7356887 | AH166: -499.3148959 | AI166: 0 | AJ166: 0 | AK166: 68.54309872 | AL166: 102.02755 | AM166: 0 | AN166: 0 | AO166: 42.25032989 | AP166: 63.08798472 | AQ166: 0 | AR166: 0 | AT166: 8092.836609 | AU166: 2649.044237 | AV166: 2710.148715
A167: KGZ | B167: Hotel and restaurants and Other Personal Services | C167: KGZHotel and restaurants and Other Personal Services | D167: 370.0881762 | E167: 559.6185865 | F167: 248.1693837 | G167: 68.20014081 | H167: 3.420048322 | I167: -0.3282705232 | J167: -0.4907100529 | K167: 0 | L167: 0 | M167: -0.2154133848 | N167: -0.3219347502 | O167: 0 | P167: 0 | Q167: -0.01079397271 | R167: -0.01614791718 | S167: 0 | T167: 0 | U167: -8.388604129 | V167: -12.53957357 | W167: 0 | X167: 0 | Y167: -8.56013226 | Z167: -12.79309567 | AA167: 0 | AB167: 0 | AC167: -7.839265167 | AD167: -11.72763801 | AE167: 0 | AF167: 0 | AG167: -26.56639707 | AH167: -39.7123628 | AI167: 0 | AJ167: 0 | AK167: 5.838023079 | AL167: 8.724910494 | AM167: 0 | AN167: 0 | AO167: 0.2859371121 | AP167: 0.4277654696 | AQ167: 0 | AR167: 0 | AT167: 8092.836609 | AU167: 2649.044237 | AV167: 2710.148715
A168: KGZ | B168: Light/Heavy Manufacturing, Utilities, and Construction | C168: KGZLight/Heavy Manufacturing, Utilities, and Construction | D168: 2509.154813 | E168: 4991.3264 | F168: 1706.693953 | G168: 416.5244639 | H168: 1230.565894 | I168: -2.443033847 | J168: -3.652964177 | K168: 0 | L168: 0 | M168: -1.339440682 | N168: -1.997581918 | O168: 0 | P168: 0 | Q168: -3.01681581 | R168: -4.501696888 | S168: 0 | T168: 0 | U168: -9.077784086 | V168: -13.57362286 | W168: 0 | X168: 0 | Y168: -8.715173403 | Z168: -12.99741977 | AA168: 0 | AB168: 0 | AC168: -6.089339707 | AD168: -9.086521463 | AE168: 0 | AF168: 0 | AG168: -197.7107375 | AH168: -295.6284223 | AI168: 0 | AJ168: 0 | AK168: 36.30083442 | AL168: 54.13744068 | AM168: 0 | AN168: 0 | AO168: 79.91678537 | AP168: 119.251942 | AQ168: 0 | AR168: 0 | AT168: 8092.836609 | AU168: 2649.044237 | AV168: 2710.148715
A169: KGZ | B169: Transport services | C169: KGZTransport services | D169: 284.1821579 | E169: 725.442833 | F169: 294.213292 | G169: 83.53175796 | H169: 194.6429061 | I169: -2.19469516 | J169: -3.194454042 | K169: 0 | L169: 0 | M169: -0.8940416368 | N169: -1.306193839 | O169: 0 | P169: 0 | Q169: -3.707882688 | R169: -5.396943707 | S169: 0 | T169: 0 | U169: -47.30618559 | V169: -68.85577481 | W169: 0 | X169: 0 | Y169: -29.00675755 | Z169: -42.37884058 | AA169: 0 | AB169: 0 | AC169: -47.31661702 | AD169: -68.87087322 | AE169: 0 | AF169: 0 | AG169: -177.6130934 | AH169: -258.5219461 | AI169: 0 | AJ169: 0 | AK169: 24.22985793 | AL169: 35.39979554 | AM169: 0 | AN169: 0 | AO169: 98.22345266 | AP169: 142.9674263 | AQ169: 0 | AR169: 0 | AT169: 8092.836609 | AU169: 2649.044237 | AV169: 2710.148715
A170: KOR | B170: Agriculture, Mining and Quarrying | C170: KORAgriculture, Mining and Quarrying | D170: 15688.98572 | E170: 65769.72153 | F170: 34637.08166 | G170: 1571.137114 | H170: 926.7184037 | I170: -0.0978299392 | J170: -0.1459816638 | K170: 0 | L170: 0 | M170: -0.2133696092 | N170: -0.3185509187 | O170: 0 | P170: 0 | Q170: -0.005822053915 | R170: -0.008672633873 | S170: 0 | T170: 0 | U170: -4.147217702 | V170: -6.188470985 | W170: 0 | X170: 0 | Y170: -4.059584604 | Z170: -6.060771306 | AA170: 0 | AB170: 0 | AC170: -4.477564199 | AD170: -6.669858353 | AE170: 0 | AF170: 0 | AG170: -1584.281222 | AH170: -2364.061663 | AI170: 0 | AJ170: 0 | AK170: 63.78164214 | AL170: 95.22303 | AM170: 0 | AN170: 0 | AO170: 41.49441146 | AP170: 61.81080486 | AQ170: 0 | AR170: 0 | AT170: 1619423.701 | AU170: 712710.8761 | AV170: 29892.56173
A171: KOR | B171: Business, Trade, Personal, and Public Services | C171: KORBusiness, Trade, Personal, and Public Services | D171: 696854.4241 | E171: 1148460.753 | F171: 704683.2174 | G171: 13534.97288 | H171: 61567.60588 | I171: -1.894397489 | J171: -2.833893019 | K171: 0 | L171: 0 | M171: -1.844219989 | N171: -2.757710447 | O171: 0 | P171: 0 | Q171: -0.3709534555 | R171: -0.5540098177 | S171: 0 | T171: 0 | U171: -3.947330808 | V171: -5.904945128 | W171: 0 | X171: 0 | Y171: -4.073037961 | Z171: -6.09052033 | AA171: 0 | AB171: 0 | AC171: -4.294182931 | AD171: -6.413256077 | AE171: 0 | AF171: 0 | AG171: -30678.32193 | AH171: -45892.73522 | AI171: 0 | AJ171: 0 | AK171: 551.2845987 | AL171: 824.3502977 | AM171: 0 | AN171: 0 | AO171: 2643.825623 | AP171: 3948.488226 | AQ171: 0 | AR171: 0 | AT171: 1619423.701 | AU171: 712710.8761 | AV171: 29892.56173
A172: KOR | B172: Hotel and restaurants and Other Personal Services | C172: KORHotel and restaurants and Other Personal Services | D172: 129163.5358 | E172: 246952.3455 | F172: 113020.9916 | G172: 5496.838301 | H172: 6878.917086 | I172: -0.50987419 | J172: -0.7525611679 | K172: 0 | L172: 0 | M172: -1.206934823 | N172: -1.781750508 | O172: 0 | P172: 0 | Q172: -0.06346934849 | R172: -0.0936935569 | S172: 0 | T172: 0 | U172: -6.624151528 | V172: -9.777076988 | W172: 0 | X172: 0 | Y172: -6.563477175 | Z172: -9.689403738 | AA172: 0 | AB172: 0 | AC172: -6.575932578 | AD172: -9.707402516 | AE172: 0 | AF172: 0 | AG172: -8257.023479 | AH172: -12187.15392 | AI172: 0 | AJ172: 0 | AK172: 360.7837371 | AL172: 532.6108704 | AM172: 0 | AN172: 0 | AO172: 452.3529496 | AP172: 667.7641702 | AQ172: 0 | AR172: 0 | AT172: 1619423.701 | AU172: 712710.8761 | AV172: 29892.56173
A173: KOR | B173: Light/Heavy Manufacturing, Utilities, and Construction | C173: KORLight/Heavy Manufacturing, Utilities, and Construction | D173: 733312.3245 | E173: 2265154.165 | F173: 566276.4553 | G173: 7948.080755 | H173: 623653.4246 | I173: -1.741064362 | J173: -2.603427614 | K173: 0 | L173: 0 | M173: -1.095541152 | N173: -1.638804688 | O173: 0 | P173: 0 | Q173: -4.482189944 | R173: -6.696062353 | S173: 0 | T173: 0 | U173: -4.514531261 | V173: -6.750615084 | W173: 0 | X173: 0 | Y173: -4.120306729 | Z173: -6.163509215 | AA173: 0 | AB173: 0 | AC173: -5.122244818 | AD173: -7.652257293 | AE173: 0 | AF173: 0 | AG173: -28195.20894 | AH173: -42160.52382 | AI173: 0 | AJ173: 0 | AK173: 327.4853151 | AL173: 489.8807031 | AM173: 0 | AN173: 0 | AO173: 31945.05522 | AP173: 47723.56466 | AQ173: 0 | AR173: 0 | AT173: 1619423.701 | AU173: 712710.8761 | AV173: 29892.56173
A174: KOR | B174: Transport services | C174: KORTransport services | D174: 32848.47158 | E174: 131022.9082 | F174: 49721.28555 | G174: 1341.531859 | H174: 19684.21018 | I174: -0.2941655943 | J174: -0.4323681749 | K174: 0 | L174: 0 | M174: -0.5305672034 | N174: -0.7761245992 | O174: 0 | P174: 0 | Q174: -0.5816402435 | R174: -0.846196583 | S174: 0 | T174: 0 | U174: -8.687121001 | V174: -12.7684363 | W174: 0 | X174: 0 | Y174: -11.82231517 | Z174: -17.29392537 | AA174: 0 | AB174: 0 | AC174: -21.05958653 | AD174: -30.63844079 | AE174: 0 | AF174: 0 | AG174: -4763.787355 | AH174: -7001.8727 | AI174: 0 | AJ174: 0 | AK174: 158.6001288 | AL174: 232.0035249 | AM174: 0 | AN174: 0 | AO174: 4145.413275 | AP174: 6030.93508 | AQ174: 0 | AR174: 0 | AT174: 1619423.701 | AU174: 712710.8761 | AV174: 29892.56173
A175: LAO | B175: Agriculture, Mining and Quarrying | C175: LAOAgriculture, Mining and Quarrying | D175: 2091.402689 | E175: 4949.993617 | F175: 4013.460351 | G175: 2055.318027 | H175: 1675.216234 | I175: -0.6028743063 | J175: -0.8915045429 | K175: -0.5714191711 | L175: -0.8571287193 | M175: -0.9757974054 | N175: -1.442070098 | O175: -1.473958885 | P175: -2.210938227 | Q175: -0.8694281553 | R175: -1.286339079 | S175: -0.4162978768 | T175: -0.6244467911 | U175: -2.435645931 | V175: -3.601728237 | W175: -2.308565425 | X175: -3.462847987 | Y175: -1.891116163 | Z175: -2.794762577 | AA175: -2.856563725 | AB175: -4.284845393 | AC175: -3.20489109 | AD175: -4.741710547 | AE175: -1.534559639 | AF175: -2.30183937 | AG175: -108.2387653 | AH175: -160.0588215 | AI175: -102.5913775 | AJ175: -153.8870596 | AK175: 38.86845449 | AL175: 57.44126361 | AM175: 58.71147386 | AN175: 88.06720678 | AO175: 53.68885581 | AP175: 79.43390485 | AQ175: 25.70719219 | AR175: 38.5607868 | AT175: 17953.78642 | AU175: 6175.191761 | AV175: 3983.250445
A176: LAO | B176: Business, Trade, Personal, and Public Services | C176: LAOBusiness, Trade, Personal, and Public Services | D176: 6280.249197 | E176: 9215.029815 | F176: 6593.492764 | G176: 1059.708057 | H176: 858.5806953 | I176: -0.6092147315 | J176: -0.8910339432 | K176: -1.343371138 | L176: -2.015056667 | M176: -0.442402738 | N176: -0.6473309075 | O176: -0.8556282514 | P176: -1.283442346 | Q176: -0.327936423 | R176: -0.4800842755 | S176: -0.4002059986 | T176: -0.6003089838 | U176: -1.498170425 | V176: -2.1912154 | W176: -3.303595276 | X176: -4.955392818 | Y176: -1.662911545 | Z176: -2.433199316 | AA176: -3.216151201 | AB176: -4.824226686 | AC176: -2.358625472 | AD176: -3.452922338 | AE176: -2.878411777 | AF176: -4.317617564 | AG176: -109.3771117 | AH176: -159.974331 | AI176: -241.1859848 | AJ176: -361.7789702 | AK176: 17.62200903 | AL176: 25.78481125 | AM176: 34.08181613 | AN176: 51.12272296 | AO176: 20.25070298 | AP176: 29.64612462 | AQ176: 24.71348785 | AR176: 37.07023091 | AT176: 17953.78642 | AU176: 6175.191761 | AV176: 3983.250445
A177: LAO | B177: Hotel and restaurants and Other Personal Services | C177: LAOHotel and restaurants and Other Personal Services | D177: 1487.218916 | E177: 1574.249634 | F177: 756.1822189 | G177: 98.38224078 | H177: 72.73615106 | I177: -0.8359983388 | J177: -1.210497857 | K177: -0.1711849482 | L177: -0.2567774099 | M177: -0.5126530191 | N177: -0.7422769373 | O177: -0.09083184816 | P177: -0.1362477678 | Q177: -0.1776245025 | R177: -0.2576650694 | S177: -0.03570217167 | T177: -0.05355325492 | U177: -17.92607918 | V177: -25.95636789 | W177: -3.670671094 | X177: -5.506006375 | Y177: -20.75603471 | Z177: -30.05293112 | AA177: -3.677553672 | AB177: -5.516330329 | AC177: -15.08005783 | AD177: -21.8753837 | AE177: -3.031061626 | AF177: -4.54659222 | AG177: -150.0933562 | AH177: -217.3301998 | AI177: -30.73417997 | AJ177: -46.10126774 | AK177: 20.42025366 | AL177: 29.56674941 | AM177: 3.618059996 | AN177: 5.427089818 | AO177: 10.96865364 | AP177: 15.91131214 | AQ177: 2.204677563 | AR177: 3.307016185 | AT177: 17953.78642 | AU177: 6175.191761 | AV177: 3983.250445
A178: LAO | B178: Light/Heavy Manufacturing, Utilities, and Construction | C178: LAOLight/Heavy Manufacturing, Utilities, and Construction | D178: 4667.355516 | E178: 9773.529399 | F178: 4600.70296 | G178: 658.6597092 | H178: 3417.177144 | I178: -0.7888799877 | J178: -1.164633512 | K178: -0.4679974433 | L178: -0.7019961436 | M178: -0.4959927492 | N178: -0.7278339 | O178: -0.4130509092 | P178: -0.6195763477 | Q178: -1.963207247 | R178: -2.90516304 | S178: -0.5092025871 | T178: -0.7638038475 | U178: -2.780309232 | V178: -4.104605714 | W178: -1.649398682 | X178: -2.474097948 | Y178: -2.99952032 | Z178: -4.401581629 | AA178: -2.497928846 | AB178: -3.746893171 | AC178: -3.547718103 | AD178: -5.249929433 | AE178: -0.9201816257 | AF178: -1.380272379 | AG178: -141.6338281 | AH178: -209.0958133 | AI178: -84.0232614 | AJ178: -126.0348883 | AK178: 19.75663339 | AL178: 28.99144706 | AM178: 16.45285218 | AN178: 24.67927763 | AO178: 121.2318122 | AP178: 179.3993887 | AQ178: 31.4442362 | AR178: 47.16635226 | AT178: 17953.78642 | AU178: 6175.191761 | AV178: 3983.250445
A179: LAO | B179: Transport services | C179: LAOTransport services | D179: 170.803503 | E179: 608.8974108 | F179: 250.7660964 | G179: 111.1820944 | H179: 151.4815359 | I179: -0.5097526751 | J179: -0.7386690276 | K179: -0.03579618486 | L179: -0.05369429324 | M179: -0.458700611 | N179: -0.6660294906 | O179: -0.06816327299 | P179: -0.102244918 | Q179: -0.7714768826 | R179: -1.118038535 | S179: -0.0573704105 | T179: -0.08605563848 | U179: -32.96074741 | V179: -47.76254138 | W179: -2.314591105 | X179: -3.471887688 | Y179: -16.43357482 | Z179: -23.86141462 | AA179: -2.442042194 | AB179: -3.663063598 | AC179: -31.44949422 | AD179: -45.57718737 | AE179: -2.338722564 | AF179: -3.508084773 | AG179: -91.51990654 | AH179: -132.6190595 | AI179: -6.426770575 | AJ179: -9.640158725 | AK179: 18.27119413 | AL179: 26.52962265 | AM179: 2.715113875 | AN179: 4.072671152 | AO179: 47.64017689 | AP179: 69.04102348 | AQ179: 3.542732862 | AR179: 5.314100697 | AT179: 17953.78642 | AU179: 6175.191761 | AV179: 3983.250445
A180: LTU | B180: Agriculture, Mining and Quarrying | C180: LTUAgriculture, Mining and Quarrying | D180: 953.5851235 | E180: 4266.416729 | F180: 1612.236224 | G180: 145.6994476 | H180: 2453.375858 | I180: -0.2226274359 | J180: -0.3321285182 | K180: 0 | L180: 0 | M180: -0.507616895 | N180: -0.7584493661 | O180: 0 | P180: 0 | Q180: -0.3746195583 | R180: -0.5593085377 | S180: 0 | T180: 0 | U180: -6.609496323 | V180: -9.860429876 | W180: 0 | X180: 0 | Y180: -6.236251618 | Z180: -9.317816513 | AA180: 0 | AB180: 0 | AC180: -6.416401082 | AD180: -9.579713142 | AE180: 0 | AF180: 0 | AG180: -118.9477606 | AH180: -177.4531666 | AI180: 0 | AJ180: 0 | AK180: 9.0861843 | AL180: 13.5760074 | AM180: 0 | AN180: 0 | AO180: 151.35957 | AP180: 225.9804591 | AQ180: 0 | AR180: 0 | AT180: 53429.06643 | AU180: 40403.54185 | AV180: 1789.96885
A181: LTU | B181: Business, Trade, Personal, and Public Services | C181: LTUBusiness, Trade, Personal, and Public Services | D181: 20782.34143 | E181: 33540.54228 | F181: 24823.68391 | G181: 979.5800256 | H181: 6758.303959 | I181: -3.820573772 | J181: -5.705165593 | K181: 0 | L181: 0 | M181: -4.238539353 | N181: -6.337645625 | O181: 0 | P181: 0 | Q181: -0.9032556586 | R181: -1.343070233 | S181: 0 | T181: 0 | U181: -7.366831103 | V181: -11.00070143 | W181: 0 | X181: 0 | Y181: -7.745006119 | Z181: -11.58066496 | AA181: 0 | AB181: 0 | AC181: -5.616142436 | AD181: -8.350762777 | AE181: 0 | AF181: 0 | AG181: -2041.296899 | AH181: -3048.216715 | AI181: 0 | AJ181: 0 | AK181: 75.86853412 | AL181: 113.4418825 | AM181: 0 | AN181: 0 | AO181: 364.947278 | AP181: 542.6479438 | AQ181: 0 | AR181: 0 | AT181: 53429.06643 | AU181: 40403.54185 | AV181: 1789.96885
A182: LTU | B182: Hotel and restaurants and Other Personal Services | C182: LTUHotel and restaurants and Other Personal Services | D182: 1386.927165 | E182: 2377.071828 | F182: 1821.315082 | G182: 121.8368085 | H182: 597.1826934 | I182: -0.5868507554 | J182: -0.8679327476 | K182: 0 | L182: 0 | M182: -1.048047776 | N182: -1.550182735 | O182: 0 | P182: 0 | Q182: -0.2223605679 | R182: -0.3286284023 | S182: 0 | T182: 0 | U182: -15.42271878 | V182: -22.80968809 | W182: 0 | X182: 0 | Y182: -15.39742272 | Z182: -22.77455226 | AA182: 0 | AB182: 0 | AC182: -15.64644596 | AD182: -23.12400346 | AE182: 0 | AF182: 0 | AG182: -313.54888 | AH182: -463.7283643 | AI182: 0 | AJ182: 0 | AK182: 18.75972873 | AL182: 27.74778807 | AM182: 0 | AN182: 0 | AO182: 89.84154509 | AP182: 132.7775141 | AQ182: 0 | AR182: 0 | AT182: 53429.06643 | AU182: 40403.54185 | AV182: 1789.96885
A183: LTU | B183: Light/Heavy Manufacturing, Utilities, and Construction | C183: LTULight/Heavy Manufacturing, Utilities, and Construction | D183: 17673.88042 | E183: 39273.01769 | F183: 13675.49899 | G183: 429.6418187 | H183: 24664.86588 | I183: -2.227272347 | J183: -3.329698386 | K183: 0 | L183: 0 | M183: -1.887123154 | N183: -2.82370156 | O183: 0 | P183: 0 | Q183: -5.104939947 | R183: -7.590768848 | S183: 0 | T183: 0 | U183: -7.795581188 | V183: -11.65413567 | W183: 0 | X183: 0 | Y183: -7.862110862 | Z183: -11.76407309 | AA183: 0 | AB183: 0 | AC183: -8.697151246 | AD183: -12.93219224 | AE183: 0 | AF183: 0 | AG183: -1190.010822 | AH183: -1779.026763 | AI183: 0 | AJ183: 0 | AK183: 33.77891663 | AL183: 50.54337835 | AM183: 0 | AN183: 0 | AO183: 2062.576548 | AP183: 3066.939468 | AQ183: 0 | AR183: 0 | AT183: 53429.06643 | AU183: 40403.54185 | AV183: 1789.96885
A184: LTU | B184: Transport services | C184: LTUTransport services | D184: 2744.105112 | E184: 10997.50866 | F184: 5932.298017 | G184: 113.2107217 | H184: 7547.15163 | I184: -1.745204866 | J184: -2.557198562 | K184: 0 | L184: 0 | M184: -0.9705847111 | N184: -1.420894467 | O184: 0 | P184: 0 | Q184: -2.576043621 | R184: -3.774122027 | S184: 0 | T184: 0 | U184: -14.0812695 | V184: -20.63287974 | W184: 0 | X184: 0 | Y184: -15.34586429 | Z184: -22.46568838 | AA184: 0 | AB184: 0 | AC184: -14.34284419 | AD184: -21.01348119 | AE184: 0 | AF184: 0 | AG184: -932.4466671 | AH184: -1366.287318 | AI184: 0 | AJ184: 0 | AK184: 17.373164 | AL184: 25.43356835 | AM184: 0 | AN184: 0 | AO184: 1040.812862 | AP184: 1524.878973 | AQ184: 0 | AR184: 0 | AT184: 53429.06643 | AU184: 40403.54185 | AV184: 1789.96885
A185: LUX | B185: Agriculture, Mining and Quarrying | C185: LUXAgriculture, Mining and Quarrying | D185: 110.7700539 | E185: 815.3532613 | F185: 265.7639179 | G185: 4.995326622 | H185: 413.9595118 | I185: -0.03140195143 | J185: -0.04688271755 | K185: 0 | L185: 0 | M185: -0.07203667631 | N185: -0.1076141437 | O185: 0 | P185: 0 | Q185: -0.01900525194 | R185: -0.02839488283 | S185: 0 | T185: 0 | U185: -7.431811975 | V185: -11.09560157 | W185: 0 | X185: 0 | Y185: -7.211901369 | Z185: -10.77371459 | AA185: 0 | AB185: 0 | AC185: -7.170457569 | AD185: -10.71305464 | AE185: 0 | AF185: 0 | AG185: -22.25937561 | AH185: -33.23296711 | AI185: 0 | AJ185: 0 | AK185: 0.3602580433 | AL185: 0.5381822543 | AM185: 0 | AN185: 0 | AO185: 28.50109705 | AP185: 42.58219326 | AQ185: 0 | AR185: 0 | AT185: 70885.32588 | AU185: 149964.3211 | AV185: 500.1036441
A186: LUX | B186: Business, Trade, Personal, and Public Services | C186: LUXBusiness, Trade, Personal, and Public Services | D186: 61054.40726 | E186: 214227.8345 | F186: 49628.16553 | G186: 317.503414 | H186: 137651.8456 | I186: -4.843233719 | J186: -7.217394686 | K186: 0 | L186: 0 | M186: -3.95948555 | N186: -5.904912174 | O186: 0 | P186: 0 | Q186: -4.783828186 | R186: -7.113969581 | S186: 0 | T186: 0 | U186: -6.138203725 | V186: -9.147161073 | W186: 0 | X186: 0 | Y186: -6.236635535 | Z186: -9.3009015 | AA186: 0 | AB186: 0 | AC186: -5.42781004 | AD186: -8.071626743 | AE186: 0 | AF186: 0 | AG186: -3433.142005 | AH186: -5116.073743 | AI186: 0 | AJ186: 0 | AK186: 19.80153152 | AL186: 29.53068096 | AM186: 0 | AN186: 0 | AO186: 7174.035462 | AP186: 10668.41619 | AQ186: 0 | AR186: 0 | AT186: 70885.32588 | AU186: 149964.3211 | AV186: 500.1036441
A187: LUX | B187: Hotel and restaurants and Other Personal Services | C187: LUXHotel and restaurants and Other Personal Services | D187: 2762.921236 | E187: 5423.188152 | F187: 2962.434826 | G187: 50.6612272 | H187: 1479.254429 | I187: -1.360547671 | J187: -1.984668074 | K187: 0 | L187: 0 | M187: -2.179988649 | N187: -3.188368934 | O187: 0 | P187: 0 | Q187: -0.4111085315 | R187: -0.5981828093 | S187: 0 | T187: 0 | U187: -28.88677455 | V187: -42.13792758 | W187: 0 | X187: 0 | Y187: -21.51981475 | Z187: -31.47406701 | AA187: 0 | AB187: 0 | AC187: -43.40549531 | AD187: -63.15709633 | AE187: 0 | AF187: 0 | AG187: -964.4286503 | AH187: -1406.838432 | AI187: 0 | AJ187: 0 | AK187: 10.90220268 | AL187: 15.94514923 | AM187: 0 | AN187: 0 | AO187: 616.5161183 | AP187: 897.060789 | AQ187: 0 | AR187: 0 | AT187: 70885.32588 | AU187: 149964.3211 | AV187: 500.1036441
A188: LUX | B188: Light/Heavy Manufacturing, Utilities, and Construction | C188: LUXLight/Heavy Manufacturing, Utilities, and Construction | D188: 10208.32912 | E188: 25126.86931 | F188: 7473.536302 | G188: 95.48051267 | H188: 13058.84822 | I188: -1.243933041 | J188: -1.859489506 | K188: 0 | L188: 0 | M188: -2.059760258 | N188: -3.079787673 | O188: 0 | P188: 0 | Q188: -0.7416213908 | R188: -1.107800156 | S188: 0 | T188: 0 | U188: -10.46899394 | V188: -15.64954362 | W188: 0 | X188: 0 | Y188: -10.78852157 | Z188: -16.13117624 | AA188: 0 | AB188: 0 | AC188: -8.86969077 | AD188: -13.2491389 | AE188: 0 | AF188: 0 | AG188: -881.7659896 | AH188: -1318.105196 | AI188: 0 | AJ188: 0 | AK188: 10.30093611 | AL188: 15.40213038 | AM188: 0 | AN188: 0 | AO188: 1112.167484 | AP188: 1661.304983 | AQ188: 0 | AR188: 0 | AT188: 70885.32588 | AU188: 149964.3211 | AV188: 500.1036441
A189: LUX | B189: Transport services | C189: LUXTransport services | D189: 2627.599844 | E189: 7107.940388 | F189: 2567.702181 | G189: 31.46314384 | H189: 3578.137363 | I189: -1.531107066 | J189: -2.229424903 | K189: 0 | L189: 0 | M189: -3.284431126 | N189: -4.774558675 | O189: 0 | P189: 0 | Q189: -1.03487311 | R189: -1.505232235 | S189: 0 | T189: 0 | U189: -37.50550384 | V189: -54.61127188 | W189: 0 | X189: 0 | Y189: -52.20571467 | Z189: -75.89114775 | AA189: 0 | AB189: 0 | AC189: -45.17115535 | AD189: -65.70185124 | AE189: 0 | AF189: 0 | AG189: -1085.330233 | AH189: -1580.335108 | AI189: 0 | AJ189: 0 | AK189: 16.42555975 | AL189: 23.87774192 | AM189: 0 | AN189: 0 | AO189: 1551.940433 | AP189: 2257.311302 | AQ189: 0 | AR189: 0 | AT189: 70885.32588 | AU189: 149964.3211 | AV189: 500.1036441
A190: LVA | B190: Agriculture, Mining and Quarrying | C190: LVAAgriculture, Mining and Quarrying | D190: 910.7546329 | E190: 3769.34671 | F190: 1191.994844 | G190: 70.89540941 | H190: 1324.610067 | I190: -0.246797315 | J190: -0.3684266245 | K190: 0 | L190: 0 | M190: -0.3766887164 | N190: -0.5627608751 | O190: 0 | P190: 0 | Q190: -0.5299629553 | R190: -0.7909631841 | S190: 0 | T190: 0 | U190: -6.529183349 | V190: -9.746965775 | W190: 0 | X190: 0 | Y190: -6.245719991 | Z190: -9.330905584 | AA190: 0 | AB190: 0 | AC190: -6.619751262 | AD190: -9.879897234 | AE190: 0 | AF190: 0 | AG190: -84.92105371 | AH190: -126.7727616 | AI190: 0 | AJ190: 0 | AK190: 4.427928981 | AL190: 6.615184049 | AM190: 0 | AN190: 0 | AO190: 111.7916725 | AP190: 166.8476944 | AQ190: 0 | AR190: 0 | AT190: 34409.22918 | AU190: 21094.24279 | AV190: 1175.487555
A191: LVA | B191: Business, Trade, Personal, and Public Services | C191: LVABusiness, Trade, Personal, and Public Services | D191: 16718.89995 | E191: 29196.84508 | F191: 19224.86812 | G191: 660.852498 | H191: 3308.785349 | I191: -3.486959497 | J191: -5.20107097 | K191: 0 | L191: 0 | M191: -3.174495143 | N191: -4.737707958 | O191: 0 | P191: 0 | Q191: -1.182795076 | R191: -1.758224837 | S191: 0 | T191: 0 | U191: -5.719740749 | V191: -8.531437659 | W191: 0 | X191: 0 | Y191: -5.646614571 | Z191: -8.427170175 | AA191: 0 | AB191: 0 | AC191: -5.914596514 | AD191: -8.792047504 | AE191: 0 | AF191: 0 | AG191: -1199.835885 | AH191: -1789.64843 | AI191: 0 | AJ191: 0 | AK191: 37.31579533 | AL191: 55.69116742 | AM191: 0 | AN191: 0 | AO191: 249.5016649 | AP191: 370.8842159 | AQ191: 0 | AR191: 0 | AT191: 34409.22918 | AU191: 21094.24279 | AV191: 1175.487555
A192: LVA | B192: Hotel and restaurants and Other Personal Services | C192: LVAHotel and restaurants and Other Personal Services | D192: 2741.878788 | E192: 3552.27765 | F192: 1196.654624 | G192: 114.6218059 | H192: 264.0053435 | I192: -0.2830921372 | J192: -0.4197309056 | K192: 0 | L192: 0 | M192: -0.6649070474 | N192: -0.9886911472 | O192: 0 | P192: 0 | Q192: -0.1051590549 | R192: -0.1565488186 | S192: 0 | T192: 0 | U192: -7.460222747 | V192: -11.06101385 | W192: 0 | X192: 0 | Y192: -6.818858887 | Z192: -10.1393803 | AA192: 0 | AB192: 0 | AC192: -6.590497001 | AD192: -9.811180979 | AE192: 0 | AF192: 0 | AG192: -97.40982229 | AH192: -144.4261692 | AI192: 0 | AJ192: 0 | AK192: 7.815899593 | AL192: 11.62194139 | AM192: 0 | AN192: 0 | AO192: 22.18250636 | AP192: 33.02278788 | AQ192: 0 | AR192: 0 | AT192: 34409.22918 | AU192: 21094.24279 | AV192: 1175.487555
A193: LVA | B193: Light/Heavy Manufacturing, Utilities, and Construction | C193: LVALight/Heavy Manufacturing, Utilities, and Construction | D193: 10129.01602 | E193: 24804.72759 | F193: 7171.515929 | G193: 279.0306461 | H193: 8309.269256 | I193: -1.607856782 | J193: -2.403675923 | K193: 0 | L193: 0 | M193: -1.701490858 | N193: -2.546156964 | O193: 0 | P193: 0 | Q193: -3.576780065 | R193: -5.345323032 | S193: 0 | T193: 0 | U193: -7.070159403 | V193: -10.56958065 | W193: 0 | X193: 0 | Y193: -7.167962572 | Z193: -10.72633316 | AA193: 0 | AB193: 0 | AC193: -7.122190955 | AD193: -10.64376636 | AE193: 0 | AF193: 0 | AG193: -553.2511249 | AH193: -827.0863572 | AI193: 0 | AJ193: 0 | AK193: 20.00081328 | AL193: 29.92975824 | AM193: 0 | AN193: 0 | AO193: 754.4946709 | AP193: 1127.555418 | AQ193: 0 | AR193: 0 | AT193: 34409.22918 | AU193: 21094.24279 | AV193: 1175.487555
A194: LVA | B194: Transport services | C194: LVATransport services | D194: 1594.302093 | E194: 8730.3447 | F194: 2749.964717 | G194: 50.087136 | H194: 3338.994315 | I194: -1.345240632 | J194: -1.969954528 | K194: 0 | L194: 0 | M194: -0.6921999521 | N194: -1.012973287 | O194: 0 | P194: 0 | Q194: -3.578601674 | R194: -5.233154587 | S194: 0 | T194: 0 | U194: -15.42643827 | V194: -22.5902944 | W194: 0 | X194: 0 | Y194: -16.24513704 | Z194: -23.77331841 | AA194: 0 | AB194: 0 | AC194: -17.73298679 | AD194: -25.93176598 | AE194: 0 | AF194: 0 | AG194: -462.8869321 | AH194: -677.8461681 | AI194: 0 | AJ194: 0 | AK194: 8.136724291 | AL194: 11.90737493 | AM194: 0 | AN194: 0 | AO194: 754.8789256 | AP194: 1103.894334 | AQ194: 0 | AR194: 0 | AT194: 34409.22918 | AU194: 21094.24279 | AV194: 1175.487555
A195: MAL | B195: Agriculture, Mining and Quarrying | C195: MALAgriculture, Mining and Quarrying | D195: 3614.180939 | E195: 80632.32903 | F195: 57805.84271 | G195: 1939.417721 | H195: 14465.43679 | I195: -1.027101312 | J195: -1.522282691 | K195: 0 | L195: 0 | M195: -0.6246397436 | N195: -0.929515235 | O195: 0 | P195: 0 | Q195: -0.3811742874 | R195: -0.5638226755 | S195: 0 | T195: 0 | U195: -6.197445544 | V195: -9.185329597 | W195: 0 | X195: 0 | Y195: -5.750603595 | Z195: -8.5573704 | AA195: 0 | AB195: 0 | AC195: -6.444323715 | AD195: -9.532268989 | AE195: 0 | AF195: 0 | AG195: -3682.999845 | AH195: -5458.630858 | AI195: 0 | AJ195: 0 | AK195: 111.5282257 | AL195: 165.9631587 | AM195: 0 | AN195: 0 | AO195: 939.7909632 | AP195: 1390.113323 | AQ195: 0 | AR195: 0 | AT195: 358581.9434 | AU195: 246551.5105 | AV195: 17854.8078
A196: MAL | B196: Business, Trade, Personal, and Public Services | C196: MALBusiness, Trade, Personal, and Public Services | D196: 140366.505 | E196: 299113.8058 | F196: 160637.5678 | G196: 10219.43189 | H196: 25841.81897 | I196: -2.995223925 | J196: -4.449117123 | K196: 0 | L196: 0 | M196: -3.868226726 | N196: -5.741132794 | O196: 0 | P196: 0 | Q196: -0.6529372904 | R196: -0.9703329358 | S196: 0 | T196: 0 | U196: -6.503592903 | V196: -9.66046188 | W196: 0 | X196: 0 | Y196: -6.758344807 | Z196: -10.03057932 | AA196: 0 | AB196: 0 | AC196: -6.179220541 | AD196: -9.182966415 | AE196: 0 | AF196: 0 | AG196: -10740.33216 | AH196: -15953.73065 | AI196: 0 | AJ196: 0 | AK196: 690.6644472 | AL196: 1025.068226 | AM196: 0 | AN196: 0 | AO196: 1609.826752 | AP196: 2392.37051 | AQ196: 0 | AR196: 0 | AT196: 358581.9434 | AU196: 246551.5105 | AV196: 17854.8078
A197: MAL | B197: Hotel and restaurants and Other Personal Services | C197: MALHotel and restaurants and Other Personal Services | D197: 30393.21035 | E197: 42351.40074 | F197: 18168.80008 | G197: 1147.811899 | H197: 1669.014977 | I197: -1.375817582 | J197: -2.004588544 | K197: 0 | L197: 0 | M197: -1.802277074 | N197: -2.624954867 | O197: 0 | P197: 0 | Q197: -0.3326319993 | R197: -0.4832011551 | S197: 0 | T197: 0 | U197: -26.41227321 | V197: -38.48311071 | W197: 0 | X197: 0 | Y197: -28.035352 | Z197: -40.83253055 | AA197: 0 | AB197: 0 | AC197: -48.74040069 | AD197: -70.80322387 | AE197: 0 | AF197: 0 | AG197: -4933.433423 | AH197: -7188.092561 | AI197: 0 | AJ197: 0 | AK197: 321.7931076 | AL197: 468.6806464 | AM197: 0 | AN197: 0 | AO197: 820.1092187 | AP197: 1191.339747 | AQ197: 0 | AR197: 0 | AT197: 358581.9434 | AU197: 246551.5105 | AV197: 17854.8078
A198: MAL | B198: Light/Heavy Manufacturing, Utilities, and Construction | C198: =A198&B198 -> MALLight/Heavy Manufacturing, Utilities, and Construction | D198: 169354.9251 | E198: 449066.4429 | F198: 99911.75331 | G198: 3898.093367 | H198: 195202.2051 | I198: -1.625856651 | J198: -2.42060836 | K198: 0 | L198: 0 | M198: -1.286142216 | N198: -1.914180058 | O198: 0 | P198: 0 | Q198: -3.979485253 | R198: -5.927983395 | S198: 0 | T198: 0 | U198: -5.675927558 | V198: -8.450436076 | W198: 0 | X198: 0 | Y198: -5.891039493 | Z198: -8.767700941 | AA198: 0 | AB198: 0 | AC198: -4.985715392 | AD198: -7.426899757 | AE198: 0 | AF198: 0 | AG198: -5830.028377 | AH198: -8679.8645 | AI198: 0 | AJ198: 0 | AK198: 229.6382207 | AL198: 341.7731702 | AM198: 0 | AN198: 0 | AO198: 9811.481002 | AP198: 14615.5326 | AQ198: 0 | AR198: 0 | AT198: 358581.9434 | AU198: 246551.5105 | AV198: 17854.8078
A199: MAL | B199: Transport services | C199: MALTransport services | D199: 10479.41775 | E199: 36871.23316 | F199: 12271.77629 | G199: 650.0528496 | H199: 7381.455062 | I199: -0.5944999152 | J199: -0.8685737644 | K199: 0 | L199: 0 | M199: -0.5887066566 | N199: -0.8605550226 | O199: 0 | P199: 0 | Q199: -0.6591817307 | R199: -0.9610492783 | S199: 0 | T199: 0 | U199: -16.89723093 | V199: -24.68712123 | W199: 0 | X199: 0 | Y199: -16.16983014 | Z199: -23.63660813 | AA199: 0 | AB199: 0 | AC199: -21.83979136 | AD199: -31.84116723 | AE199: 0 | AF199: 0 | AG199: -2131.76935 | AH199: -3114.548685 | AI199: 0 | AJ199: 0 | AK199: 105.1124421 | AL199: 153.6504453 | AM199: 0 | AN199: 0 | AO199: 1625.222514 | AP199: 2369.481512 | AQ199: 0 | AR199: 0 | AT199: 358581.9434 | AU199: 246551.5105 | AV199: 17854.8078
A200: MDV | B200: Agriculture, Mining and Quarrying | C200: MDVAgriculture, Mining and Quarrying | D200: 39.26690316 | E200: 272.4909365 | F200: 107.3149477 | G200: 89.18217147 | H200: 39.46030949 | I200: -0.6726776195 | J200: -0.9808299577 | K200: 0 | L200: 0 | M200: -13.7506853 | N200: -20.04984809 | O200: 0 | P200: 0 | Q200: -0.3003838383 | R200: -0.4379891034 | S200: 0 | T200: 0 | U200: -26.55716617 | V200: -38.72295348 | W200: 0 | X200: 0 | Y200: -26.55672874 | Z200: -38.72231568 | AA200: 0 | AB200: 0 | AC200: -26.55652344 | AD200: -38.72201632 | AE200: 0 | AF200: 0 | AG200: -35.83661194 | AH200: -52.25329571 | AI200: 0 | AJ200: 0 | AK200: 23.68386881 | AL200: 34.53340407 | AM200: 0 | AN200: 0 | AO200: 11.05585035 | AP200: 16.12051437 | AQ200: 0 | AR200: 0 | AT200: 5327.45715 | AU200: 3680.574298 | AV200: 172.2377342
A201: MDV | B201: Business, Trade, Personal, and Public Services | C201: MDVBusiness, Trade, Personal, and Public Services | D201: 1138.542273 | E201: 2156.438572 | F201: 1393.98833 | G201: 44.7171353 | H201: 198.0826226 | I201: -6.429801165 | J201: -9.42950661 | K201: 0 | L201: 0 | M201: -6.523467235 | N201: -9.532579782 | O201: 0 | P201: 0 | Q201: -1.618728826 | R201: -2.361355482 | S201: 0 | T201: 0 | U201: -19.54219649 | V201: -28.65924874 | W201: 0 | X201: 0 | Y201: -25.12654578 | Z201: -36.71679395 | AA201: 0 | AB201: 0 | AC201: -28.50905804 | AD201: -41.58820144 | AE201: 0 | AF201: 0 | AG201: -342.5449019 | AH201: -502.3529241 | AI201: 0 | AJ201: 0 | AK201: 11.23587216 | AL201: 16.41869943 | AM201: 0 | AN201: 0 | AO201: 59.57851713 | AP201: 86.91144296 | AQ201: 0 | AR201: 0 | AT201: 5327.45715 | AU201: 3680.574298 | AV201: 172.2377342
... 118 more rows

Sheet datasheet2 (hidden)
A1: mriocode | B1: country | C1: >1000 cases | D1: ISO | E1: Global Spillovers (excluding tourism) | F1: International tourism demand decline | G1: Domestic demand decline | H1: Global Spillovers (excluding tourism) | I1: International tourism demand decline | J1: Domestic demand decline | K1: gdp_curr (in $ Mn) | L1: d_emp_sc | M1: d_emp_lc | N1: d_emp_sc_add | O1: d_emp_lc_add
A2: arm | B2: Armenia | C2: 1 | D2: ARM | E2: -1.664521879 | F2: -5.558752976 | G2: -6.956866784 | H2: -2.478004688 | I2: -8.045890851 | J2: -10.43530001 | K2: 12433.08992 | P2: Armenia has more than 1,000 COVID-19 cases as of 31 May 2020. | Q2: =IF(C2=1,B2&$Y$2,B2&$Y$3) -> Armenia has more than 1,000 COVID-19 cases as of 31 May 2020. | X2: 1 | Y2: has more than 1,000 COVID-19 cases as of 31 May 2020.
A3: aze | B3: Azerbaijan | C3: 1 | D3: AZE | E3: -1.97229629 | F3: -3.36872242 | G3: -6.041925026 | H3: -2.934729165 | I3: -4.87598082 | J3: -9.062887151 | K3: 46939.52941 | P3: Azerbaijan has more than 1,000 COVID-19 cases as of 31 May 2020. | Q3: =IF(C3=1,B3&$Y$2,B3&$Y$3) -> Azerbaijan has more than 1,000 COVID-19 cases as of 31 May 2020. | X3: 0 | Y3: has less than 1,000 COVID-19 cases as of 31 May 2020.
A4: geo | B4: Georgia | C4: 0 | D4: GEO | E4: -1.911740183 | F4: -11.16886521 | G4: 0 | H4: -2.844866411 | I4: -16.16612066 | J4: 0 | K4: 17599.66063 | P4: Georgia has less than 1,000 COVID-19 cases as of 31 May 2020. | Q4: Georgia has less than 1,000 COVID-19 cases as of 31 May 2020.
A5: kaz | B5: Kazakhstan | C5: 1 | D5: KAZ | E5: -2.556688144 | F5: -0.8228592012 | G5: -4.865370957 | H5: -3.807607321 | I5: -1.191051102 | J5: -7.303119993 | K5: 179339.9949 | L5: -808.2603007 | M5: -1210.655989 | P5: Kazakhstan has more than 1,000 COVID-19 cases as of 31 May 2020. | Q5: Kazakhstan has more than 1,000 COVID-19 cases as of 31 May 2020.
A6: kgz | B6: Kyrgyz Republic | C6: 1 | D6: KGZ | E6: -1.187965589 | F6: -2.512521827 | G6: -6.40351817 | H6: -1.769670365 | I6: -3.636707138 | J6: -9.60186519 | K6: 8092.836609 | L6: -223.1983324 | M6: -332.5261649 | P6: Kyrgyz Republic has more than 1,000 COVID-19 cases as of 31 May 2020. | Q6: Kyrgyz Republic has more than 1,000 COVID-19 cases as of 31 May 2020.
A7: tjk | B7: Tajikistan | C7: 1 | D7: TJK | E7: -0.8688559805 | F7: -1.269321305 | G7: -4.851411306 | H7: -1.297269455 | I7: -1.837250052 | J7: -7.277116918 | K7: 7522.94781 | P7: Tajikistan has more than 1,000 COVID-19 cases as of 31 May 2020. | Q7: Tajikistan has more than 1,000 COVID-19 cases as of 31 May 2020.
A8: tkm | B8: Turkmenistan | C8: 0 | D8: TKM | E8: -1.229334459 | F8: 0 | G8: 0 | H8: -1.832204584 | I8: 0 | J8: 0 | K8: 40761.14286 | P8: Turkmenistan has less than 1,000 COVID-19 cases as of 31 May 2020. | Q8: Turkmenistan has less than 1,000 COVID-19 cases as of 31 May 2020.
A9: uzb | B9: Uzbekistan | C9: 1 | D9: UZB | E9: -1.442056507 | F9: -1.453858713 | G9: -7.163212659 | H9: -2.147875292 | I9: -2.104354773 | J9: -10.7448189 | K9: 50499.92156 | P9: Uzbekistan has more than 1,000 COVID-19 cases as of 31 May 2020. | Q9: Uzbekistan has more than 1,000 COVID-19 cases as of 31 May 2020.
A10: chn | B10: People's Republic of China | C10: 1 | D10: CHN | E10: -0.9670793564 | F10: -0.1261377738 | G10: -3.967767389 | H10: -1.444226044 | I10: -0.1825751222 | J10: -5.954829791 | K10: 13608151.86 | L10: -50382.64724 | M10: -75441.46907 | P10: People's Republic of China has more than 1,000 COVID-19 cases as of 31 May 2020. | Q10: People's Republic of China has more than 1,000 COVID-19 cases as of 31 May 2020.
A11: hkg | B11: Hong Kong, China | C11: 1 | D11: HKG | E11: -1.92546183 | F11: -4.241727005 | G11: -3.075063839 | H11: -2.832116739 | I11: -6.139586854 | J11: -4.612595886 | K11: 362682.0182 | L11: -436.1024878 | M11: -640.6754209 | P11: Hong Kong, China has more than 1,000 COVID-19 cases as of 31 May 2020. | Q11: Hong Kong, China has more than 1,000 COVID-19 cases as of 31 May 2020.
A12: kor | B12: Republic of Korea | C12: 1 | D12: KOR | E12: -1.743699951 | F12: -0.5327644001 | G12: -2.260867224 | H12: -2.605794661 | I12: -0.7711361337 | J12: -3.391300845 | K12: 1619423.701 | L12: -1461.935382 | M12: -2174.068367 | P12: Republic of Korea has more than 1,000 COVID-19 cases as of 31 May 2020. | Q12: Republic of Korea has more than 1,000 COVID-19 cases as of 31 May 2020.
A13: mon | B13: Mongolia | C13: 0 | D13: MNG | E13: -2.525031087 | F13: -1.530064846 | G13: -1.765015258 | H13: -3.779324563 | I13: -2.214535207 | J13: -2.647522762 | K13: 13066.74914 | L13: -51.37200084 | M13: -75.28367888 | N13: -80.35128401 | O13: -118.7526013 | P13: Mongolia has less than 1,000 COVID-19 cases as of 31 May 2020. | Q13: Mongolia has less than 1,000 COVID-19 cases as of 31 May 2020.
A14: tap | B14: Taipei,China | C14: 0 | D14: TWN | E14: -2.461905329 | F14: -1.65776477 | G14: -1.016899579 | H14: -3.675318114 | I14: -2.399498725 | J14: -1.525349364 | K14: 608186 | L14: -572.7332679 | M14: -841.4793125 | N14: -713.1948195 | O14: -1052.171636 | P14: Taipei,China has less than 1,000 COVID-19 cases as of 31 May 2020. | Q14: Taipei,China has less than 1,000 COVID-19 cases as of 31 May 2020.
A15: brn | B15: Brunei Darussalam | C15: 0 | D15: BRN | E15: -2.924469513 | F15: -0.6135630827 | G15: -2.144753452 | H15: -4.342888668 | I15: -0.8879541493 | J15: -3.217130041 | K15: 13567.35118 | L15: -3.624841138 | M15: -5.312446487 | N15: -9.31014078 | O15: -13.84039571 | P15: Brunei Darussalam has less than 1,000 COVID-19 cases as of 31 May 2020. | Q15: Brunei Darussalam has less than 1,000 COVID-19 cases as of 31 May 2020.
A16: cam | B16: Cambodia | C16: 0 | D16: KHM | E16: -1.790366947 | F16: -9.269203595 | G16: -2.731859216 | H16: -2.673380965 | I16: -13.41662903 | J16: -4.09778909 | K16: 24542.47406 | L16: -632.8350551 | M16: -921.0267738 | N16: -922.4629846 | O16: -1355.468691 | P16: Cambodia has less than 1,000 COVID-19 cases as of 31 May 2020. | Q16: Cambodia has less than 1,000 COVID-19 cases as of 31 May 2020.
A17: idn | B17: Indonesia | C17: 1 | D17: IDN | E17: -1.0038808 | F17: -0.7341195999 | G17: -4.03204421 | H17: -1.494644826 | I17: -1.062586045 | J17: -6.048066207 | K17: 1042173.301 | L17: -7840.494175 | M17: -11669.53032 | P17: Indonesia has more than 1,000 COVID-19 cases as of 31 May 2020. | Q17: Indonesia has more than 1,000 COVID-19 cases as of 31 May 2020.
A18: lao | B18: Lao People’s Dem. Rep. | C18: 0 | D18: LAO | E18: -1.425911943 | F18: -1.920808096 | G18: -2.589768885 | H18: -2.116233229 | I18: -2.780105654 | J18: -3.884653234 | K18: 17953.78642 | L18: -114.9385356 | M18: -168.3138806 | N18: -230.5178424 | O18: -341.6828352 | P18: Lao People’s Dem. Rep. has less than 1,000 COVID-19 cases as of 31 May 2020. | Q18: Lao People’s Dem. Rep. has less than 1,000 COVID-19 cases as of 31 May 2020.
A19: mal | B19: Malaysia | C19: 1 | D19: MYS | E19: -1.759426685 | F19: -2.659974178 | G19: -3.199098522 | H19: -2.616418037 | I19: -3.850104764 | J19: -4.798647682 | K19: 358581.9434 | L19: -1458.736437 | M19: -2155.135638 | P19: Malaysia has more than 1,000 COVID-19 cases as of 31 May 2020. | Q19: Malaysia has more than 1,000 COVID-19 cases as of 31 May 2020.
A20: mmr | B20: Myanmar | C20: 0 | D20: MMR | E20: -1.255570443 | F20: -1.310278909 | G20: 0 | H20: -1.871137698 | I20: -1.896533424 | J20: 0 | K20: 71214.80338 | P20: Myanmar has less than 1,000 COVID-19 cases as of 31 May 2020. | Q20: Myanmar has less than 1,000 COVID-19 cases as of 31 May 2020.
A21: phi | B21: Philippines | C21: 1 | D21: PHL | E21: -1.19954847 | F21: -1.306631279 | G21: -5.228326161 | H21: -1.785897574 | I21: -1.891246617 | J21: -7.842489263 | K21: 330910.3436 | L21: -3414.846034 | M21: -5083.192791 | P21: Philippines has more than 1,000 COVID-19 cases as of 31 May 2020. | Q21: Philippines has more than 1,000 COVID-19 cases as of 31 May 2020.
A22: sin | B22: Singapore | C22: 1 | D22: SGP | E22: -2.844088891 | F22: -1.567220768 | G22: -2.509586023 | H22: -4.226765978 | I22: -2.268433228 | J22: -3.764379094 | K22: 364156.6578 | L22: -308.1299158 | M22: -456.2875164 | P22: Singapore has more than 1,000 COVID-19 cases as of 31 May 2020. | Q22: Singapore has more than 1,000 COVID-19 cases as of 31 May 2020.
A23: tha | B23: Thailand | C23: 1 | D23: THA | E23: -2.188487275 | F23: -6.241182559 | G23: -3.280094669 | H23: -3.264823377 | I23: -9.03366254 | J23: -4.920142194 | K23: 504992.7577 | L23: -4750.39262 | M23: -6991.556201 | P23: Thailand has more than 1,000 COVID-19 cases as of 31 May 2020. | Q23: Thailand has more than 1,000 COVID-19 cases as of 31 May 2020.
A24: tls | B24: Timor-Leste | C24: 0 | D24: TLS | E24: -0.3205571583 | F24: -1.688589712 | G24: 0 | H24: -0.483616715 | I24: -2.444110827 | J24: 0 | K24: 2581 | P24: Timor-Leste has less than 1,000 COVID-19 cases as of 31 May 2020. | Q24: Timor-Leste has less than 1,000 COVID-19 cases as of 31 May 2020.
A25: vie | B25: Viet Nam | C25: 0 | D25: VNM | E25: -2.641882129 | F25: -1.393615401 | G25: -1.919797708 | H25: -3.942155195 | I25: -2.01715481 | J25: -2.879696582 | K25: 245213.6864 | L25: -2052.321931 | M25: -3028.933221 | N25: -3113.229748 | O25: -4620.294968 | P25: Viet Nam has less than 1,000 COVID-19 cases as of 31 May 2020. | Q25: Viet Nam has less than 1,000 COVID-19 cases as of 31 May 2020.
A26: afg | B26: Afghanistan | C26: 1 | D26: AFG | E26: -0.6629563323 | F26: -0.1441755437 | G26: -7.44555575 | H26: -0.9917229057 | I26: -0.2087317573 | J26: -11.1683334 | K26: 19362.96958 | P26: Afghanistan has more than 1,000 COVID-19 cases as of 31 May 2020. | Q26: Afghanistan has more than 1,000 COVID-19 cases as of 31 May 2020.
A27: ban | B27: Bangladesh | C27: 1 | D27: BGD | E27: -0.6468449205 | F27: -0.06957108461 | G27: -6.882396848 | H27: -0.9679965256 | I27: -0.100694657 | J27: -10.32359524 | K27: 274024.959 | L27: -5077.200802 | M27: -7612.614231 | P27: Bangladesh has more than 1,000 COVID-19 cases as of 31 May 2020. | Q27: Bangladesh has more than 1,000 COVID-19 cases as of 31 May 2020.
A28: btn | B28: Bhutan | C28: 0 | D28: BTN | E28: -1.689428667 | F28: -2.124324215 | G28: -5.044632522 | H28: -2.511453499 | I28: -3.076629757 | J28: -7.566949052 | K28: 2534.965163 | L28: -13.57992983 | M28: -19.90755744 | N28: -36.08503449 | O28: -53.66521584 | P28: Bhutan has less than 1,000 COVID-19 cases as of 31 May 2020. | Q28: Bhutan has less than 1,000 COVID-19 cases as of 31 May 2020.
A29: ind | B29: India | C29: 1 | D29: IND | E29: -0.6249246874 | F29: -0.5223475695 | G29: -5.635748775 | H29: -0.9301984377 | I29: -0.7560585589 | J29: -8.453623134 | K29: 2718732.231 | L29: -37452.09635 | M29: -56036.72437 | P29: India has more than 1,000 COVID-19 cases as of 31 May 2020. | Q29: India has more than 1,000 COVID-19 cases as of 31 May 2020.
A30: mdv | B30: Maldives | C30: 1 | D30: MDV | E30: -2.863342102 | F30: -23.3048599 | G30: -4.453133454 | H30: -4.245340844 | I30: -33.73224257 | J30: -6.678093975 | K30: 5327.45715 | L30: -47.23759483 | M30: -68.90714424 | P30: Maldives has more than 1,000 COVID-19 cases as of 31 May 2020. | Q30: Maldives has more than 1,000 COVID-19 cases as of 31 May 2020.
A31: npl | B31: Nepal | C31: 1 | D31: NPL | E31: -0.3328949725 | F31: -1.453882422 | G31: -6.051605817 | H31: -0.4958239876 | I31: -2.104447163 | J31: -9.072076514 | K31: 29040.39898 | L31: -1323.307928 | M31: -1975.401454 | P31: Nepal has more than 1,000 COVID-19 cases as of 31 May 2020. | Q31: Nepal has more than 1,000 COVID-19 cases as of 31 May 2020.
A32: pak | B32: Pakistan | C32: 1 | D32: PAK | E32: -0.4578808424 | F32: -0.1484252016 | G32: -6.731408261 | H32: -0.6836605446 | I32: -0.2148744482 | J32: -10.09760193 | K32: 314588.2105 | L32: -4302.209532 | M32: -6449.123906 | P32: Pakistan has more than 1,000 COVID-19 cases as of 31 May 2020. | Q32: Pakistan has more than 1,000 COVID-19 cases as of 31 May 2020.
A33: sri | B33: Sri Lanka | C33: 1 | D33: LKA | E33: -0.9575774441 | F33: -3.241363978 | G33: -6.645533338 | H33: -1.426742721 | I33: -4.691728355 | J33: -9.965185363 | K33: 88900.77086 | L33: -815.8351205 | M33: -1212.677555 | P33: Sri Lanka has more than 1,000 COVID-19 cases as of 31 May 2020. | Q33: Sri Lanka has more than 1,000 COVID-19 cases as of 31 May 2020.
A34: cok | B34: Cook Islands | C34: 0 | D34: COK | E34: -2.063310113 | F34: -22.33333333 | G34: 0 | H34: -3.069789908 | I34: -32.33333333 | J34: 0 | K34: 524.2152728 | P34: Cook Islands has less than 1,000 COVID-19 cases as of 31 May 2020. | Q34: Cook Islands has less than 1,000 COVID-19 cases as of 31 May 2020.
A35: fij | B35: Fiji | C35: 0 | D35: FJI | E35: -2.408935141 | F35: -10.11817079 | G35: -3.140247228 | H35: -3.583510725 | I35: -14.64523661 | J35: -4.710371251 | K35: 5536.759659 | L35: -24.82798991 | M35: -36.20921914 | N35: -35.94124786 | O35: -52.87910697 | P35: Fiji has less than 1,000 COVID-19 cases as of 31 May 2020. | Q35: Fiji has less than 1,000 COVID-19 cases as of 31 May 2020.
A36: fsm | B36: Fed. States of Micronesia | C36: 0 | D36: FSM | E36: -1.610170281 | F36: -4.410833333 | G36: 0 | H36: -2.397349168 | I36: -6.385833333 | J36: 0 | K36: 401.932279 | P36: Fed. States of Micronesia has less than 1,000 COVID-19 cases as of 31 May 2020. | Q36: Fed. States of Micronesia has less than 1,000 COVID-19 cases as of 31 May 2020.
A37: kir | B37: Kiribati | C37: 0 | D37: KIR | E37: -0.6781552427 | F37: -1.456415114 | G37: 0 | H37: -1.014277459 | I37: -2.10805489 | J37: 0 | K37: 188.2845188 | P37: Kiribati has less than 1,000 COVID-19 cases as of 31 May 2020. | Q37: Kiribati has less than 1,000 COVID-19 cases as of 31 May 2020.
A38: mhl | B38: Marshall Islands | C38: 0 | D38: MHL | E38: -1.721941873 | F38: -5.075458953 | G38: 0 | H38: -2.56321358 | I38: -7.346358261 | J38: 0 | K38: 221.278 | P38: Marshall Islands has less than 1,000 COVID-19 cases as of 31 May 2020. | Q38: Marshall Islands has less than 1,000 COVID-19 cases as of 31 May 2020.
A39: nru | B39: Nauru | C39: 0 | D39: NRU | E39: -1.347894843 | F39: -0.7110912756 | G39: 0 | H39: -2.008143283 | I39: -1.029490354 | J39: 0 | K39: 125.628504 | P39: Nauru has less than 1,000 COVID-19 cases as of 31 May 2020. | Q39: Nauru has less than 1,000 COVID-19 cases as of 31 May 2020.
A40: plw | B40: Palau | C40: 0 | D40: PLW | E40: -1.849442889 | F40: -20.9386462 | G40: 0 | H40: -2.752419807 | I40: -30.30716961 | J40: 0 | K40: 283.9949 | P40: Palau has less than 1,000 COVID-19 cases as of 31 May 2020. | Q40: Palau has less than 1,000 COVID-19 cases as of 31 May 2020.
A41: png | B41: Papua New Guinea | C41: 0 | D41: PNG | E41: -1.797945426 | F41: -0.03886768261 | G41: 0 | H41: -2.675999706 | I41: -0.05625814172 | J41: 0 | K41: 23497.60769 | P41: Papua New Guinea has less than 1,000 COVID-19 cases as of 31 May 2020. | Q41: Papua New Guinea has less than 1,000 COVID-19 cases as of 31 May 2020.
A42: slb | B42: Solomon Islands | C42: 0 | D42: SLB | E42: -1.880550927 | F42: -3.683339548 | G42: 0 | H42: -2.798582847 | I42: -5.33136623 | J42: 0 | K42: 1395.608472 | P42: Solomon Islands has less than 1,000 COVID-19 cases as of 31 May 2020. | Q42: Solomon Islands has less than 1,000 COVID-19 cases as of 31 May 2020.
A43: ton | B43: Tonga | C43: 0 | D43: TON | E43: -1.215334625 | F43: -5.963280941 | G43: 0 | H43: -1.81142941 | I43: -8.633406735 | J43: 0 | K43: 450.353314 | P43: Tonga has less than 1,000 COVID-19 cases as of 31 May 2020. | Q43: Tonga has less than 1,000 COVID-19 cases as of 31 May 2020.
A44: tuv | B44: Tuvalu | C44: 0 | D44: TUV | E44: -0.6923822378 | F44: -1.671547626 | G44: 0 | H44: -1.035389731 | I44: -2.420001787 | J44: 0 | K44: 42.587778 | P44: Tuvalu has less than 1,000 COVID-19 cases as of 31 May 2020. | Q44: Tuvalu has less than 1,000 COVID-19 cases as of 31 May 2020.
A45: vut | B45: Vanuatu | C45: 0 | D45: VUT | E45: -1.832990313 | F45: -19.86148009 | G45: 0 | H45: -2.728004866 | I45: -28.74805077 | J45: 0 | K45: 914.3011193 | P45: Vanuatu has less than 1,000 COVID-19 cases as of 31 May 2020. | Q45: Vanuatu has less than 1,000 COVID-19 cases as of 31 May 2020.
A46: wsm | B46: Samoa | C46: 0 | D46: WSM | E46: -1.537865793 | F46: -13.02741483 | G46: 0 | H46: -2.290052303 | I46: -18.85623754 | J46: 0 | K46: 820.4917983 | P46: Samoa has less than 1,000 COVID-19 cases as of 31 May 2020. | Q46: Samoa has less than 1,000 COVID-19 cases as of 31 May 2020.
B58: Central Asia | E58: -2.049949643 | F58: -1.857656787 | G58: -4.660704789 | H58: -3.052735282 | I58: -2.688834455 | J58: -6.99348143 | K58: 363189.1237
B59: East Asia | E59: -1.121923696 | F59: -0.3159091572 | G59: -3.629328572 | H59: -1.674636 | I59: -0.4572552352 | J59: -5.446664122 | K59: 16193230.33
B60: Southeast Asia | E60: -1.701075252 | F60: -2.212262178 | G60: -3.242608985 | H60: -2.533182246 | I60: -3.202086288 | J60: -4.863913469 | K60: 2975888.105
B61: South Asia | E61: -0.6147692227 | F61: -0.5578210062 | G61: -5.800383484 | H61: -0.9157148034 | I61: -0.8074119031 | J61: -8.700493234 | K61: 3492887.69
B62: The Pacific | E62: -1.844874857 | F62: -2.988702546 | G62: 0 | H62: -2.749871732 | I62: -4.326070889 | J62: 0 | K62: 34403.04331

Sheet Sheet4 (hidden)
A2: Australia | B2: AUS | D2: GDP | E2: in $ millions | F2: as % of sector GDP | G2: 19 | H2: GDP losses (in $ Mn)
A3: Austria | B3: AUT | D3: Employment | E3: in thousands persons | F3: as % of sector employment | G3: 23 | H3: Employment losses (in thousands)
A4: Bangladesh | B4: BAN | D4: Exports | E4: in $ millions | F4: as % of sector exports | G4: 27 | H4: Export losses (in $ Mn)
A5: Belgium | B5: BEL
A6: Bhutan | B6: BTN
A7: Brazil | B7: BRA | E7: Bangladesh | F7: 1 | G7: outbreak | J7: outbreak | K7: no_outbreak | M7: 6
A8: Brunei Darussalam | B8: BRN | E8: Bhutan | F8: 0 | G8: no_outbreak | J8: Total impact from COVID-19 | K8: Impact from global spillovers only
A9: Bulgaria | B9: BGR | E9: Brunei Darussalam | F9: 0 | G9: no_outbreak | K9: Total impact if significant outbreak occurs
A10: Cambodia | B10: CAM | E10: Cambodia | F10: 0 | G10: no_outbreak
A11: Canada | B11: CAN | E11: Fiji | F11: 0 | G11: no_outbreak | J11: Total impact from COVID-19
A12: Croatia | B12: HRV | E12: Hong Kong, China | F12: 1 | G12: outbreak | J12: Impact from global spillovers only
A13: Cyprus | B13: CYP | E13: India | F13: 1 | G13: outbreak | J13: Total impact if significant outbreak occurs
A14: Czech Republic | B14: CZE | E14: Indonesia | F14: 1 | G14: outbreak
A15: Denmark | B15: DNK | E15: Kazakhstan | F15: 1 | G15: outbreak
A16: Estonia | B16: EST | E16: Kyrgyz Republic | F16: 1 | G16: outbreak
A17: Fiji | B17: FIJ | E17: Lao People’s Dem. Rep. | F17: 0 | G17: no_outbreak
A18: Finland | B18: FIN | E18: Malaysia | F18: 1 | G18: outbreak
A19: France | B19: FRA | E19: Maldives | F19: 1 | G19: outbreak
A20: Germany | B20: DEU | E20: Mongolia | F20: 0 | G20: no_outbreak
A21: Greece | B21: GRC | E21: Nepal | F21: 1 | G21: outbreak
A22: Hong Kong, China | B22: HKG | E22: Pakistan | F22: 1 | G22: outbreak
A23: Hungary | B23: HUN | E23: People's Republic of China | F23: 1 | G23: outbreak
A24: India | B24: IND | E24: Philippines | F24: 1 | G24: outbreak
A25: Indonesia | B25: IDN | E25: Republic of Korea | F25: 1 | G25: outbreak
A26: Ireland | B26: IRL | E26: Singapore | F26: 1 | G26: outbreak
A27: Italy | B27: ITA | E27: Sri Lanka | F27: 1 | G27: outbreak
A28: Japan | B28: JPN | E28: Taipei,China | F28: 0 | G28: no_outbreak
A29: Kazakhstan | B29: KAZ | E29: Thailand | F29: 1 | G29: outbreak
A30: Kyrgyz Republic | B30: KGZ | E30: Viet Nam | F30: 0 | G30: no_outbreak
A31: Lao People’s Dem. Rep. | B31: LAO
A32: Latvia | B32: LVA
A33: Lithuania | B33: LTU
A34: Luxembourg | B34: LUX
A35: Malaysia | B35: MAL
A36: Maldives | B36: MDV
A37: Malta | B37: MLT
A38: Mexico | B38: MEX
A39: Mongolia | B39: MON
A40: Nepal | B40: NPL
A41: Netherlands | B41: NLD
A42: Norway | B42: NOR
A43: Pakistan | B43: PAK
A44: People's Republic of China | B44: CHN
A45: Philippines | B45: PHI
A46: Poland | B46: POL
A47: Portugal | B47: PRT
A48: Republic of Korea | B48: KOR
A49: Romania | B49: ROM
A50: Russia | B50: RUS
A51: Singapore | B51: SIN
A52: Slovak Republic | B52: SVK
A53: Slovenia | B53: SVN
A54: Spain | B54: ESP
A55: Sri Lanka | B55: SRI
A56: Sweden | B56: SWE
A57: Switzerland | B57: CHE
A58: Taipei,China | B58: TAP
A59: Thailand | B59: THA
A60: Turkey | B60: TUR
A61: United Kingdom | B61: GBR
A62: United States | B62: USA
A63: Viet Nam | B63: VIE
A66: Afghanistan
A67: Armenia
A68: Azerbaijan
A69: Georgia
A70: Kiribati
A71: Marshall Islands
A72: Federated States of Micronesia
A73: Myanmar
A74: Nauru
A75: Palau
A76: Papua New Guinea
A77: Samoa
A78: Solomon Islands
A79: Tajikistan
A80: Timor-Leste
A81: Tonga
A82: Turkmenistan
A83: Tuvalu
A84: Uzbekistan
A85: Vanuatu
A86: Cook Islands
